{"text_format":"1","workbook":"xlsx","n_sheets":6,"sheets":["Январь","Февраль","Март","ТС","Отчет журнал","Сотрудники"],"not_rendered":{"charts":0,"images":0,"macros":1,"external_links":0,"defined_names":7,"comments":0,"pivot_tables":0},"unopened":[],"bounds":{"document_bytes":16777216,"sheet_cells":100000,"rows_first":2000,"rows_last":500,"rows_between":2000,"halvings":0,"cell_chars":16384,"cell_head_chars":4096},"cells_cut":0,"cells_raw":0,"read":"whole","date_system":"1900"}

{"sheet":"Январь","index":0,"n_rows":41,"n_cols":26,"rows_kept":41,"cut":false,"hidden":false,"merged":[[1,0,1,15],[2,0,2,15],[3,14,3,15]]}
[null,null,null,null,null,null,null,null,null,null,null,null,null,null,null,"Январь",null,null,null,2,null,null,null,"Экономия","Базовая норма расхода на 100 км","Базовая норма расхода на 1 мото/час"]
["Общество с ограниченной ответственностью  \"Втормет Царицыно\"",null,null,null,null,null,null,null,null,null,null,null,null,null,null,null,null,"1-я половина","2018-01-01","2018-01-18",{"$f":"ТС!E5","v":500},{"$f":"SUMIFS(Январь[Выдано топливо, литр],Январь[Дата],\">=\"&$S$2,Январь[Дата],\"<=\"&$T$2)+IF(MONTH(T2)<>MONTH(S2),INDIRECT(TEXT(A7-1,\"ММММ\")&\"!F38\")-SUM(INDIRECT(TEXT(A7-1,\"ММММ\")&\"!V1:V2\")))","v":330},{"$f":"IF(V2=0,0,(SUMIFS($N$7:$N$37,$A$7:$A$37,\">=\"&$S$2,$A$7:$A$37,\"<=\"&$T$2))/(V2-U2+G7))","v":1.0985000000000003},{"$f":"SUMIFS(Январь[Отклонение от нормы (Перерасход(+), экономия(-)), литр],Январь[Дата],\">=\"&$S$2,Январь[Дата],\"<=\"&$T$2)","v":-32.50500000000001},{"$f":"IF(Y4=\"Зима\",VLOOKUP(Z4,Расчет[[Номер гос.регистрации / Заводской номер]:[Итога норма а/м \"ЛЕТО\"]],8,FALSE),VLOOKUP(Z4,Расчет[[Номер гос.регистрации / Заводской номер]:[Итога норма а/м \"ЛЕТО\"]],9,FALSE))","v":51.546000000000006},{"$f":"IF(Y4=\"Зима\",VLOOKUP(Z4,Расчет[[Номер гос.регистрации / Заводской номер]:[Итога норма а/м \"ЛЕТО\"]],13,FALSE),VLOOKUP(Z4,Расчет[[Номер гос.регистрации / Заводской номер]:[Итога норма а/м \"ЛЕТО\"]],14,FALSE))","v":6.0500000000000007}]
["Отчет водителя ломовоза с манипулятором",null,null,null,null,null,null,null,null,null,null,null,null,null,null,null,null,"2-я половина",{"$f":"T2+1","v":"2018-01-19"},{"$f":"INDEX(Январь[Дата],COUNT(Январь[Дата]))-T1","v":"2018-01-29"},{"$f":"ТС!E6","v":500},{"$f":"SUMIFS(Январь[Выдано топливо, литр],Январь[Дата],\">=\"&$S$3,Январь[Дата],\"<=\"&$T$3)+IF(MONTH(T3)<>MONTH(S3),INDIRECT(TEXT(A7-1,\"ММММ\")&\"!F38\")-SUM(INDIRECT(TEXT(A7-1,\"ММММ\")&\"!V1:V2\")))","v":502},{"$f":"IF(V3=0,0,(SUMIFS($N$7:$N$37,$A$7:$A$37,\">=\"&$S$3,$A$7:$A$37,\"<=\"&$T$3))/(V3-U3+U3))","v":1.4440836653386455},{"$f":"SUMIFS(Январь[Отклонение от нормы (Перерасход(+), экономия(-)), литр],Январь[Дата],\">=\"&$S$3,Январь[Дата],\"<=\"&$T$3)","v":-221.92999999999998}]
[null,null,null,null,null,null,null,"за",2018,null,null,null,null,null,"т056вв 197",null,null,null,{"$f":"T3+1","v":"2018-01-30"},null,null,null,{"$f":"IFERROR(INDIRECT(TEXT(A7+40,\"ММММ\")&\"!W2\"),)","v":0.90583314154200212},null,"Зима","Норма 1"]
[]
["Дата","ФИО водителя","Показание одометра машины на начало дня, км","Показание одометра машины на конец дня, км","Пройдено за день, км","Выдано топливо, литр","Остаток топлива в баке на начало дня, литр","Показание счетчика моточасов спецоборудования на начало дня, м/ч","Показание счетчика моточасов  спецоборудования на конец дня, м/ч","Работа спецоборудования за день, м/ч","Количество ходок","Расход топлива на работу спецоборудования, литр","Остаток топлива в баке на конец дня, литр","Расход топлива по норме, литр","Фактический расход топлива, литр","Отклонение от нормы (Перерасход(+), экономия(-)), литр",null,"Выдано топливо, литр","Пройдено за день, км","Фактический расход топлива, литр","Работа спецоборудования за день, м/ч","Расход топлива по норме, литр","Дата"]
[{"$f":"IFERROR(DATEVALUE((COUNT($A$6:A6)+1)&$P$1&$I$4),\"\")","v":"2018-01-01"},null,{"$f":"ТС!C5","v":209024},209024,{"$f":"Январь[[#This Row],[Показание одометра машины на конец дня, км]]-Январь[[#This Row],[Показание одометра машины на начало дня, км]]+S7","v":0},null,{"$f":"ТС!E5","v":500},{"$f":"ТС!D5","v":620},620,{"$f":"IF(U7=\"\",Январь[[#This Row],[Показание счетчика моточасов  спецоборудования на конец дня, м/ч]],Январь[[#This Row],[Показание счетчика моточасов  спецоборудования на конец дня, м/ч]]+1)-Январь[[#This Row],[Показание счетчика моточасов спецоборудования на начало дня, м/ч]]","v":0},null,{"$f":"IF(Январь[[#This Row],[Работа спецоборудования за день, м/ч]]=\"\",\"\",Январь[[#This Row],[Работа спецоборудования за день, м/ч]]*$Z$2)","v":0},{"$f":"IF(VLOOKUP(Январь[Дата],S$2:U$3,3),IFERROR(IF(R7=\"\",Январь[[#This Row],[Выдано топливо, литр]],Январь[[#This Row],[Выдано топливо, литр]]+R7)+Январь[[#This Row],[Остаток топлива в баке на начало дня, литр]]-Январь[[#This Row],[Фактический расход топлива, литр]],\"\"),\"\")","v":500},{"$f":"ROUND((Январь[[#This Row],[Пройдено за день, км]]*0.01*$Y$2+Январь[[#This Row],[Расход топлива на работу спецоборудования, литр]]),3)+V7","v":0},{"$f":"ROUND(Январь[[#This Row],[Расход топлива по норме, литр]]/VLOOKUP(Январь[Дата],S$2:W$4,5),0)+T7","v":0},{"$f":"IFERROR(Январь[[#This Row],[Фактический расход топлива, литр]]-Январь[[#This Row],[Расход топлива по норме, литр]],\"\")","v":0},null,null,null,null,null,null,{"$f":"Январь[[#This Row],[Дата]]","v":"2018-01-01"}]
[{"$f":"IFERROR(DATEVALUE((COUNT($A$6:A7)+1)&$P$1&$I$4),\"\")","v":"2018-01-02"},null,{"$f":"IF(D7=\"\",\"\",D7)","v":209024},209024,{"$f":"Январь[[#This Row],[Показание одометра машины на конец дня, км]]-Январь[[#This Row],[Показание одометра машины на начало дня, км]]+S8","v":0},null,{"$f":"IF(Январь[[#This Row],[Дата]]=\"\",\"\",M7)","v":500},{"$f":"I7","v":620},620,{"$f":"IF(U8=\"\",Январь[[#This Row],[Показание счетчика моточасов  спецоборудования на конец дня, м/ч]],Январь[[#This Row],[Показание счетчика моточасов  спецоборудования на конец дня, м/ч]]+1)-Январь[[#This Row],[Показание счетчика моточасов спецоборудования на начало дня, м/ч]]","v":0},null,{"$f":"IF(Январь[[#This Row],[Работа спецоборудования за день, м/ч]]=\"\",\"\",Январь[[#This Row],[Работа спецоборудования за день, м/ч]]*$Z$2)","v":0},{"$f":"IF(VLOOKUP(Январь[Дата],S$2:U$3,3),IFERROR(IF(R8=\"\",Январь[[#This Row],[Выдано топливо, литр]],Январь[[#This Row],[Выдано топливо, литр]]+R8)+Январь[[#This Row],[Остаток топлива в баке на начало дня, литр]]-Январь[[#This Row],[Фактический расход топлива, литр]],\"\"),\"\")","v":500},{"$f":"ROUND((Январь[[#This Row],[Пройдено за день, км]]*0.01*$Y$2+Январь[[#This Row],[Расход топлива на работу спецоборудования, литр]]),3)+V8","v":0},{"$f":"ROUND(Январь[[#This Row],[Расход топлива по норме, литр]]/VLOOKUP(Январь[Дата],S$2:W$4,5),0)+T8","v":0},{"$f":"IFERROR(Январь[[#This Row],[Фактический расход топлива, литр]]-Январь[[#This Row],[Расход топлива по норме, литр]],\"\")","v":0},null,null,null,null,null,null,{"$f":"Январь[[#This Row],[Дата]]","v":"2018-01-02"}]
[{"$f":"IFERROR(DATEVALUE((COUNT($A$6:A8)+1)&$P$1&$I$4),\"\")","v":"2018-01-03"},null,{"$f":"IF(D8=\"\",\"\",D8)","v":209024},209024,{"$f":"Январь[[#This Row],[Показание одометра машины на конец дня, км]]-Январь[[#This Row],[Показание одометра машины на начало дня, км]]+S9","v":0},null,{"$f":"IF(Январь[[#This Row],[Дата]]=\"\",\"\",M8)","v":500},{"$f":"I8","v":620},620,{"$f":"IF(U9=\"\",Январь[[#This Row],[Показание счетчика моточасов  спецоборудования на конец дня, м/ч]],Январь[[#This Row],[Показание счетчика моточасов  спецоборудования на конец дня, м/ч]]+1)-Январь[[#This Row],[Показание счетчика моточасов спецоборудования на начало дня, м/ч]]","v":0},null,{"$f":"IF(Январь[[#This Row],[Работа спецоборудования за день, м/ч]]=\"\",\"\",Январь[[#This Row],[Работа спецоборудования за день, м/ч]]*$Z$2)","v":0},{"$f":"IF(VLOOKUP(Январь[Дата],S$2:U$3,3),IFERROR(IF(R9=\"\",Январь[[#This Row],[Выдано топливо, литр]],Январь[[#This Row],[Выдано топливо, литр]]+R9)+Январь[[#This Row],[Остаток топлива в баке на начало дня, литр]]-Январь[[#This Row],[Фактический расход топлива, литр]],\"\"),\"\")","v":500},{"$f":"ROUND((Январь[[#This Row],[Пройдено за день, км]]*0.01*$Y$2+Январь[[#This Row],[Расход топлива на работу спецоборудования, литр]]),3)+V9","v":0},{"$f":"ROUND(Январь[[#This Row],[Расход топлива по норме, литр]]/VLOOKUP(Январь[Дата],S$2:W$4,5),0)+T9","v":0},{"$f":"IFERROR(Январь[[#This Row],[Фактический расход топлива, литр]]-Январь[[#This Row],[Расход топлива по норме, литр]],\"\")","v":0},null,null,null,null,null,null,{"$f":"Январь[[#This Row],[Дата]]","v":"2018-01-03"}]
[{"$f":"IFERROR(DATEVALUE((COUNT($A$6:A9)+1)&$P$1&$I$4),\"\")","v":"2018-01-04"},null,209024,209024,{"$f":"Январь[[#This Row],[Показание одометра машины на конец дня, км]]-Январь[[#This Row],[Показание одометра машины на начало дня, км]]+S10","v":0},null,{"$f":"IF(Январь[[#This Row],[Дата]]=\"\",\"\",M9)","v":500},620,620,{"$f":"IF(U10=\"\",Январь[[#This Row],[Показание счетчика моточасов  спецоборудования на конец дня, м/ч]],Январь[[#This Row],[Показание счетчика моточасов  спецоборудования на конец дня, м/ч]]+1)-Январь[[#This Row],[Показание счетчика моточасов спецоборудования на начало дня, м/ч]]","v":0},null,{"$f":"IF(Январь[[#This Row],[Работа спецоборудования за день, м/ч]]=\"\",\"\",Январь[[#This Row],[Работа спецоборудования за день, м/ч]]*$Z$2)","v":0},{"$f":"IF(VLOOKUP(Январь[Дата],S$2:U$3,3),IFERROR(IF(R10=\"\",Январь[[#This Row],[Выдано топливо, литр]],Январь[[#This Row],[Выдано топливо, литр]]+R10)+Январь[[#This Row],[Остаток топлива в баке на начало дня, литр]]-Январь[[#This Row],[Фактический расход топлива, литр]],\"\"),\"\")","v":500},{"$f":"ROUND((Январь[[#This Row],[Пройдено за день, км]]*0.01*$Y$2+Январь[[#This Row],[Расход топлива на работу спецоборудования, литр]]),3)+V10","v":0},{"$f":"ROUND(Январь[[#This Row],[Расход топлива по норме, литр]]/VLOOKUP(Январь[Дата],S$2:W$4,5),0)+T10","v":0},{"$f":"IFERROR(Январь[[#This Row],[Фактический расход топлива, литр]]-Январь[[#This Row],[Расход топлива по норме, литр]],\"\")","v":0},null,null,null,null,null,null,{"$f":"Январь[[#This Row],[Дата]]","v":"2018-01-04"}]
[{"$f":"IFERROR(DATEVALUE((COUNT($A$6:A10)+1)&$P$1&$I$4),\"\")","v":"2018-01-05"},null,209024,209024,{"$f":"Январь[[#This Row],[Показание одометра машины на конец дня, км]]-Январь[[#This Row],[Показание одометра машины на начало дня, км]]+S11","v":0},null,{"$f":"IF(Январь[[#This Row],[Дата]]=\"\",\"\",M10)","v":500},620,620,{"$f":"IF(U11=\"\",Январь[[#This Row],[Показание счетчика моточасов  спецоборудования на конец дня, м/ч]],Январь[[#This Row],[Показание счетчика моточасов  спецоборудования на конец дня, м/ч]]+1)-Январь[[#This Row],[Показание счетчика моточасов спецоборудования на начало дня, м/ч]]","v":0},null,{"$f":"IF(Январь[[#This Row],[Работа спецоборудования за день, м/ч]]=\"\",\"\",Январь[[#This Row],[Работа спецоборудования за день, м/ч]]*$Z$2)","v":0},{"$f":"IF(VLOOKUP(Январь[Дата],S$2:U$3,3),IFERROR(IF(R11=\"\",Январь[[#This Row],[Выдано топливо, литр]],Январь[[#This Row],[Выдано топливо, литр]]+R11)+Январь[[#This Row],[Остаток топлива в баке на начало дня, литр]]-Январь[[#This Row],[Фактический расход топлива, литр]],\"\"),\"\")","v":500},{"$f":"ROUND((Январь[[#This Row],[Пройдено за день, км]]*0.01*$Y$2+Январь[[#This Row],[Расход топлива на работу спецоборудования, литр]]),3)+V11","v":0},{"$f":"ROUND(Январь[[#This Row],[Расход топлива по норме, литр]]/VLOOKUP(Январь[Дата],S$2:W$4,5),0)+T11","v":0},{"$f":"IFERROR(Январь[[#This Row],[Фактический расход топлива, литр]]-Январь[[#This Row],[Расход топлива по норме, литр]],\"\")","v":0},null,null,null,null,null,null,{"$f":"Январь[[#This Row],[Дата]]","v":"2018-01-05"}]
[{"$f":"IFERROR(DATEVALUE((COUNT($A$6:A11)+1)&$P$1&$I$4),\"\")","v":"2018-01-06"},null,209024,209024,{"$f":"Январь[[#This Row],[Показание одометра машины на конец дня, км]]-Январь[[#This Row],[Показание одометра машины на начало дня, км]]+S12","v":0},null,{"$f":"IF(Январь[[#This Row],[Дата]]=\"\",\"\",M11)","v":500},620,620,{"$f":"IF(U12=\"\",Январь[[#This Row],[Показание счетчика моточасов  спецоборудования на конец дня, м/ч]],Январь[[#This Row],[Показание счетчика моточасов  спецоборудования на конец дня, м/ч]]+1)-Январь[[#This Row],[Показание счетчика моточасов спецоборудования на начало дня, м/ч]]","v":0},null,{"$f":"IF(Январь[[#This Row],[Работа спецоборудования за день, м/ч]]=\"\",\"\",Январь[[#This Row],[Работа спецоборудования за день, м/ч]]*$Z$2)","v":0},{"$f":"IF(VLOOKUP(Январь[Дата],S$2:U$3,3),IFERROR(IF(R12=\"\",Январь[[#This Row],[Выдано топливо, литр]],Январь[[#This Row],[Выдано топливо, литр]]+R12)+Январь[[#This Row],[Остаток топлива в баке на начало дня, литр]]-Январь[[#This Row],[Фактический расход топлива, литр]],\"\"),\"\")","v":500},{"$f":"ROUND((Январь[[#This Row],[Пройдено за день, км]]*0.01*$Y$2+Январь[[#This Row],[Расход топлива на работу спецоборудования, литр]]),3)+V12","v":0},{"$f":"ROUND(Январь[[#This Row],[Расход топлива по норме, литр]]/VLOOKUP(Январь[Дата],S$2:W$4,5),0)+T12","v":0},{"$f":"IFERROR(Январь[[#This Row],[Фактический расход топлива, литр]]-Январь[[#This Row],[Расход топлива по норме, литр]],\"\")","v":0},null,null,null,null,null,null,{"$f":"Январь[[#This Row],[Дата]]","v":"2018-01-06"}]
[{"$f":"IFERROR(DATEVALUE((COUNT($A$6:A12)+1)&$P$1&$I$4),\"\")","v":"2018-01-07"},null,209024,209024,{"$f":"Январь[[#This Row],[Показание одометра машины на конец дня, км]]-Январь[[#This Row],[Показание одометра машины на начало дня, км]]+S13","v":0},null,{"$f":"IF(Январь[[#This Row],[Дата]]=\"\",\"\",M12)","v":500},620,620,{"$f":"IF(U13=\"\",Январь[[#This Row],[Показание счетчика моточасов  спецоборудования на конец дня, м/ч]],Январь[[#This Row],[Показание счетчика моточасов  спецоборудования на конец дня, м/ч]]+1)-Январь[[#This Row],[Показание счетчика моточасов спецоборудования на начало дня, м/ч]]","v":0},null,{"$f":"IF(Январь[[#This Row],[Работа спецоборудования за день, м/ч]]=\"\",\"\",Январь[[#This Row],[Работа спецоборудования за день, м/ч]]*$Z$2)","v":0},{"$f":"IF(VLOOKUP(Январь[Дата],S$2:U$3,3),IFERROR(IF(R13=\"\",Январь[[#This Row],[Выдано топливо, литр]],Январь[[#This Row],[Выдано топливо, литр]]+R13)+Январь[[#This Row],[Остаток топлива в баке на начало дня, литр]]-Январь[[#This Row],[Фактический расход топлива, литр]],\"\"),\"\")","v":500},{"$f":"ROUND((Январь[[#This Row],[Пройдено за день, км]]*0.01*$Y$2+Январь[[#This Row],[Расход топлива на работу спецоборудования, литр]]),3)+V13","v":0},{"$f":"ROUND(Январь[[#This Row],[Расход топлива по норме, литр]]/VLOOKUP(Январь[Дата],S$2:W$4,5),0)+T13","v":0},{"$f":"IFERROR(Январь[[#This Row],[Фактический расход топлива, литр]]-Январь[[#This Row],[Расход топлива по норме, литр]],\"\")","v":0},null,null,null,null,null,null,{"$f":"Январь[[#This Row],[Дата]]","v":"2018-01-07"}]
[{"$f":"IFERROR(DATEVALUE((COUNT($A$6:A13)+1)&$P$1&$I$4),\"\")","v":"2018-01-08"},null,209024,209024,{"$f":"Январь[[#This Row],[Показание одометра машины на конец дня, км]]-Январь[[#This Row],[Показание одометра машины на начало дня, км]]+S14","v":0},null,{"$f":"IF(Январь[[#This Row],[Дата]]=\"\",\"\",M13)","v":500},620,620,{"$f":"IF(U14=\"\",Январь[[#This Row],[Показание счетчика моточасов  спецоборудования на конец дня, м/ч]],Январь[[#This Row],[Показание счетчика моточасов  спецоборудования на конец дня, м/ч]]+1)-Январь[[#This Row],[Показание счетчика моточасов спецоборудования на начало дня, м/ч]]","v":0},null,{"$f":"IF(Январь[[#This Row],[Работа спецоборудования за день, м/ч]]=\"\",\"\",Январь[[#This Row],[Работа спецоборудования за день, м/ч]]*$Z$2)","v":0},{"$f":"IF(VLOOKUP(Январь[Дата],S$2:U$3,3),IFERROR(IF(R14=\"\",Январь[[#This Row],[Выдано топливо, литр]],Январь[[#This Row],[Выдано топливо, литр]]+R14)+Январь[[#This Row],[Остаток топлива в баке на начало дня, литр]]-Январь[[#This Row],[Фактический расход топлива, литр]],\"\"),\"\")","v":500},{"$f":"ROUND((Январь[[#This Row],[Пройдено за день, км]]*0.01*$Y$2+Январь[[#This Row],[Расход топлива на работу спецоборудования, литр]]),3)+V14","v":0},{"$f":"ROUND(Январь[[#This Row],[Расход топлива по норме, литр]]/VLOOKUP(Январь[Дата],S$2:W$4,5),0)+T14","v":0},{"$f":"IFERROR(Январь[[#This Row],[Фактический расход топлива, литр]]-Январь[[#This Row],[Расход топлива по норме, литр]],\"\")","v":0},null,null,null,null,null,null,{"$f":"Январь[[#This Row],[Дата]]","v":"2018-01-08"}]
[{"$f":"IFERROR(DATEVALUE((COUNT($A$6:A14)+1)&$P$1&$I$4),\"\")","v":"2018-01-09"},null,209024,209024,{"$f":"Январь[[#This Row],[Показание одометра машины на конец дня, км]]-Январь[[#This Row],[Показание одометра машины на начало дня, км]]+S15","v":0},null,{"$f":"IF(Январь[[#This Row],[Дата]]=\"\",\"\",M14)","v":500},620,620,{"$f":"IF(U15=\"\",Январь[[#This Row],[Показание счетчика моточасов  спецоборудования на конец дня, м/ч]],Январь[[#This Row],[Показание счетчика моточасов  спецоборудования на конец дня, м/ч]]+1)-Январь[[#This Row],[Показание счетчика моточасов спецоборудования на начало дня, м/ч]]","v":0},0,{"$f":"IF(Январь[[#This Row],[Работа спецоборудования за день, м/ч]]=\"\",\"\",Январь[[#This Row],[Работа спецоборудования за день, м/ч]]*$Z$2)","v":0},{"$f":"IF(VLOOKUP(Январь[Дата],S$2:U$3,3),IFERROR(IF(R15=\"\",Январь[[#This Row],[Выдано топливо, литр]],Январь[[#This Row],[Выдано топливо, литр]]+R15)+Январь[[#This Row],[Остаток топлива в баке на начало дня, литр]]-Январь[[#This Row],[Фактический расход топлива, литр]],\"\"),\"\")","v":500},{"$f":"ROUND((Январь[[#This Row],[Пройдено за день, км]]*0.01*$Y$2+Январь[[#This Row],[Расход топлива на работу спецоборудования, литр]]),3)+V15","v":0},{"$f":"ROUND(Январь[[#This Row],[Расход топлива по норме, литр]]/VLOOKUP(Январь[Дата],S$2:W$4,5),0)+T15","v":0},{"$f":"IFERROR(Январь[[#This Row],[Фактический расход топлива, литр]]-Январь[[#This Row],[Расход топлива по норме, литр]],\"\")","v":0},null,null,null,null,null,null,{"$f":"Январь[[#This Row],[Дата]]","v":"2018-01-09"}]
[{"$f":"IFERROR(DATEVALUE((COUNT($A$6:A15)+1)&$P$1&$I$4),\"\")","v":"2018-01-10"},"Никляев В.А.",209024,209059,{"$f":"Январь[[#This Row],[Показание одометра машины на конец дня, км]]-Январь[[#This Row],[Показание одометра машины на начало дня, км]]+S16","v":35},null,{"$f":"IF(Январь[[#This Row],[Дата]]=\"\",\"\",M15)","v":500},620,620,{"$f":"IF(U16=\"\",Январь[[#This Row],[Показание счетчика моточасов  спецоборудования на конец дня, м/ч]],Январь[[#This Row],[Показание счетчика моточасов  спецоборудования на конец дня, м/ч]]+1)-Январь[[#This Row],[Показание счетчика моточасов спецоборудования на начало дня, м/ч]]","v":0},1,{"$f":"IF(Январь[[#This Row],[Работа спецоборудования за день, м/ч]]=\"\",\"\",Январь[[#This Row],[Работа спецоборудования за день, м/ч]]*$Z$2)","v":0},{"$f":"IF(VLOOKUP(Январь[Дата],S$2:U$3,3),IFERROR(IF(R16=\"\",Январь[[#This Row],[Выдано топливо, литр]],Январь[[#This Row],[Выдано топливо, литр]]+R16)+Январь[[#This Row],[Остаток топлива в баке на начало дня, литр]]-Январь[[#This Row],[Фактический расход топлива, литр]],\"\"),\"\")","v":484},{"$f":"ROUND((Январь[[#This Row],[Пройдено за день, км]]*0.01*$Y$2+Январь[[#This Row],[Расход топлива на работу спецоборудования, литр]]),3)+V16","v":18.041},{"$f":"ROUND(Январь[[#This Row],[Расход топлива по норме, литр]]/VLOOKUP(Январь[Дата],S$2:W$4,5),0)+T16","v":16},{"$f":"IFERROR(Январь[[#This Row],[Фактический расход топлива, литр]]-Январь[[#This Row],[Расход топлива по норме, литр]],\"\")","v":-2.0410000000000004},null,null,null,null,null,null,{"$f":"Январь[[#This Row],[Дата]]","v":"2018-01-10"}]
[{"$f":"IFERROR(DATEVALUE((COUNT($A$6:A16)+1)&$P$1&$I$4),\"\")","v":"2018-01-11"},"Никляев В.А.",209059,209084,{"$f":"Январь[[#This Row],[Показание одометра машины на конец дня, км]]-Январь[[#This Row],[Показание одометра машины на начало дня, км]]+S17","v":25},null,{"$f":"IF(Январь[[#This Row],[Дата]]=\"\",\"\",M16)","v":484},620,622,{"$f":"IF(U17=\"\",Январь[[#This Row],[Показание счетчика моточасов  спецоборудования на конец дня, м/ч]],Январь[[#This Row],[Показание счетчика моточасов  спецоборудования на конец дня, м/ч]]+1)-Январь[[#This Row],[Показание счетчика моточасов спецоборудования на начало дня, м/ч]]","v":2},1,{"$f":"IF(Январь[[#This Row],[Работа спецоборудования за день, м/ч]]=\"\",\"\",Январь[[#This Row],[Работа спецоборудования за день, м/ч]]*$Z$2)","v":12.100000000000001},{"$f":"IF(VLOOKUP(Январь[Дата],S$2:U$3,3),IFERROR(IF(R17=\"\",Январь[[#This Row],[Выдано топливо, литр]],Январь[[#This Row],[Выдано топливо, литр]]+R17)+Январь[[#This Row],[Остаток топлива в баке на начало дня, литр]]-Январь[[#This Row],[Фактический расход топлива, литр]],\"\"),\"\")","v":461},{"$f":"ROUND((Январь[[#This Row],[Пройдено за день, км]]*0.01*$Y$2+Январь[[#This Row],[Расход топлива на работу спецоборудования, литр]]),3)+V17","v":24.986999999999998},{"$f":"ROUND(Январь[[#This Row],[Расход топлива по норме, литр]]/VLOOKUP(Январь[Дата],S$2:W$4,5),0)+T17","v":23},{"$f":"IFERROR(Январь[[#This Row],[Фактический расход топлива, литр]]-Январь[[#This Row],[Расход топлива по норме, литр]],\"\")","v":-1.9869999999999983},null,null,null,null,null,null,{"$f":"Январь[[#This Row],[Дата]]","v":"2018-01-11"}]
[{"$f":"IFERROR(DATEVALUE((COUNT($A$6:A17)+1)&$P$1&$I$4),\"\")","v":"2018-01-12"},"Никляев В.А.",209084,209111,{"$f":"Январь[[#This Row],[Показание одометра машины на конец дня, км]]-Январь[[#This Row],[Показание одометра машины на начало дня, км]]+S18","v":27},null,{"$f":"IF(Январь[[#This Row],[Дата]]=\"\",\"\",M17)","v":461},622,624,{"$f":"IF(U18=\"\",Январь[[#This Row],[Показание счетчика моточасов  спецоборудования на конец дня, м/ч]],Январь[[#This Row],[Показание счетчика моточасов  спецоборудования на конец дня, м/ч]]+1)-Январь[[#This Row],[Показание счетчика моточасов спецоборудования на начало дня, м/ч]]","v":2},1,{"$f":"IF(Январь[[#This Row],[Работа спецоборудования за день, м/ч]]=\"\",\"\",Январь[[#This Row],[Работа спецоборудования за день, м/ч]]*$Z$2)","v":12.100000000000001},{"$f":"IF(VLOOKUP(Январь[Дата],S$2:U$3,3),IFERROR(IF(R18=\"\",Январь[[#This Row],[Выдано топливо, литр]],Январь[[#This Row],[Выдано топливо, литр]]+R18)+Январь[[#This Row],[Остаток топлива в баке на начало дня, литр]]-Январь[[#This Row],[Фактический расход топлива, литр]],\"\"),\"\")","v":437},{"$f":"ROUND((Январь[[#This Row],[Пройдено за день, км]]*0.01*$Y$2+Январь[[#This Row],[Расход топлива на работу спецоборудования, литр]]),3)+V18","v":26.016999999999999},{"$f":"ROUND(Январь[[#This Row],[Расход топлива по норме, литр]]/VLOOKUP(Январь[Дата],S$2:W$4,5),0)+T18","v":24},{"$f":"IFERROR(Январь[[#This Row],[Фактический расход топлива, литр]]-Январь[[#This Row],[Расход топлива по норме, литр]],\"\")","v":-2.0169999999999995},null,null,null,null,null,null,{"$f":"Январь[[#This Row],[Дата]]","v":"2018-01-12"}]
[{"$f":"IFERROR(DATEVALUE((COUNT($A$6:A18)+1)&$P$1&$I$4),\"\")","v":"2018-01-13"},"Никляев В.А.",209111,209168,{"$f":"Январь[[#This Row],[Показание одометра машины на конец дня, км]]-Январь[[#This Row],[Показание одометра машины на начало дня, км]]+S19","v":57},null,{"$f":"IF(Январь[[#This Row],[Дата]]=\"\",\"\",M18)","v":437},624,626,{"$f":"IF(U19=\"\",Январь[[#This Row],[Показание счетчика моточасов  спецоборудования на конец дня, м/ч]],Январь[[#This Row],[Показание счетчика моточасов  спецоборудования на конец дня, м/ч]]+1)-Январь[[#This Row],[Показание счетчика моточасов спецоборудования на начало дня, м/ч]]","v":2},1,{"$f":"IF(Январь[[#This Row],[Работа спецоборудования за день, м/ч]]=\"\",\"\",Январь[[#This Row],[Работа спецоборудования за день, м/ч]]*$Z$2)","v":12.100000000000001},{"$f":"IF(VLOOKUP(Январь[Дата],S$2:U$3,3),IFERROR(IF(R19=\"\",Январь[[#This Row],[Выдано топливо, литр]],Январь[[#This Row],[Выдано топливо, литр]]+R19)+Январь[[#This Row],[Остаток топлива в баке на начало дня, литр]]-Январь[[#This Row],[Фактический расход топлива, литр]],\"\"),\"\")","v":399},{"$f":"ROUND((Январь[[#This Row],[Пройдено за день, км]]*0.01*$Y$2+Январь[[#This Row],[Расход топлива на работу спецоборудования, литр]]),3)+V19","v":41.481000000000002},{"$f":"ROUND(Январь[[#This Row],[Расход топлива по норме, литр]]/VLOOKUP(Январь[Дата],S$2:W$4,5),0)+T19","v":38},{"$f":"IFERROR(Январь[[#This Row],[Фактический расход топлива, литр]]-Январь[[#This Row],[Расход топлива по норме, литр]],\"\")","v":-3.4810000000000016},null,null,null,null,null,null,{"$f":"Январь[[#This Row],[Дата]]","v":"2018-01-13"}]
[{"$f":"IFERROR(DATEVALUE((COUNT($A$6:A19)+1)&$P$1&$I$4),\"\")","v":"2018-01-14"},"Никляев В.А.",209168,209208,{"$f":"Январь[[#This Row],[Показание одометра машины на конец дня, км]]-Январь[[#This Row],[Показание одометра машины на начало дня, км]]+S20","v":40},null,{"$f":"IF(Январь[[#This Row],[Дата]]=\"\",\"\",M19)","v":399},626,628,{"$f":"IF(U20=\"\",Январь[[#This Row],[Показание счетчика моточасов  спецоборудования на конец дня, м/ч]],Январь[[#This Row],[Показание счетчика моточасов  спецоборудования на конец дня, м/ч]]+1)-Январь[[#This Row],[Показание счетчика моточасов спецоборудования на начало дня, м/ч]]","v":2},1,{"$f":"IF(Январь[[#This Row],[Работа спецоборудования за день, м/ч]]=\"\",\"\",Январь[[#This Row],[Работа спецоборудования за день, м/ч]]*$Z$2)","v":12.100000000000001},{"$f":"IF(VLOOKUP(Январь[Дата],S$2:U$3,3),IFERROR(IF(R20=\"\",Январь[[#This Row],[Выдано топливо, литр]],Январь[[#This Row],[Выдано топливо, литр]]+R20)+Январь[[#This Row],[Остаток топлива в баке на начало дня, литр]]-Январь[[#This Row],[Фактический расход топлива, литр]],\"\"),\"\")","v":369},{"$f":"ROUND((Январь[[#This Row],[Пройдено за день, км]]*0.01*$Y$2+Январь[[#This Row],[Расход топлива на работу спецоборудования, литр]]),3)+V20","v":32.718000000000004},{"$f":"ROUND(Январь[[#This Row],[Расход топлива по норме, литр]]/VLOOKUP(Январь[Дата],S$2:W$4,5),0)+T20","v":30},{"$f":"IFERROR(Январь[[#This Row],[Фактический расход топлива, литр]]-Январь[[#This Row],[Расход топлива по норме, литр]],\"\")","v":-2.7180000000000035},null,null,null,null,null,null,{"$f":"Январь[[#This Row],[Дата]]","v":"2018-01-14"}]
[{"$f":"IFERROR(DATEVALUE((COUNT($A$6:A20)+1)&$P$1&$I$4),\"\")","v":"2018-01-15"},"Никляев В.А.",209208,209221,{"$f":"Январь[[#This Row],[Показание одометра машины на конец дня, км]]-Январь[[#This Row],[Показание одометра машины на начало дня, км]]+S21","v":13},null,{"$f":"IF(Январь[[#This Row],[Дата]]=\"\",\"\",M20)","v":369},628,630,{"$f":"IF(U21=\"\",Январь[[#This Row],[Показание счетчика моточасов  спецоборудования на конец дня, м/ч]],Январь[[#This Row],[Показание счетчика моточасов  спецоборудования на конец дня, м/ч]]+1)-Январь[[#This Row],[Показание счетчика моточасов спецоборудования на начало дня, м/ч]]","v":2},1,{"$f":"IF(Январь[[#This Row],[Работа спецоборудования за день, м/ч]]=\"\",\"\",Январь[[#This Row],[Работа спецоборудования за день, м/ч]]*$Z$2)","v":12.100000000000001},{"$f":"IF(VLOOKUP(Январь[Дата],S$2:U$3,3),IFERROR(IF(R21=\"\",Январь[[#This Row],[Выдано топливо, литр]],Январь[[#This Row],[Выдано топливо, литр]]+R21)+Январь[[#This Row],[Остаток топлива в баке на начало дня, литр]]-Январь[[#This Row],[Фактический расход топлива, литр]],\"\"),\"\")","v":352},{"$f":"ROUND((Январь[[#This Row],[Пройдено за день, км]]*0.01*$Y$2+Январь[[#This Row],[Расход топлива на работу спецоборудования, литр]]),3)+V21","v":18.800999999999998},{"$f":"ROUND(Январь[[#This Row],[Расход топлива по норме, литр]]/VLOOKUP(Январь[Дата],S$2:W$4,5),0)+T21","v":17},{"$f":"IFERROR(Январь[[#This Row],[Фактический расход топлива, литр]]-Январь[[#This Row],[Расход топлива по норме, литр]],\"\")","v":-1.8009999999999984},null,null,null,null,null,null,{"$f":"Январь[[#This Row],[Дата]]","v":"2018-01-15"}]
[{"$f":"IFERROR(DATEVALUE((COUNT($A$6:A21)+1)&$P$1&$I$4),\"\")","v":"2018-01-16"},"Никляев В.А.",209221,209236,{"$f":"Январь[[#This Row],[Показание одометра машины на конец дня, км]]-Январь[[#This Row],[Показание одометра машины на начало дня, км]]+S22","v":15},null,{"$f":"IF(Январь[[#This Row],[Дата]]=\"\",\"\",M21)","v":352},630,633,{"$f":"IF(U22=\"\",Январь[[#This Row],[Показание счетчика моточасов  спецоборудования на конец дня, м/ч]],Январь[[#This Row],[Показание счетчика моточасов  спецоборудования на конец дня, м/ч]]+1)-Январь[[#This Row],[Показание счетчика моточасов спецоборудования на начало дня, м/ч]]","v":3},2,{"$f":"IF(Январь[[#This Row],[Работа спецоборудования за день, м/ч]]=\"\",\"\",Январь[[#This Row],[Работа спецоборудования за день, м/ч]]*$Z$2)","v":18.150000000000002},{"$f":"IF(VLOOKUP(Январь[Дата],S$2:U$3,3),IFERROR(IF(R22=\"\",Январь[[#This Row],[Выдано топливо, литр]],Январь[[#This Row],[Выдано топливо, литр]]+R22)+Январь[[#This Row],[Остаток топлива в баке на начало дня, литр]]-Январь[[#This Row],[Фактический расход топлива, литр]],\"\"),\"\")","v":328},{"$f":"ROUND((Январь[[#This Row],[Пройдено за день, км]]*0.01*$Y$2+Январь[[#This Row],[Расход топлива на работу спецоборудования, литр]]),3)+V22","v":25.882000000000001},{"$f":"ROUND(Январь[[#This Row],[Расход топлива по норме, литр]]/VLOOKUP(Январь[Дата],S$2:W$4,5),0)+T22","v":24},{"$f":"IFERROR(Январь[[#This Row],[Фактический расход топлива, литр]]-Январь[[#This Row],[Расход топлива по норме, литр]],\"\")","v":-1.8820000000000014},null,null,null,null,null,null,{"$f":"Январь[[#This Row],[Дата]]","v":"2018-01-16"}]
[{"$f":"IFERROR(DATEVALUE((COUNT($A$6:A22)+1)&$P$1&$I$4),\"\")","v":"2018-01-17"},"Никляев В.А.",209236,209489,{"$f":"Январь[[#This Row],[Показание одометра машины на конец дня, км]]-Январь[[#This Row],[Показание одометра машины на начало дня, км]]+S23","v":253},null,{"$f":"IF(Январь[[#This Row],[Дата]]=\"\",\"\",M22)","v":328},633,636,{"$f":"IF(U23=\"\",Январь[[#This Row],[Показание счетчика моточасов  спецоборудования на конец дня, м/ч]],Январь[[#This Row],[Показание счетчика моточасов  спецоборудования на конец дня, м/ч]]+1)-Январь[[#This Row],[Показание счетчика моточасов спецоборудования на начало дня, м/ч]]","v":3},3,{"$f":"IF(Январь[[#This Row],[Работа спецоборудования за день, м/ч]]=\"\",\"\",Январь[[#This Row],[Работа спецоборудования за день, м/ч]]*$Z$2)","v":18.150000000000002},{"$f":"IF(VLOOKUP(Январь[Дата],S$2:U$3,3),IFERROR(IF(R23=\"\",Январь[[#This Row],[Выдано топливо, литр]],Январь[[#This Row],[Выдано топливо, литр]]+R23)+Январь[[#This Row],[Остаток топлива в баке на начало дня, литр]]-Январь[[#This Row],[Фактический расход топлива, литр]],\"\"),\"\")","v":192},{"$f":"ROUND((Январь[[#This Row],[Пройдено за день, км]]*0.01*$Y$2+Январь[[#This Row],[Расход топлива на работу спецоборудования, литр]]),3)+V23","v":148.56100000000001},{"$f":"ROUND(Январь[[#This Row],[Расход топлива по норме, литр]]/VLOOKUP(Январь[Дата],S$2:W$4,5),0)+T23","v":136},{"$f":"IFERROR(Январь[[#This Row],[Фактический расход топлива, литр]]-Январь[[#This Row],[Расход топлива по норме, литр]],\"\")","v":-12.561000000000007},null,null,null,1,null,null,{"$f":"Январь[[#This Row],[Дата]]","v":"2018-01-17"}]
[{"$f":"IFERROR(DATEVALUE((COUNT($A$6:A23)+1)&$P$1&$I$4),\"\")","v":"2018-01-18"},"Никляев В.А.",209489,209516,{"$f":"Январь[[#This Row],[Показание одометра машины на конец дня, км]]-Январь[[#This Row],[Показание одометра машины на начало дня, км]]+S24","v":27},{"$f":"380-50","v":330},{"$f":"IF(Январь[[#This Row],[Дата]]=\"\",\"\",M23)","v":192},636,638,{"$f":"IF(U24=\"\",Январь[[#This Row],[Показание счетчика моточасов  спецоборудования на конец дня, м/ч]],Январь[[#This Row],[Показание счетчика моточасов  спецоборудования на конец дня, м/ч]]+1)-Январь[[#This Row],[Показание счетчика моточасов спецоборудования на начало дня, м/ч]]","v":2},1,{"$f":"IF(Январь[[#This Row],[Работа спецоборудования за день, м/ч]]=\"\",\"\",Январь[[#This Row],[Работа спецоборудования за день, м/ч]]*$Z$2)","v":12.100000000000001},{"$f":"IF(VLOOKUP(Январь[Дата],S$2:U$3,3),IFERROR(IF(R24=\"\",Январь[[#This Row],[Выдано топливо, литр]],Январь[[#This Row],[Выдано топливо, литр]]+R24)+Январь[[#This Row],[Остаток топлива в баке на начало дня, литр]]-Январь[[#This Row],[Фактический расход топлива, литр]],\"\"),\"\")","v":500},{"$f":"ROUND((Январь[[#This Row],[Пройдено за день, км]]*0.01*$Y$2+Январь[[#This Row],[Расход топлива на работу спецоборудования, литр]]),3)+V24","v":26.016999999999999},{"$f":"ROUND(Январь[[#This Row],[Расход топлива по норме, литр]]/VLOOKUP(Январь[Дата],S$2:W$4,5),0)+T24","v":22},{"$f":"IFERROR(Январь[[#This Row],[Фактический расход топлива, литр]]-Январь[[#This Row],[Расход топлива по норме, литр]],\"\")","v":-4.0169999999999995},null,null,null,-2,null,null,{"$f":"Январь[[#This Row],[Дата]]","v":"2018-01-18"}]
[{"$f":"IFERROR(DATEVALUE((COUNT($A$6:A24)+1)&$P$1&$I$4),\"\")","v":"2018-01-19"},"Никляев В.А.",209516,209618,{"$f":"Январь[[#This Row],[Показание одометра машины на конец дня, км]]-Январь[[#This Row],[Показание одометра машины на начало дня, км]]+S25","v":102},null,{"$f":"IF(Январь[[#This Row],[Дата]]=\"\",\"\",M24)","v":500},638,640,{"$f":"IF(U25=\"\",Январь[[#This Row],[Показание счетчика моточасов  спецоборудования на конец дня, м/ч]],Январь[[#This Row],[Показание счетчика моточасов  спецоборудования на конец дня, м/ч]]+1)-Январь[[#This Row],[Показание счетчика моточасов спецоборудования на начало дня, м/ч]]","v":2},1,{"$f":"IF(Январь[[#This Row],[Работа спецоборудования за день, м/ч]]=\"\",\"\",Январь[[#This Row],[Работа спецоборудования за день, м/ч]]*$Z$2)","v":12.100000000000001},{"$f":"IF(VLOOKUP(Январь[Дата],S$2:U$3,3),IFERROR(IF(R25=\"\",Январь[[#This Row],[Выдано топливо, литр]],Январь[[#This Row],[Выдано топливо, литр]]+R25)+Январь[[#This Row],[Остаток топлива в баке на начало дня, литр]]-Январь[[#This Row],[Фактический расход топлива, литр]],\"\"),\"\")","v":455},{"$f":"ROUND((Январь[[#This Row],[Пройдено за день, км]]*0.01*$Y$2+Январь[[#This Row],[Расход топлива на работу спецоборудования, литр]]),3)+V25","v":64.677000000000007},{"$f":"ROUND(Январь[[#This Row],[Расход топлива по норме, литр]]/VLOOKUP(Январь[Дата],S$2:W$4,5),0)+T25","v":45},{"$f":"IFERROR(Январь[[#This Row],[Фактический расход топлива, литр]]-Январь[[#This Row],[Расход топлива по норме, литр]],\"\")","v":-19.677000000000007},null,null,null,null,null,null,{"$f":"Январь[[#This Row],[Дата]]","v":"2018-01-19"}]
[{"$f":"IFERROR(DATEVALUE((COUNT($A$6:A25)+1)&$P$1&$I$4),\"\")","v":"2018-01-20"},null,209618,209618,{"$f":"Январь[[#This Row],[Показание одометра машины на конец дня, км]]-Январь[[#This Row],[Показание одометра машины на начало дня, км]]+S26","v":0},null,{"$f":"IF(Январь[[#This Row],[Дата]]=\"\",\"\",M25)","v":455},640,640,{"$f":"IF(U26=\"\",Январь[[#This Row],[Показание счетчика моточасов  спецоборудования на конец дня, м/ч]],Январь[[#This Row],[Показание счетчика моточасов  спецоборудования на конец дня, м/ч]]+1)-Январь[[#This Row],[Показание счетчика моточасов спецоборудования на начало дня, м/ч]]","v":0},0,{"$f":"IF(Январь[[#This Row],[Работа спецоборудования за день, м/ч]]=\"\",\"\",Январь[[#This Row],[Работа спецоборудования за день, м/ч]]*$Z$2)","v":0},{"$f":"IF(VLOOKUP(Январь[Дата],S$2:U$3,3),IFERROR(IF(R26=\"\",Январь[[#This Row],[Выдано топливо, литр]],Январь[[#This Row],[Выдано топливо, литр]]+R26)+Январь[[#This Row],[Остаток топлива в баке на начало дня, литр]]-Январь[[#This Row],[Фактический расход топлива, литр]],\"\"),\"\")","v":455},{"$f":"ROUND((Январь[[#This Row],[Пройдено за день, км]]*0.01*$Y$2+Январь[[#This Row],[Расход топлива на работу спецоборудования, литр]]),3)+V26","v":0},{"$f":"ROUND(Январь[[#This Row],[Расход топлива по норме, литр]]/VLOOKUP(Январь[Дата],S$2:W$4,5),0)+T26","v":0},{"$f":"IFERROR(Январь[[#This Row],[Фактический расход топлива, литр]]-Январь[[#This Row],[Расход топлива по норме, литр]],\"\")","v":0},null,null,null,null,null,null,{"$f":"Январь[[#This Row],[Дата]]","v":"2018-01-20"}]
[{"$f":"IFERROR(DATEVALUE((COUNT($A$6:A26)+1)&$P$1&$I$4),\"\")","v":"2018-01-21"},"Никляев В.А.",209618,209646,{"$f":"Январь[[#This Row],[Показание одометра машины на конец дня, км]]-Январь[[#This Row],[Показание одометра машины на начало дня, км]]+S27","v":28},null,{"$f":"IF(Январь[[#This Row],[Дата]]=\"\",\"\",M26)","v":455},640,643,{"$f":"IF(U27=\"\",Январь[[#This Row],[Показание счетчика моточасов  спецоборудования на конец дня, м/ч]],Январь[[#This Row],[Показание счетчика моточасов  спецоборудования на конец дня, м/ч]]+1)-Январь[[#This Row],[Показание счетчика моточасов спецоборудования на начало дня, м/ч]]","v":3},2,{"$f":"IF(Январь[[#This Row],[Работа спецоборудования за день, м/ч]]=\"\",\"\",Январь[[#This Row],[Работа спецоборудования за день, м/ч]]*$Z$2)","v":18.150000000000002},{"$f":"IF(VLOOKUP(Январь[Дата],S$2:U$3,3),IFERROR(IF(R27=\"\",Январь[[#This Row],[Выдано топливо, литр]],Январь[[#This Row],[Выдано топливо, литр]]+R27)+Январь[[#This Row],[Остаток топлива в баке на начало дня, литр]]-Январь[[#This Row],[Фактический расход топлива, литр]],\"\"),\"\")","v":432},{"$f":"ROUND((Январь[[#This Row],[Пройдено за день, км]]*0.01*$Y$2+Январь[[#This Row],[Расход топлива на работу спецоборудования, литр]]),3)+V27","v":32.582999999999998},{"$f":"ROUND(Январь[[#This Row],[Расход топлива по норме, литр]]/VLOOKUP(Январь[Дата],S$2:W$4,5),0)+T27","v":23},{"$f":"IFERROR(Январь[[#This Row],[Фактический расход топлива, литр]]-Январь[[#This Row],[Расход топлива по норме, литр]],\"\")","v":-9.5829999999999984},null,null,null,null,null,null,{"$f":"Январь[[#This Row],[Дата]]","v":"2018-01-21"}]
[{"$f":"IFERROR(DATEVALUE((COUNT($A$6:A27)+1)&$P$1&$I$4),\"\")","v":"2018-01-22"},"Никляев В.А.",209646,209695,{"$f":"Январь[[#This Row],[Показание одометра машины на конец дня, км]]-Январь[[#This Row],[Показание одометра машины на начало дня, км]]+S28","v":49},null,{"$f":"IF(Январь[[#This Row],[Дата]]=\"\",\"\",M27)","v":432},643,645,{"$f":"IF(U28=\"\",Январь[[#This Row],[Показание счетчика моточасов  спецоборудования на конец дня, м/ч]],Январь[[#This Row],[Показание счетчика моточасов  спецоборудования на конец дня, м/ч]]+1)-Январь[[#This Row],[Показание счетчика моточасов спецоборудования на начало дня, м/ч]]","v":2},1,{"$f":"IF(Январь[[#This Row],[Работа спецоборудования за день, м/ч]]=\"\",\"\",Январь[[#This Row],[Работа спецоборудования за день, м/ч]]*$Z$2)","v":12.100000000000001},{"$f":"IF(VLOOKUP(Январь[Дата],S$2:U$3,3),IFERROR(IF(R28=\"\",Январь[[#This Row],[Выдано топливо, литр]],Январь[[#This Row],[Выдано топливо, литр]]+R28)+Январь[[#This Row],[Остаток топлива в баке на начало дня, литр]]-Январь[[#This Row],[Фактический расход топлива, литр]],\"\"),\"\")","v":406},{"$f":"ROUND((Январь[[#This Row],[Пройдено за день, км]]*0.01*$Y$2+Январь[[#This Row],[Расход топлива на работу спецоборудования, литр]]),3)+V28","v":37.357999999999997},{"$f":"ROUND(Январь[[#This Row],[Расход топлива по норме, литр]]/VLOOKUP(Январь[Дата],S$2:W$4,5),0)+T28","v":26},{"$f":"IFERROR(Январь[[#This Row],[Фактический расход топлива, литр]]-Январь[[#This Row],[Расход топлива по норме, литр]],\"\")","v":-11.357999999999997},null,null,null,null,null,null,{"$f":"Январь[[#This Row],[Дата]]","v":"2018-01-22"}]
[{"$f":"IFERROR(DATEVALUE((COUNT($A$6:A28)+1)&$P$1&$I$4),\"\")","v":"2018-01-23"},"Никляев В.А.",209695,209719,{"$f":"Январь[[#This Row],[Показание одометра машины на конец дня, км]]-Январь[[#This Row],[Показание одометра машины на начало дня, км]]+S29","v":24},null,{"$f":"IF(Январь[[#This Row],[Дата]]=\"\",\"\",M28)","v":406},645,647,{"$f":"IF(U29=\"\",Январь[[#This Row],[Показание счетчика моточасов  спецоборудования на конец дня, м/ч]],Январь[[#This Row],[Показание счетчика моточасов  спецоборудования на конец дня, м/ч]]+1)-Январь[[#This Row],[Показание счетчика моточасов спецоборудования на начало дня, м/ч]]","v":2},1,{"$f":"IF(Январь[[#This Row],[Работа спецоборудования за день, м/ч]]=\"\",\"\",Январь[[#This Row],[Работа спецоборудования за день, м/ч]]*$Z$2)","v":12.100000000000001},{"$f":"IF(VLOOKUP(Январь[Дата],S$2:U$3,3),IFERROR(IF(R29=\"\",Январь[[#This Row],[Выдано топливо, литр]],Январь[[#This Row],[Выдано топливо, литр]]+R29)+Январь[[#This Row],[Остаток топлива в баке на начало дня, литр]]-Январь[[#This Row],[Фактический расход топлива, литр]],\"\"),\"\")","v":389},{"$f":"ROUND((Январь[[#This Row],[Пройдено за день, км]]*0.01*$Y$2+Январь[[#This Row],[Расход топлива на работу спецоборудования, литр]]),3)+V29","v":24.471},{"$f":"ROUND(Январь[[#This Row],[Расход топлива по норме, литр]]/VLOOKUP(Январь[Дата],S$2:W$4,5),0)+T29","v":17},{"$f":"IFERROR(Январь[[#This Row],[Фактический расход топлива, литр]]-Январь[[#This Row],[Расход топлива по норме, литр]],\"\")","v":-7.4710000000000001},null,null,null,null,null,null,{"$f":"Январь[[#This Row],[Дата]]","v":"2018-01-23"}]
[{"$f":"IFERROR(DATEVALUE((COUNT($A$6:A29)+1)&$P$1&$I$4),\"\")","v":"2018-01-24"},"Никляев В.А.",209719,210061,{"$f":"Январь[[#This Row],[Показание одометра машины на конец дня, км]]-Январь[[#This Row],[Показание одометра машины на начало дня, км]]+S30","v":342},null,{"$f":"IF(Январь[[#This Row],[Дата]]=\"\",\"\",M29)","v":389},647,651,{"$f":"IF(U30=\"\",Январь[[#This Row],[Показание счетчика моточасов  спецоборудования на конец дня, м/ч]],Январь[[#This Row],[Показание счетчика моточасов  спецоборудования на конец дня, м/ч]]+1)-Январь[[#This Row],[Показание счетчика моточасов спецоборудования на начало дня, м/ч]]","v":4},2,{"$f":"IF(Январь[[#This Row],[Работа спецоборудования за день, м/ч]]=\"\",\"\",Январь[[#This Row],[Работа спецоборудования за день, м/ч]]*$Z$2)","v":24.200000000000003},{"$f":"IF(VLOOKUP(Январь[Дата],S$2:U$3,3),IFERROR(IF(R30=\"\",Январь[[#This Row],[Выдано топливо, литр]],Январь[[#This Row],[Выдано топливо, литр]]+R30)+Январь[[#This Row],[Остаток топлива в баке на начало дня, литр]]-Январь[[#This Row],[Фактический расход топлива, литр]],\"\"),\"\")","v":250},{"$f":"ROUND((Январь[[#This Row],[Пройдено за день, км]]*0.01*$Y$2+Январь[[#This Row],[Расход топлива на работу спецоборудования, литр]]),3)+V30","v":200.48699999999999},{"$f":"ROUND(Январь[[#This Row],[Расход топлива по норме, литр]]/VLOOKUP(Январь[Дата],S$2:W$4,5),0)+T30","v":139},{"$f":"IFERROR(Январь[[#This Row],[Фактический расход топлива, литр]]-Январь[[#This Row],[Расход топлива по норме, литр]],\"\")","v":-61.486999999999995},null,null,null,null,null,null,{"$f":"Январь[[#This Row],[Дата]]","v":"2018-01-24"}]
[{"$f":"IFERROR(DATEVALUE((COUNT($A$6:A30)+1)&$P$1&$I$4),\"\")","v":"2018-01-25"},"Никляев В.А.",210061,210300,{"$f":"Январь[[#This Row],[Показание одометра машины на конец дня, км]]-Январь[[#This Row],[Показание одометра машины на начало дня, км]]+S31","v":239},300,{"$f":"IF(Январь[[#This Row],[Дата]]=\"\",\"\",M30)","v":250},651,656,{"$f":"IF(U31=\"\",Январь[[#This Row],[Показание счетчика моточасов  спецоборудования на конец дня, м/ч]],Январь[[#This Row],[Показание счетчика моточасов  спецоборудования на конец дня, м/ч]]+1)-Январь[[#This Row],[Показание счетчика моточасов спецоборудования на начало дня, м/ч]]","v":5},3,{"$f":"IF(Январь[[#This Row],[Работа спецоборудования за день, м/ч]]=\"\",\"\",Январь[[#This Row],[Работа спецоборудования за день, м/ч]]*$Z$2)","v":30.250000000000004},{"$f":"IF(VLOOKUP(Январь[Дата],S$2:U$3,3),IFERROR(IF(R31=\"\",Январь[[#This Row],[Выдано топливо, литр]],Январь[[#This Row],[Выдано топливо, литр]]+R31)+Январь[[#This Row],[Остаток топлива в баке на начало дня, литр]]-Январь[[#This Row],[Фактический расход топлива, литр]],\"\"),\"\")","v":444},{"$f":"ROUND((Январь[[#This Row],[Пройдено за день, км]]*0.01*$Y$2+Январь[[#This Row],[Расход топлива на работу спецоборудования, литр]]),3)+V31","v":153.44499999999999},{"$f":"ROUND(Январь[[#This Row],[Расход топлива по норме, литр]]/VLOOKUP(Январь[Дата],S$2:W$4,5),0)+T31","v":106},{"$f":"IFERROR(Январь[[#This Row],[Фактический расход топлива, литр]]-Январь[[#This Row],[Расход топлива по норме, литр]],\"\")","v":-47.444999999999993},null,null,null,null,null,null,{"$f":"Январь[[#This Row],[Дата]]","v":"2018-01-25"}]
[{"$f":"IFERROR(DATEVALUE((COUNT($A$6:A31)+1)&$P$1&$I$4),\"\")","v":"2018-01-26"},"Никляев В.А.",210300,210327,{"$f":"Январь[[#This Row],[Показание одометра машины на конец дня, км]]-Январь[[#This Row],[Показание одометра машины на начало дня, км]]+S32","v":27},null,{"$f":"IF(Январь[[#This Row],[Дата]]=\"\",\"\",M31)","v":444},656,658,{"$f":"IF(U32=\"\",Январь[[#This Row],[Показание счетчика моточасов  спецоборудования на конец дня, м/ч]],Январь[[#This Row],[Показание счетчика моточасов  спецоборудования на конец дня, м/ч]]+1)-Январь[[#This Row],[Показание счетчика моточасов спецоборудования на начало дня, м/ч]]","v":2},1,{"$f":"IF(Январь[[#This Row],[Работа спецоборудования за день, м/ч]]=\"\",\"\",Январь[[#This Row],[Работа спецоборудования за день, м/ч]]*$Z$2)","v":12.100000000000001},{"$f":"IF(VLOOKUP(Январь[Дата],S$2:U$3,3),IFERROR(IF(R32=\"\",Январь[[#This Row],[Выдано топливо, литр]],Январь[[#This Row],[Выдано топливо, литр]]+R32)+Январь[[#This Row],[Остаток топлива в баке на начало дня, литр]]-Январь[[#This Row],[Фактический расход топлива, литр]],\"\"),\"\")","v":426},{"$f":"ROUND((Январь[[#This Row],[Пройдено за день, км]]*0.01*$Y$2+Январь[[#This Row],[Расход топлива на работу спецоборудования, литр]]),3)+V32","v":26.016999999999999},{"$f":"ROUND(Январь[[#This Row],[Расход топлива по норме, литр]]/VLOOKUP(Январь[Дата],S$2:W$4,5),0)+T32","v":18},{"$f":"IFERROR(Январь[[#This Row],[Фактический расход топлива, литр]]-Январь[[#This Row],[Расход топлива по норме, литр]],\"\")","v":-8.0169999999999995},null,null,null,null,null,null,{"$f":"Январь[[#This Row],[Дата]]","v":"2018-01-26"}]
[{"$f":"IFERROR(DATEVALUE((COUNT($A$6:A32)+1)&$P$1&$I$4),\"\")","v":"2018-01-27"},"Никляев В.А.",210327,210354,{"$f":"Январь[[#This Row],[Показание одометра машины на конец дня, км]]-Январь[[#This Row],[Показание одометра машины на начало дня, км]]+S33","v":27},null,{"$f":"IF(Январь[[#This Row],[Дата]]=\"\",\"\",M32)","v":426},658,660,{"$f":"IF(U33=\"\",Январь[[#This Row],[Показание счетчика моточасов  спецоборудования на конец дня, м/ч]],Январь[[#This Row],[Показание счетчика моточасов  спецоборудования на конец дня, м/ч]]+1)-Январь[[#This Row],[Показание счетчика моточасов спецоборудования на начало дня, м/ч]]","v":2},1,{"$f":"IF(Январь[[#This Row],[Работа спецоборудования за день, м/ч]]=\"\",\"\",Январь[[#This Row],[Работа спецоборудования за день, м/ч]]*$Z$2)","v":12.100000000000001},{"$f":"IF(VLOOKUP(Январь[Дата],S$2:U$3,3),IFERROR(IF(R33=\"\",Январь[[#This Row],[Выдано топливо, литр]],Январь[[#This Row],[Выдано топливо, литр]]+R33)+Январь[[#This Row],[Остаток топлива в баке на начало дня, литр]]-Январь[[#This Row],[Фактический расход топлива, литр]],\"\"),\"\")","v":408},{"$f":"ROUND((Январь[[#This Row],[Пройдено за день, км]]*0.01*$Y$2+Январь[[#This Row],[Расход топлива на работу спецоборудования, литр]]),3)+V33","v":26.016999999999999},{"$f":"ROUND(Январь[[#This Row],[Расход топлива по норме, литр]]/VLOOKUP(Январь[Дата],S$2:W$4,5),0)+T33","v":18},{"$f":"IFERROR(Январь[[#This Row],[Фактический расход топлива, литр]]-Январь[[#This Row],[Расход топлива по норме, литр]],\"\")","v":-8.0169999999999995},null,null,null,null,null,null,{"$f":"Январь[[#This Row],[Дата]]","v":"2018-01-27"}]
[{"$f":"IFERROR(DATEVALUE((COUNT($A$6:A33)+1)&$P$1&$I$4),\"\")","v":"2018-01-28"},"Никляев В.А.",210354,210448,{"$f":"Январь[[#This Row],[Показание одометра машины на конец дня, км]]-Январь[[#This Row],[Показание одометра машины на начало дня, км]]+S34","v":94},null,{"$f":"IF(Январь[[#This Row],[Дата]]=\"\",\"\",M33)","v":408},660,665,{"$f":"IF(U34=\"\",Январь[[#This Row],[Показание счетчика моточасов  спецоборудования на конец дня, м/ч]],Январь[[#This Row],[Показание счетчика моточасов  спецоборудования на конец дня, м/ч]]+1)-Январь[[#This Row],[Показание счетчика моточасов спецоборудования на начало дня, м/ч]]","v":5},3,{"$f":"IF(Январь[[#This Row],[Работа спецоборудования за день, м/ч]]=\"\",\"\",Январь[[#This Row],[Работа спецоборудования за день, м/ч]]*$Z$2)","v":30.250000000000004},{"$f":"IF(VLOOKUP(Январь[Дата],S$2:U$3,3),IFERROR(IF(R34=\"\",Январь[[#This Row],[Выдано топливо, литр]],Январь[[#This Row],[Выдано топливо, литр]]+R34)+Январь[[#This Row],[Остаток топлива в баке на начало дня, литр]]-Январь[[#This Row],[Фактический расход топлива, литр]],\"\"),\"\")","v":353},{"$f":"ROUND((Январь[[#This Row],[Пройдено за день, км]]*0.01*$Y$2+Январь[[#This Row],[Расход топлива на работу спецоборудования, литр]]),3)+V34","v":78.703000000000003},{"$f":"ROUND(Январь[[#This Row],[Расход топлива по норме, литр]]/VLOOKUP(Январь[Дата],S$2:W$4,5),0)+T34","v":55},{"$f":"IFERROR(Январь[[#This Row],[Фактический расход топлива, литр]]-Январь[[#This Row],[Расход топлива по норме, литр]],\"\")","v":-23.703000000000003},null,null,null,null,null,null,{"$f":"Январь[[#This Row],[Дата]]","v":"2018-01-28"}]
[{"$f":"IFERROR(DATEVALUE((COUNT($A$6:A34)+1)&$P$1&$I$4),\"\")","v":"2018-01-29"},"Никляев В.А.",210448,210582,{"$f":"Январь[[#This Row],[Показание одометра машины на конец дня, км]]-Январь[[#This Row],[Показание одометра машины на начало дня, км]]+S35","v":134},{"$f":"370-168","v":202},{"$f":"IF(Январь[[#This Row],[Дата]]=\"\",\"\",M34)","v":353},665,667,{"$f":"IF(U35=\"\",Январь[[#This Row],[Показание счетчика моточасов  спецоборудования на конец дня, м/ч]],Январь[[#This Row],[Показание счетчика моточасов  спецоборудования на конец дня, м/ч]]+1)-Январь[[#This Row],[Показание счетчика моточасов спецоборудования на начало дня, м/ч]]","v":2},3,{"$f":"IF(Январь[[#This Row],[Работа спецоборудования за день, м/ч]]=\"\",\"\",Январь[[#This Row],[Работа спецоборудования за день, м/ч]]*$Z$2)","v":12.100000000000001},{"$f":"IF(VLOOKUP(Январь[Дата],S$2:U$3,3),IFERROR(IF(R35=\"\",Январь[[#This Row],[Выдано топливо, литр]],Январь[[#This Row],[Выдано топливо, литр]]+R35)+Январь[[#This Row],[Остаток топлива в баке на начало дня, литр]]-Январь[[#This Row],[Фактический расход топлива, литр]],\"\"),\"\")","v":499},{"$f":"ROUND((Январь[[#This Row],[Пройдено за день, км]]*0.01*$Y$2+Январь[[#This Row],[Расход топлива на работу спецоборудования, литр]]),3)+V35","v":81.171999999999997},{"$f":"ROUND(Январь[[#This Row],[Расход топлива по норме, литр]]/VLOOKUP(Январь[Дата],S$2:W$4,5),0)+T35","v":56},{"$f":"IFERROR(Январь[[#This Row],[Фактический расход топлива, литр]]-Январь[[#This Row],[Расход топлива по норме, литр]],\"\")","v":-25.171999999999997},null,null,null,null,null,null,{"$f":"Январь[[#This Row],[Дата]]","v":"2018-01-29"}]
[{"$f":"IFERROR(DATEVALUE((COUNT($A$6:A35)+1)&$P$1&$I$4),\"\")","v":"2018-01-30"},"Никляев В.А.",210582,210696,{"$f":"Январь[[#This Row],[Показание одометра машины на конец дня, км]]-Январь[[#This Row],[Показание одометра машины на начало дня, км]]+S36","v":126},null,{"$f":"IF(Январь[[#This Row],[Дата]]=\"\",\"\",M35)","v":499},667,670,{"$f":"IF(U36=\"\",Январь[[#This Row],[Показание счетчика моточасов  спецоборудования на конец дня, м/ч]],Январь[[#This Row],[Показание счетчика моточасов  спецоборудования на конец дня, м/ч]]+1)-Январь[[#This Row],[Показание счетчика моточасов спецоборудования на начало дня, м/ч]]","v":3},2,{"$f":"IF(Январь[[#This Row],[Работа спецоборудования за день, м/ч]]=\"\",\"\",Январь[[#This Row],[Работа спецоборудования за день, м/ч]]*$Z$2)","v":18.150000000000002},{"$f":"IF(VLOOKUP(Январь[Дата],S$2:U$3,3),IFERROR(IF(R36=\"\",Январь[[#This Row],[Выдано топливо, литр]],Январь[[#This Row],[Выдано топливо, литр]]+R36)+Январь[[#This Row],[Остаток топлива в баке на начало дня, литр]]-Январь[[#This Row],[Фактический расход топлива, литр]],\"\"),\"\")","v":406},{"$f":"ROUND((Январь[[#This Row],[Пройдено за день, км]]*0.01*$Y$2+Январь[[#This Row],[Расход топлива на работу спецоборудования, литр]]),3)+V36","v":83.097999999999999},{"$f":"ROUND(Январь[[#This Row],[Расход топлива по норме, литр]]/VLOOKUP(Январь[Дата],S$2:W$4,5),0)+T36","v":93},{"$f":"IFERROR(Январь[[#This Row],[Фактический расход топлива, литр]]-Январь[[#This Row],[Расход топлива по норме, литр]],\"\")","v":9.902000000000001},null,null,12,1,null,null,{"$f":"Январь[[#This Row],[Дата]]","v":"2018-01-30"}]
[{"$f":"IFERROR(DATEVALUE((COUNT($A$6:A36)+1)&$P$1&$I$4),\"\")","v":"2018-01-31"},"Никляев В.А.",210696,210723,{"$f":"Январь[[#This Row],[Показание одометра машины на конец дня, км]]-Январь[[#This Row],[Показание одометра машины на начало дня, км]]+S37","v":27},250,{"$f":"IF(Январь[[#This Row],[Дата]]=\"\",\"\",M36)","v":406},670,671,{"$f":"IF(U37=\"\",Январь[[#This Row],[Показание счетчика моточасов  спецоборудования на конец дня, м/ч]],Январь[[#This Row],[Показание счетчика моточасов  спецоборудования на конец дня, м/ч]]+1)-Январь[[#This Row],[Показание счетчика моточасов спецоборудования на начало дня, м/ч]]","v":1},1,{"$f":"IF(Январь[[#This Row],[Работа спецоборудования за день, м/ч]]=\"\",\"\",Январь[[#This Row],[Работа спецоборудования за день, м/ч]]*$Z$2)","v":6.0500000000000007},{"$f":"IF(VLOOKUP(Январь[Дата],S$2:U$3,3),IFERROR(IF(R37=\"\",Январь[[#This Row],[Выдано топливо, литр]],Январь[[#This Row],[Выдано топливо, литр]]+R37)+Январь[[#This Row],[Остаток топлива в баке на начало дня, литр]]-Январь[[#This Row],[Фактический расход топлива, литр]],\"\"),\"\")","v":635},{"$f":"ROUND((Январь[[#This Row],[Пройдено за день, км]]*0.01*$Y$2+Январь[[#This Row],[Расход топлива на работу спецоборудования, литр]]),3)+V37","v":19.97},{"$f":"ROUND(Январь[[#This Row],[Расход топлива по норме, литр]]/VLOOKUP(Январь[Дата],S$2:W$4,5),0)+T37","v":21},{"$f":"IFERROR(Январь[[#This Row],[Фактический расход топлива, литр]]-Январь[[#This Row],[Расход топлива по норме, литр]],\"\")","v":1.0300000000000011},null,null,null,-1,null,3.0000000000000001E-3,{"$f":"Январь[[#This Row],[Дата]]","v":"2018-01-31"}]
["Итог",null,null,null,{"$f":"SUBTOTAL(109,Январь[Пройдено за день, км])","v":1711},{"$f":"SUBTOTAL(109,Январь[Выдано топливо, литр])","v":1082},null,null,null,{"$f":"SUBTOTAL(109,Январь[Работа спецоборудования за день, м/ч])","v":51},{"$f":"SUBTOTAL(109,Январь[Количество ходок])","v":33},{"$f":"SUBTOTAL(109,Январь[Расход топлива на работу спецоборудования, литр])","v":308.55},null,{"$f":"SUBTOTAL(109,Январь[Расход топлива по норме, литр])","v":1190.5030000000002},{"$f":"SUBTOTAL(109,Январь[Фактический расход топлива, литр])","v":947},{"$f":"SUBTOTAL(109,Январь[Отклонение от нормы (Перерасход(+), экономия(-)), литр])","v":-243.50300000000001}]
[null,null,null,null,null,null,null,null,null,null,{"$f":"SUMIFS(K7:K37,A7:A37,\">=\"&$S$2,A7:A37,\"<=\"&$T$2)","v":12}]
[null,null,null,null,null,null,null,null,null,null,{"$f":"SUMIFS(K7:K37,A7:A37,\">=\"&$S$3,A7:A37,\"<=\"&$T$3)","v":18},null,null,null,{"$f":"ROUND(N36/Февраль!W2,0)+T36","v":93}]
[null,null,null,null,null,null,null,null,null,null,null,null,null,null,{"$f":"ROUND(N37/Февраль!W2,0)+T37","v":21}]

{"sheet":"Февраль","index":1,"n_rows":40,"n_cols":26,"rows_kept":40,"cut":false,"hidden":false,"merged":[[1,0,1,15],[2,0,2,15],[3,14,3,15]]}
[null,null,null,null,null,null,null,null,null,null,null,null,null,null,null,"Февраль",null,null,null,-3,null,null,null,"Экономия","Базовая норма расхода на 100 км","Базовая норма расхода на 1 мото/час"]
["Общество с ограниченной ответственностью  \"Втормет Царицыно\"",null,null,null,null,null,null,null,null,null,null,null,null,null,null,null,null,"1-я половина",{"$f":"INDIRECT(TEXT(A7-1,\"ММММ\")&\"!t3\")+1","v":"2018-01-30"},"2018-02-15",{"$f":"ТС!E5","v":500},{"$f":"SUMIFS(Февраль[Выдано топливо, литр],Февраль[Дата],\">=\"&$S$2,Февраль[Дата],\"<=\"&$T$2)+IF(MONTH(T2)<>MONTH(S2),INDIRECT(TEXT(A7-1,\"ММММ\")&\"!F38\")-SUM(INDIRECT(TEXT(A7-1,\"ММММ\")&\"!V3:V2\")))","v":870},{"$f":"IF(V2=0,0,(SUMIFS(N7:N37,A7:A37,\">=\"&S2,A7:A37,\"<=\"&T2)+SUMIFS(INDIRECT(TEXT(A7-1,\"ММММ\")&\"!N7:N37\"),INDIRECT(TEXT(A7-1,\"ММММ\")&\"!A7:A37\"),\">=\"&S2))/(V2-U2+IF(MONTH(T2)=MONTH(S2),G7,INDEX(INDIRECT(TEXT(A7-1,\"ММММ\")&\"!G7:G37\"),DAY(S2)))))","v":0.90583314154200212},{"$f":"SUMIFS(Февраль[Отклонение от нормы (Перерасход(+), экономия(-)), литр],Февраль[Дата],\">=\"&$S$2,Февраль[Дата],\"<=\"&$T$2)","v":73.899000000000001},{"$f":"IF(Y4=\"Зима\",VLOOKUP(Z4,Расчет[[Номер гос.регистрации / Заводской номер]:[Итога норма а/м \"ЛЕТО\"]],8,FALSE),VLOOKUP(Z4,Расчет[[Номер гос.регистрации / Заводской номер]:[Итога норма а/м \"ЛЕТО\"]],9,FALSE))","v":51.546000000000006},{"$f":"IF(Y4=\"Зима\",VLOOKUP(Z4,Расчет[[Номер гос.регистрации / Заводской номер]:[Итога норма а/м \"ЛЕТО\"]],13,FALSE),VLOOKUP(Z4,Расчет[[Номер гос.регистрации / Заводской номер]:[Итога норма а/м \"ЛЕТО\"]],14,FALSE))","v":6.0500000000000007}]
["Отчет водителя ломовоза с манипулятором",null,null,null,null,null,null,null,null,null,null,null,null,null,null,null,null,"2-я половина",{"$f":"T2+1","v":"2018-02-16"},{"$f":"INDEX(Февраль[Дата],COUNT(Февраль[Дата]))-T1","v":"2018-03-03"},{"$f":"ТС!E6","v":500},{"$f":"SUMIFS(Февраль[Выдано топливо, литр],Февраль[Дата],\">=\"&$S$3,Февраль[Дата],\"<=\"&$T$3)+IF(MONTH(T3)<>MONTH(S3),SUMIFS(INDIRECT(TEXT(T3,\"ММММ\")&\"[Выдано топливо, литр]\"),INDIRECT(TEXT(T3,\"ММММ\")&\"[Дата]\"),\">=\"&$S$3,INDIRECT(TEXT(T3,\"ММММ\")&\"[Дата]\"),\"<=\"&$T$3))","v":450},{"$f":"IF(V3=0,0,(SUMIFS(N7:N37,A7:A37,\">=\"&S3,A7:A37,\"<=\"&T3)+SUMIFS(INDIRECT(TEXT(A7-1,\"ММММ\")&\"!N7:N37\"),INDIRECT(TEXT(A7-1,\"ММММ\")&\"!A7:A37\"),\">=\"&S3))/(V3-U3+IF(MONTH(T3)=MONTH(S3),G7,INDEX(INDIRECT(TEXT(A7-1,\"ММММ\")&\"!G7:G37\"),DAY(S3)))))","v":1.0857218543046359},{"$f":"SUMIFS(Февраль[Отклонение от нормы (Перерасход(+), экономия(-)), литр],Февраль[Дата],\">=\"&$S$3,Февраль[Дата],\"<=\"&$T$3)","v":-25.887999999999991}]
[null,null,null,null,null,null,null,"за",2018,null,null,null,null,null,"т056вв 197",null,null,null,{"$f":"T3+1","v":"2018-03-04"},null,null,null,{"$f":"IFERROR(INDIRECT(TEXT(A7+40,\"ММММ\")&\"!W2\"),)","v":1.0292209677419355},null,"Зима","Норма 1"]
[]
["Дата","ФИО водителя","Показание одометра машины на начало дня, км","Показание одометра машины на конец дня, км","Пройдено за день, км","Выдано топливо, литр","Остаток топлива в баке на начало дня, литр","Показание счетчика моточасов спецоборудования на начало дня, м/ч","Показание счетчика моточасов  спецоборудования на конец дня, м/ч","Работа спецоборудования за день, м/ч","Количество ходок","Расход топлива на работу спецоборудования, литр","Остаток топлива в баке на конец дня, литр","Расход топлива по норме, литр","Фактический расход топлива, литр","Отклонение от нормы (Перерасход(+), экономия(-)), литр",null,"Выдано топливо, литр","Пройдено за день, км","Фактический расход топлива, литр","Работа спецоборудования за день, м/ч","Расход топлива по норме, литр","Дата"]
[{"$f":"IFERROR(DATEVALUE((COUNT($A$6:A6)+1)&$P$1&$I$4),\"\")","v":"2018-02-01"},null,{"$f":"INDEX(Январь!D7:D37,COUNT(Январь!D7:D37))","v":210723},210723,{"$f":"IFERROR(Февраль[[#This Row],[Показание одометра машины на конец дня, км]]-Февраль[[#This Row],[Показание одометра машины на начало дня, км]]+S7,\"\")","v":0},null,{"$f":"U2","v":500},{"$f":"INDEX(Январь!I7:I37,COUNT(Январь!I7:I37))","v":671},671,{"$f":"IFERROR(IF(U7=\"\",Февраль[[#This Row],[Показание счетчика моточасов  спецоборудования на конец дня, м/ч]],Февраль[[#This Row],[Показание счетчика моточасов  спецоборудования на конец дня, м/ч]]+1)-Февраль[[#This Row],[Показание счетчика моточасов спецоборудования на начало дня, м/ч]],\"\")","v":0},0,{"$f":"IF(Февраль[[#This Row],[Работа спецоборудования за день, м/ч]]=\"\",\"\",Февраль[[#This Row],[Работа спецоборудования за день, м/ч]]*$Z$2)","v":0},{"$f":"IFERROR(IF(VLOOKUP(Февраль[Дата],S$2:U$3,3),IFERROR(IF(R7=\"\",Февраль[[#This Row],[Выдано топливо, литр]],Февраль[[#This Row],[Выдано топливо, литр]]+R7)+Февраль[[#This Row],[Остаток топлива в баке на начало дня, литр]]-Февраль[[#This Row],[Фактический расход топлива, литр]],\"\"),\"\"),\"\")","v":500},{"$f":"IFERROR(ROUND((Февраль[[#This Row],[Пройдено за день, км]]*0.01*$Y$2+Февраль[[#This Row],[Расход топлива на работу спецоборудования, литр]]),3)+V7,\"\")","v":0},{"$f":"IFERROR(IF(Февраль[[#Totals],[Выдано топливо, литр]]=0,0,(ROUND(Февраль[[#This Row],[Расход топлива по норме, литр]]/IF(DAY(Февраль[Дата])<=18,$W$2,$W$3),0)))+T7,\"\")","v":0},{"$f":"IFERROR(Февраль[[#This Row],[Фактический расход топлива, литр]]-Февраль[[#This Row],[Расход топлива по норме, литр]],\"\")","v":0},null,null,null,null,null,null,{"$f":"Февраль[[#This Row],[Дата]]","v":"2018-02-01"}]
[{"$f":"IFERROR(DATEVALUE((COUNT($A$6:A7)+1)&$P$1&$I$4),\"\")","v":"2018-02-02"},"Никляев В.А.",{"$f":"IF(Февраль[[#This Row],[Дата]]=\"\",\"\",D7)","v":210723},210735,{"$f":"IFERROR(Февраль[[#This Row],[Показание одометра машины на конец дня, км]]-Февраль[[#This Row],[Показание одометра машины на начало дня, км]]+S8,\"\")","v":12},null,{"$f":"IF(Февраль[[#This Row],[Дата]]=\"\",\"\",M7)","v":500},{"$f":"IF(Февраль[[#This Row],[Дата]]=\"\",\"\",I7)","v":671},672,{"$f":"IFERROR(IF(U8=\"\",Февраль[[#This Row],[Показание счетчика моточасов  спецоборудования на конец дня, м/ч]],Февраль[[#This Row],[Показание счетчика моточасов  спецоборудования на конец дня, м/ч]]+1)-Февраль[[#This Row],[Показание счетчика моточасов спецоборудования на начало дня, м/ч]],\"\")","v":1},1,{"$f":"IF(Февраль[[#This Row],[Работа спецоборудования за день, м/ч]]=\"\",\"\",Февраль[[#This Row],[Работа спецоборудования за день, м/ч]]*$Z$2)","v":6.0500000000000007},{"$f":"IFERROR(IF(VLOOKUP(Февраль[Дата],S$2:U$3,3),IFERROR(IF(R8=\"\",Февраль[[#This Row],[Выдано топливо, литр]],Февраль[[#This Row],[Выдано топливо, литр]]+R8)+Февраль[[#This Row],[Остаток топлива в баке на начало дня, литр]]-Февраль[[#This Row],[Фактический расход топлива, литр]],\"\"),\"\"),\"\")","v":486},{"$f":"IFERROR(ROUND((Февраль[[#This Row],[Пройдено за день, км]]*0.01*$Y$2+Февраль[[#This Row],[Расход топлива на работу спецоборудования, литр]]),3)+V8,\"\")","v":12.236000000000001},{"$f":"IFERROR(IF(Февраль[[#Totals],[Выдано топливо, литр]]=0,0,(ROUND(Февраль[[#This Row],[Расход топлива по норме, литр]]/IF(DAY(Февраль[Дата])<=18,$W$2,$W$3),0)))+T8,\"\")","v":14},{"$f":"IFERROR(Февраль[[#This Row],[Фактический расход топлива, литр]]-Февраль[[#This Row],[Расход топлива по норме, литр]],\"\")","v":1.7639999999999993},null,null,null,null,null,null,{"$f":"Февраль[[#This Row],[Дата]]","v":"2018-02-02"}]
[{"$f":"IFERROR(DATEVALUE((COUNT($A$6:A8)+1)&$P$1&$I$4),\"\")","v":"2018-02-03"},"Никляев В.А.",{"$f":"IF(Февраль[[#This Row],[Дата]]=\"\",\"\",D8)","v":210735},210777,{"$f":"IFERROR(Февраль[[#This Row],[Показание одометра машины на конец дня, км]]-Февраль[[#This Row],[Показание одометра машины на начало дня, км]]+S9,\"\")","v":42},null,{"$f":"IF(Февраль[[#This Row],[Дата]]=\"\",\"\",M8)","v":486},{"$f":"IF(Февраль[[#This Row],[Дата]]=\"\",\"\",I8)","v":672},674,{"$f":"IFERROR(IF(U9=\"\",Февраль[[#This Row],[Показание счетчика моточасов  спецоборудования на конец дня, м/ч]],Февраль[[#This Row],[Показание счетчика моточасов  спецоборудования на конец дня, м/ч]]+1)-Февраль[[#This Row],[Показание счетчика моточасов спецоборудования на начало дня, м/ч]],\"\")","v":2},1,{"$f":"IF(Февраль[[#This Row],[Работа спецоборудования за день, м/ч]]=\"\",\"\",Февраль[[#This Row],[Работа спецоборудования за день, м/ч]]*$Z$2)","v":12.100000000000001},{"$f":"IFERROR(IF(VLOOKUP(Февраль[Дата],S$2:U$3,3),IFERROR(IF(R9=\"\",Февраль[[#This Row],[Выдано топливо, литр]],Февраль[[#This Row],[Выдано топливо, литр]]+R9)+Февраль[[#This Row],[Остаток топлива в баке на начало дня, литр]]-Февраль[[#This Row],[Фактический расход топлива, литр]],\"\"),\"\"),\"\")","v":449},{"$f":"IFERROR(ROUND((Февраль[[#This Row],[Пройдено за день, км]]*0.01*$Y$2+Февраль[[#This Row],[Расход топлива на работу спецоборудования, литр]]),3)+V9,\"\")","v":33.748000000000005},{"$f":"IFERROR(IF(Февраль[[#Totals],[Выдано топливо, литр]]=0,0,(ROUND(Февраль[[#This Row],[Расход топлива по норме, литр]]/IF(DAY(Февраль[Дата])<=18,$W$2,$W$3),0)))+T9,\"\")","v":37},{"$f":"IFERROR(Февраль[[#This Row],[Фактический расход топлива, литр]]-Февраль[[#This Row],[Расход топлива по норме, литр]],\"\")","v":3.2519999999999953},null,null,null,null,null,-1E-3,{"$f":"Февраль[[#This Row],[Дата]]","v":"2018-02-03"}]
[{"$f":"IFERROR(DATEVALUE((COUNT($A$6:A9)+1)&$P$1&$I$4),\"\")","v":"2018-02-04"},"Никляев В.А.",{"$f":"IF(Февраль[[#This Row],[Дата]]=\"\",\"\",D9)","v":210777},210864,{"$f":"IFERROR(Февраль[[#This Row],[Показание одометра машины на конец дня, км]]-Февраль[[#This Row],[Показание одометра машины на начало дня, км]]+S10,\"\")","v":87},null,{"$f":"IF(Февраль[[#This Row],[Дата]]=\"\",\"\",M9)","v":449},{"$f":"IF(Февраль[[#This Row],[Дата]]=\"\",\"\",I9)","v":674},676,{"$f":"IFERROR(IF(U10=\"\",Февраль[[#This Row],[Показание счетчика моточасов  спецоборудования на конец дня, м/ч]],Февраль[[#This Row],[Показание счетчика моточасов  спецоборудования на конец дня, м/ч]]+1)-Февраль[[#This Row],[Показание счетчика моточасов спецоборудования на начало дня, м/ч]],\"\")","v":2},2,{"$f":"IF(Февраль[[#This Row],[Работа спецоборудования за день, м/ч]]=\"\",\"\",Февраль[[#This Row],[Работа спецоборудования за день, м/ч]]*$Z$2)","v":12.100000000000001},{"$f":"IFERROR(IF(VLOOKUP(Февраль[Дата],S$2:U$3,3),IFERROR(IF(R10=\"\",Февраль[[#This Row],[Выдано топливо, литр]],Февраль[[#This Row],[Выдано топливо, литр]]+R10)+Февраль[[#This Row],[Остаток топлива в баке на начало дня, литр]]-Февраль[[#This Row],[Фактический расход топлива, литр]],\"\"),\"\"),\"\")","v":386},{"$f":"IFERROR(ROUND((Февраль[[#This Row],[Пройдено за день, км]]*0.01*$Y$2+Февраль[[#This Row],[Расход топлива на работу спецоборудования, литр]]),3)+V10,\"\")","v":56.945},{"$f":"IFERROR(IF(Февраль[[#Totals],[Выдано топливо, литр]]=0,0,(ROUND(Февраль[[#This Row],[Расход топлива по норме, литр]]/IF(DAY(Февраль[Дата])<=18,$W$2,$W$3),0)))+T10,\"\")","v":63},{"$f":"IFERROR(Февраль[[#This Row],[Фактический расход топлива, литр]]-Февраль[[#This Row],[Расход топлива по норме, литр]],\"\")","v":6.0549999999999997},null,null,null,null,null,null,{"$f":"Февраль[[#This Row],[Дата]]","v":"2018-02-04"}]
[{"$f":"IFERROR(DATEVALUE((COUNT($A$6:A10)+1)&$P$1&$I$4),\"\")","v":"2018-02-05"},null,{"$f":"IF(Февраль[[#This Row],[Дата]]=\"\",\"\",D10)","v":210864},210864,{"$f":"IFERROR(Февраль[[#This Row],[Показание одометра машины на конец дня, км]]-Февраль[[#This Row],[Показание одометра машины на начало дня, км]]+S11,\"\")","v":0},null,{"$f":"IF(Февраль[[#This Row],[Дата]]=\"\",\"\",M10)","v":386},{"$f":"IF(Февраль[[#This Row],[Дата]]=\"\",\"\",I10)","v":676},676,{"$f":"IFERROR(IF(U11=\"\",Февраль[[#This Row],[Показание счетчика моточасов  спецоборудования на конец дня, м/ч]],Февраль[[#This Row],[Показание счетчика моточасов  спецоборудования на конец дня, м/ч]]+1)-Февраль[[#This Row],[Показание счетчика моточасов спецоборудования на начало дня, м/ч]],\"\")","v":0},0,{"$f":"IF(Февраль[[#This Row],[Работа спецоборудования за день, м/ч]]=\"\",\"\",Февраль[[#This Row],[Работа спецоборудования за день, м/ч]]*$Z$2)","v":0},{"$f":"IFERROR(IF(VLOOKUP(Февраль[Дата],S$2:U$3,3),IFERROR(IF(R11=\"\",Февраль[[#This Row],[Выдано топливо, литр]],Февраль[[#This Row],[Выдано топливо, литр]]+R11)+Февраль[[#This Row],[Остаток топлива в баке на начало дня, литр]]-Февраль[[#This Row],[Фактический расход топлива, литр]],\"\"),\"\"),\"\")","v":386},{"$f":"IFERROR(ROUND((Февраль[[#This Row],[Пройдено за день, км]]*0.01*$Y$2+Февраль[[#This Row],[Расход топлива на работу спецоборудования, литр]]),3)+V11,\"\")","v":0},{"$f":"IFERROR(IF(Февраль[[#Totals],[Выдано топливо, литр]]=0,0,(ROUND(Февраль[[#This Row],[Расход топлива по норме, литр]]/IF(DAY(Февраль[Дата])<=18,$W$2,$W$3),0)))+T11,\"\")","v":0},{"$f":"IFERROR(Февраль[[#This Row],[Фактический расход топлива, литр]]-Февраль[[#This Row],[Расход топлива по норме, литр]],\"\")","v":0},null,null,null,null,null,null,{"$f":"Февраль[[#This Row],[Дата]]","v":"2018-02-05"}]
[{"$f":"IFERROR(DATEVALUE((COUNT($A$6:A11)+1)&$P$1&$I$4),\"\")","v":"2018-02-06"},"Никляев В.А.",{"$f":"IF(Февраль[[#This Row],[Дата]]=\"\",\"\",D11)","v":210864},210888,{"$f":"IFERROR(Февраль[[#This Row],[Показание одометра машины на конец дня, км]]-Февраль[[#This Row],[Показание одометра машины на начало дня, км]]+S12,\"\")","v":24},null,{"$f":"IF(Февраль[[#This Row],[Дата]]=\"\",\"\",M11)","v":386},{"$f":"IF(Февраль[[#This Row],[Дата]]=\"\",\"\",I11)","v":676},678,{"$f":"IFERROR(IF(U12=\"\",Февраль[[#This Row],[Показание счетчика моточасов  спецоборудования на конец дня, м/ч]],Февраль[[#This Row],[Показание счетчика моточасов  спецоборудования на конец дня, м/ч]]+1)-Февраль[[#This Row],[Показание счетчика моточасов спецоборудования на начало дня, м/ч]],\"\")","v":2},1,{"$f":"IF(Февраль[[#This Row],[Работа спецоборудования за день, м/ч]]=\"\",\"\",Февраль[[#This Row],[Работа спецоборудования за день, м/ч]]*$Z$2)","v":12.100000000000001},{"$f":"IFERROR(IF(VLOOKUP(Февраль[Дата],S$2:U$3,3),IFERROR(IF(R12=\"\",Февраль[[#This Row],[Выдано топливо, литр]],Февраль[[#This Row],[Выдано топливо, литр]]+R12)+Февраль[[#This Row],[Остаток топлива в баке на начало дня, литр]]-Февраль[[#This Row],[Фактический расход топлива, литр]],\"\"),\"\"),\"\")","v":359},{"$f":"IFERROR(ROUND((Февраль[[#This Row],[Пройдено за день, км]]*0.01*$Y$2+Февраль[[#This Row],[Расход топлива на работу спецоборудования, литр]]),3)+V12,\"\")","v":24.471},{"$f":"IFERROR(IF(Февраль[[#Totals],[Выдано топливо, литр]]=0,0,(ROUND(Февраль[[#This Row],[Расход топлива по норме, литр]]/IF(DAY(Февраль[Дата])<=18,$W$2,$W$3),0)))+T12,\"\")","v":27},{"$f":"IFERROR(Февраль[[#This Row],[Фактический расход топлива, литр]]-Февраль[[#This Row],[Расход топлива по норме, литр]],\"\")","v":2.5289999999999999},null,null,null,null,null,null,{"$f":"Февраль[[#This Row],[Дата]]","v":"2018-02-06"}]
[{"$f":"IFERROR(DATEVALUE((COUNT($A$6:A12)+1)&$P$1&$I$4),\"\")","v":"2018-02-07"},"Никляев В.А.",{"$f":"IF(Февраль[[#This Row],[Дата]]=\"\",\"\",D12)","v":210888},210900,{"$f":"IFERROR(Февраль[[#This Row],[Показание одометра машины на конец дня, км]]-Февраль[[#This Row],[Показание одометра машины на начало дня, км]]+S13,\"\")","v":12},null,{"$f":"IF(Февраль[[#This Row],[Дата]]=\"\",\"\",M12)","v":359},{"$f":"IF(Февраль[[#This Row],[Дата]]=\"\",\"\",I12)","v":678},679,{"$f":"IFERROR(IF(U13=\"\",Февраль[[#This Row],[Показание счетчика моточасов  спецоборудования на конец дня, м/ч]],Февраль[[#This Row],[Показание счетчика моточасов  спецоборудования на конец дня, м/ч]]+1)-Февраль[[#This Row],[Показание счетчика моточасов спецоборудования на начало дня, м/ч]],\"\")","v":1},1,{"$f":"IF(Февраль[[#This Row],[Работа спецоборудования за день, м/ч]]=\"\",\"\",Февраль[[#This Row],[Работа спецоборудования за день, м/ч]]*$Z$2)","v":6.0500000000000007},{"$f":"IFERROR(IF(VLOOKUP(Февраль[Дата],S$2:U$3,3),IFERROR(IF(R13=\"\",Февраль[[#This Row],[Выдано топливо, литр]],Февраль[[#This Row],[Выдано топливо, литр]]+R13)+Февраль[[#This Row],[Остаток топлива в баке на начало дня, литр]]-Февраль[[#This Row],[Фактический расход топлива, литр]],\"\"),\"\"),\"\")","v":345},{"$f":"IFERROR(ROUND((Февраль[[#This Row],[Пройдено за день, км]]*0.01*$Y$2+Февраль[[#This Row],[Расход топлива на работу спецоборудования, литр]]),3)+V13,\"\")","v":12.236000000000001},{"$f":"IFERROR(IF(Февраль[[#Totals],[Выдано топливо, литр]]=0,0,(ROUND(Февраль[[#This Row],[Расход топлива по норме, литр]]/IF(DAY(Февраль[Дата])<=18,$W$2,$W$3),0)))+T13,\"\")","v":14},{"$f":"IFERROR(Февраль[[#This Row],[Фактический расход топлива, литр]]-Февраль[[#This Row],[Расход топлива по норме, литр]],\"\")","v":1.7639999999999993},null,null,null,null,null,null,{"$f":"Февраль[[#This Row],[Дата]]","v":"2018-02-07"}]
[{"$f":"IFERROR(DATEVALUE((COUNT($A$6:A13)+1)&$P$1&$I$4),\"\")","v":"2018-02-08"},"Никляев В.А.",{"$f":"IF(Февраль[[#This Row],[Дата]]=\"\",\"\",D13)","v":210900},211028,{"$f":"IFERROR(Февраль[[#This Row],[Показание одометра машины на конец дня, км]]-Февраль[[#This Row],[Показание одометра машины на начало дня, км]]+S14,\"\")","v":128},null,{"$f":"IF(Февраль[[#This Row],[Дата]]=\"\",\"\",M13)","v":345},{"$f":"IF(Февраль[[#This Row],[Дата]]=\"\",\"\",I13)","v":679},683,{"$f":"IFERROR(IF(U14=\"\",Февраль[[#This Row],[Показание счетчика моточасов  спецоборудования на конец дня, м/ч]],Февраль[[#This Row],[Показание счетчика моточасов  спецоборудования на конец дня, м/ч]]+1)-Февраль[[#This Row],[Показание счетчика моточасов спецоборудования на начало дня, м/ч]],\"\")","v":4},2,{"$f":"IF(Февраль[[#This Row],[Работа спецоборудования за день, м/ч]]=\"\",\"\",Февраль[[#This Row],[Работа спецоборудования за день, м/ч]]*$Z$2)","v":24.200000000000003},{"$f":"IFERROR(IF(VLOOKUP(Февраль[Дата],S$2:U$3,3),IFERROR(IF(R14=\"\",Февраль[[#This Row],[Выдано топливо, литр]],Февраль[[#This Row],[Выдано топливо, литр]]+R14)+Февраль[[#This Row],[Остаток топлива в баке на начало дня, литр]]-Февраль[[#This Row],[Фактический расход топлива, литр]],\"\"),\"\"),\"\")","v":245},{"$f":"IFERROR(ROUND((Февраль[[#This Row],[Пройдено за день, км]]*0.01*$Y$2+Февраль[[#This Row],[Расход топлива на работу спецоборудования, литр]]),3)+V14,\"\")","v":90.179000000000002},{"$f":"IFERROR(IF(Февраль[[#Totals],[Выдано топливо, литр]]=0,0,(ROUND(Февраль[[#This Row],[Расход топлива по норме, литр]]/IF(DAY(Февраль[Дата])<=18,$W$2,$W$3),0)))+T14,\"\")","v":100},{"$f":"IFERROR(Февраль[[#This Row],[Фактический расход топлива, литр]]-Февраль[[#This Row],[Расход топлива по норме, литр]],\"\")","v":9.820999999999998},null,null,null,null,null,null,{"$f":"Февраль[[#This Row],[Дата]]","v":"2018-02-08"}]
[{"$f":"IFERROR(DATEVALUE((COUNT($A$6:A14)+1)&$P$1&$I$4),\"\")","v":"2018-02-09"},"Никляев В.А.",{"$f":"IF(Февраль[[#This Row],[Дата]]=\"\",\"\",D14)","v":211028},211140,{"$f":"IFERROR(Февраль[[#This Row],[Показание одометра машины на конец дня, км]]-Февраль[[#This Row],[Показание одометра машины на начало дня, км]]+S15,\"\")","v":112},null,{"$f":"IF(Февраль[[#This Row],[Дата]]=\"\",\"\",M14)","v":245},{"$f":"IF(Февраль[[#This Row],[Дата]]=\"\",\"\",I14)","v":683},685,{"$f":"IFERROR(IF(U15=\"\",Февраль[[#This Row],[Показание счетчика моточасов  спецоборудования на конец дня, м/ч]],Февраль[[#This Row],[Показание счетчика моточасов  спецоборудования на конец дня, м/ч]]+1)-Февраль[[#This Row],[Показание счетчика моточасов спецоборудования на начало дня, м/ч]],\"\")","v":2},2,{"$f":"IF(Февраль[[#This Row],[Работа спецоборудования за день, м/ч]]=\"\",\"\",Февраль[[#This Row],[Работа спецоборудования за день, м/ч]]*$Z$2)","v":12.100000000000001},{"$f":"IFERROR(IF(VLOOKUP(Февраль[Дата],S$2:U$3,3),IFERROR(IF(R15=\"\",Февраль[[#This Row],[Выдано топливо, литр]],Февраль[[#This Row],[Выдано топливо, литр]]+R15)+Февраль[[#This Row],[Остаток топлива в баке на начало дня, литр]]-Февраль[[#This Row],[Фактический расход топлива, литр]],\"\"),\"\"),\"\")","v":168},{"$f":"IFERROR(ROUND((Февраль[[#This Row],[Пройдено за день, км]]*0.01*$Y$2+Февраль[[#This Row],[Расход топлива на работу спецоборудования, литр]]),3)+V15,\"\")","v":69.831999999999994},{"$f":"IFERROR(IF(Февраль[[#Totals],[Выдано топливо, литр]]=0,0,(ROUND(Февраль[[#This Row],[Расход топлива по норме, литр]]/IF(DAY(Февраль[Дата])<=18,$W$2,$W$3),0)))+T15,\"\")","v":77},{"$f":"IFERROR(Февраль[[#This Row],[Фактический расход топлива, литр]]-Февраль[[#This Row],[Расход топлива по норме, литр]],\"\")","v":7.1680000000000064},null,null,null,null,null,null,{"$f":"Февраль[[#This Row],[Дата]]","v":"2018-02-09"}]
[{"$f":"IFERROR(DATEVALUE((COUNT($A$6:A15)+1)&$P$1&$I$4),\"\")","v":"2018-02-10"},"Никляев В.А.",{"$f":"IF(Февраль[[#This Row],[Дата]]=\"\",\"\",D15)","v":211140},211246,{"$f":"IFERROR(Февраль[[#This Row],[Показание одометра машины на конец дня, км]]-Февраль[[#This Row],[Показание одометра машины на начало дня, км]]+S16,\"\")","v":106},null,{"$f":"IF(Февраль[[#This Row],[Дата]]=\"\",\"\",M15)","v":168},{"$f":"IF(Февраль[[#This Row],[Дата]]=\"\",\"\",I15)","v":685},687,{"$f":"IFERROR(IF(U16=\"\",Февраль[[#This Row],[Показание счетчика моточасов  спецоборудования на конец дня, м/ч]],Февраль[[#This Row],[Показание счетчика моточасов  спецоборудования на конец дня, м/ч]]+1)-Февраль[[#This Row],[Показание счетчика моточасов спецоборудования на начало дня, м/ч]],\"\")","v":2},1,{"$f":"IF(Февраль[[#This Row],[Работа спецоборудования за день, м/ч]]=\"\",\"\",Февраль[[#This Row],[Работа спецоборудования за день, м/ч]]*$Z$2)","v":12.100000000000001},{"$f":"IFERROR(IF(VLOOKUP(Февраль[Дата],S$2:U$3,3),IFERROR(IF(R16=\"\",Февраль[[#This Row],[Выдано топливо, литр]],Февраль[[#This Row],[Выдано топливо, литр]]+R16)+Февраль[[#This Row],[Остаток топлива в баке на начало дня, литр]]-Февраль[[#This Row],[Фактический расход топлива, литр]],\"\"),\"\"),\"\")","v":94},{"$f":"IFERROR(ROUND((Февраль[[#This Row],[Пройдено за день, км]]*0.01*$Y$2+Февраль[[#This Row],[Расход топлива на работу спецоборудования, литр]]),3)+V16,\"\")","v":66.739000000000004},{"$f":"IFERROR(IF(Февраль[[#Totals],[Выдано топливо, литр]]=0,0,(ROUND(Февраль[[#This Row],[Расход топлива по норме, литр]]/IF(DAY(Февраль[Дата])<=18,$W$2,$W$3),0)))+T16,\"\")","v":74},{"$f":"IFERROR(Февраль[[#This Row],[Фактический расход топлива, литр]]-Февраль[[#This Row],[Расход топлива по норме, литр]],\"\")","v":7.2609999999999957},null,null,null,null,null,null,{"$f":"Февраль[[#This Row],[Дата]]","v":"2018-02-10"}]
[{"$f":"IFERROR(DATEVALUE((COUNT($A$6:A16)+1)&$P$1&$I$4),\"\")","v":"2018-02-11"},null,{"$f":"IF(Февраль[[#This Row],[Дата]]=\"\",\"\",D16)","v":211246},211246,{"$f":"IFERROR(Февраль[[#This Row],[Показание одометра машины на конец дня, км]]-Февраль[[#This Row],[Показание одометра машины на начало дня, км]]+S17,\"\")","v":0},null,{"$f":"IF(Февраль[[#This Row],[Дата]]=\"\",\"\",M16)","v":94},{"$f":"IF(Февраль[[#This Row],[Дата]]=\"\",\"\",I16)","v":687},687,{"$f":"IFERROR(IF(U17=\"\",Февраль[[#This Row],[Показание счетчика моточасов  спецоборудования на конец дня, м/ч]],Февраль[[#This Row],[Показание счетчика моточасов  спецоборудования на конец дня, м/ч]]+1)-Февраль[[#This Row],[Показание счетчика моточасов спецоборудования на начало дня, м/ч]],\"\")","v":0},0,{"$f":"IF(Февраль[[#This Row],[Работа спецоборудования за день, м/ч]]=\"\",\"\",Февраль[[#This Row],[Работа спецоборудования за день, м/ч]]*$Z$2)","v":0},{"$f":"IFERROR(IF(VLOOKUP(Февраль[Дата],S$2:U$3,3),IFERROR(IF(R17=\"\",Февраль[[#This Row],[Выдано топливо, литр]],Февраль[[#This Row],[Выдано топливо, литр]]+R17)+Февраль[[#This Row],[Остаток топлива в баке на начало дня, литр]]-Февраль[[#This Row],[Фактический расход топлива, литр]],\"\"),\"\"),\"\")","v":94},{"$f":"IFERROR(ROUND((Февраль[[#This Row],[Пройдено за день, км]]*0.01*$Y$2+Февраль[[#This Row],[Расход топлива на работу спецоборудования, литр]]),3)+V17,\"\")","v":0},{"$f":"IFERROR(IF(Февраль[[#Totals],[Выдано топливо, литр]]=0,0,(ROUND(Февраль[[#This Row],[Расход топлива по норме, литр]]/IF(DAY(Февраль[Дата])<=18,$W$2,$W$3),0)))+T17,\"\")","v":0},{"$f":"IFERROR(Февраль[[#This Row],[Фактический расход топлива, литр]]-Февраль[[#This Row],[Расход топлива по норме, литр]],\"\")","v":0},null,null,null,null,null,null,{"$f":"Февраль[[#This Row],[Дата]]","v":"2018-02-11"}]
[{"$f":"IFERROR(DATEVALUE((COUNT($A$6:A17)+1)&$P$1&$I$4),\"\")","v":"2018-02-12"},"Никляев В.А.",{"$f":"IF(Февраль[[#This Row],[Дата]]=\"\",\"\",D17)","v":211246},211429,{"$f":"IFERROR(Февраль[[#This Row],[Показание одометра машины на конец дня, км]]-Февраль[[#This Row],[Показание одометра машины на начало дня, км]]+S18,\"\")","v":183},320,{"$f":"IF(Февраль[[#This Row],[Дата]]=\"\",\"\",M17)","v":94},{"$f":"IF(Февраль[[#This Row],[Дата]]=\"\",\"\",I17)","v":687},691,{"$f":"IFERROR(IF(U18=\"\",Февраль[[#This Row],[Показание счетчика моточасов  спецоборудования на конец дня, м/ч]],Февраль[[#This Row],[Показание счетчика моточасов  спецоборудования на конец дня, м/ч]]+1)-Февраль[[#This Row],[Показание счетчика моточасов спецоборудования на начало дня, м/ч]],\"\")","v":4},3,{"$f":"IF(Февраль[[#This Row],[Работа спецоборудования за день, м/ч]]=\"\",\"\",Февраль[[#This Row],[Работа спецоборудования за день, м/ч]]*$Z$2)","v":24.200000000000003},{"$f":"IFERROR(IF(VLOOKUP(Февраль[Дата],S$2:U$3,3),IFERROR(IF(R18=\"\",Февраль[[#This Row],[Выдано топливо, литр]],Февраль[[#This Row],[Выдано топливо, литр]]+R18)+Февраль[[#This Row],[Остаток топлива в баке на начало дня, литр]]-Февраль[[#This Row],[Фактический расход топлива, литр]],\"\"),\"\"),\"\")","v":283},{"$f":"IFERROR(ROUND((Февраль[[#This Row],[Пройдено за день, км]]*0.01*$Y$2+Февраль[[#This Row],[Расход топлива на работу спецоборудования, литр]]),3)+V18,\"\")","v":118.529},{"$f":"IFERROR(IF(Февраль[[#Totals],[Выдано топливо, литр]]=0,0,(ROUND(Февраль[[#This Row],[Расход топлива по норме, литр]]/IF(DAY(Февраль[Дата])<=18,$W$2,$W$3),0)))+T18,\"\")","v":131},{"$f":"IFERROR(Февраль[[#This Row],[Фактический расход топлива, литр]]-Февраль[[#This Row],[Расход топлива по норме, литр]],\"\")","v":12.471000000000004},null,null,null,null,null,null,{"$f":"Февраль[[#This Row],[Дата]]","v":"2018-02-12"}]
[{"$f":"IFERROR(DATEVALUE((COUNT($A$6:A18)+1)&$P$1&$I$4),\"\")","v":"2018-02-13"},null,{"$f":"IF(Февраль[[#This Row],[Дата]]=\"\",\"\",D18)","v":211429},211429,{"$f":"IFERROR(Февраль[[#This Row],[Показание одометра машины на конец дня, км]]-Февраль[[#This Row],[Показание одометра машины на начало дня, км]]+S19,\"\")","v":0},null,{"$f":"IF(Февраль[[#This Row],[Дата]]=\"\",\"\",M18)","v":283},{"$f":"IF(Февраль[[#This Row],[Дата]]=\"\",\"\",I18)","v":691},691,{"$f":"IFERROR(IF(U19=\"\",Февраль[[#This Row],[Показание счетчика моточасов  спецоборудования на конец дня, м/ч]],Февраль[[#This Row],[Показание счетчика моточасов  спецоборудования на конец дня, м/ч]]+1)-Февраль[[#This Row],[Показание счетчика моточасов спецоборудования на начало дня, м/ч]],\"\")","v":0},0,{"$f":"IF(Февраль[[#This Row],[Работа спецоборудования за день, м/ч]]=\"\",\"\",Февраль[[#This Row],[Работа спецоборудования за день, м/ч]]*$Z$2)","v":0},{"$f":"IFERROR(IF(VLOOKUP(Февраль[Дата],S$2:U$3,3),IFERROR(IF(R19=\"\",Февраль[[#This Row],[Выдано топливо, литр]],Февраль[[#This Row],[Выдано топливо, литр]]+R19)+Февраль[[#This Row],[Остаток топлива в баке на начало дня, литр]]-Февраль[[#This Row],[Фактический расход топлива, литр]],\"\"),\"\"),\"\")","v":283},{"$f":"IFERROR(ROUND((Февраль[[#This Row],[Пройдено за день, км]]*0.01*$Y$2+Февраль[[#This Row],[Расход топлива на работу спецоборудования, литр]]),3)+V19,\"\")","v":0},{"$f":"IFERROR(IF(Февраль[[#Totals],[Выдано топливо, литр]]=0,0,(ROUND(Февраль[[#This Row],[Расход топлива по норме, литр]]/IF(DAY(Февраль[Дата])<=18,$W$2,$W$3),0)))+T19,\"\")","v":0},{"$f":"IFERROR(Февраль[[#This Row],[Фактический расход топлива, литр]]-Февраль[[#This Row],[Расход топлива по норме, литр]],\"\")","v":0},null,null,null,null,null,null,{"$f":"Февраль[[#This Row],[Дата]]","v":"2018-02-13"}]
[{"$f":"IFERROR(DATEVALUE((COUNT($A$6:A19)+1)&$P$1&$I$4),\"\")","v":"2018-02-14"},"Никляев В.А.",{"$f":"IF(Февраль[[#This Row],[Дата]]=\"\",\"\",D19)","v":211429},211665,{"$f":"IFERROR(Февраль[[#This Row],[Показание одометра машины на конец дня, км]]-Февраль[[#This Row],[Показание одометра машины на начало дня, км]]+S20,\"\")","v":236},null,{"$f":"IF(Февраль[[#This Row],[Дата]]=\"\",\"\",M19)","v":283},{"$f":"IF(Февраль[[#This Row],[Дата]]=\"\",\"\",I19)","v":691},695,{"$f":"IFERROR(IF(U20=\"\",Февраль[[#This Row],[Показание счетчика моточасов  спецоборудования на конец дня, м/ч]],Февраль[[#This Row],[Показание счетчика моточасов  спецоборудования на конец дня, м/ч]]+1)-Февраль[[#This Row],[Показание счетчика моточасов спецоборудования на начало дня, м/ч]],\"\")","v":4},2,{"$f":"IF(Февраль[[#This Row],[Работа спецоборудования за день, м/ч]]=\"\",\"\",Февраль[[#This Row],[Работа спецоборудования за день, м/ч]]*$Z$2)","v":24.200000000000003},{"$f":"IFERROR(IF(VLOOKUP(Февраль[Дата],S$2:U$3,3),IFERROR(IF(R20=\"\",Февраль[[#This Row],[Выдано топливо, литр]],Февраль[[#This Row],[Выдано топливо, литр]]+R20)+Февраль[[#This Row],[Остаток топлива в баке на начало дня, литр]]-Февраль[[#This Row],[Фактический расход топлива, литр]],\"\"),\"\"),\"\")","v":122},{"$f":"IFERROR(ROUND((Февраль[[#This Row],[Пройдено за день, км]]*0.01*$Y$2+Февраль[[#This Row],[Расход топлива на работу спецоборудования, литр]]),3)+V20,\"\")","v":145.84899999999999},{"$f":"IFERROR(IF(Февраль[[#Totals],[Выдано топливо, литр]]=0,0,(ROUND(Февраль[[#This Row],[Расход топлива по норме, литр]]/IF(DAY(Февраль[Дата])<=18,$W$2,$W$3),0)))+T20,\"\")","v":161},{"$f":"IFERROR(Февраль[[#This Row],[Фактический расход топлива, литр]]-Февраль[[#This Row],[Расход топлива по норме, литр]],\"\")","v":15.15100000000001},null,null,null,null,null,null,{"$f":"Февраль[[#This Row],[Дата]]","v":"2018-02-14"}]
[{"$f":"IFERROR(DATEVALUE((COUNT($A$6:A20)+1)&$P$1&$I$4),\"\")","v":"2018-02-15"},"Никляев В.А.",{"$f":"IF(Февраль[[#This Row],[Дата]]=\"\",\"\",D20)","v":211665},211745,{"$f":"IFERROR(Февраль[[#This Row],[Показание одометра машины на конец дня, км]]-Февраль[[#This Row],[Показание одометра машины на начало дня, км]]+S21,\"\")","v":80},300,{"$f":"IF(Февраль[[#This Row],[Дата]]=\"\",\"\",M20)","v":122},{"$f":"IF(Февраль[[#This Row],[Дата]]=\"\",\"\",I20)","v":695},697,{"$f":"IFERROR(IF(U21=\"\",Февраль[[#This Row],[Показание счетчика моточасов  спецоборудования на конец дня, м/ч]],Февраль[[#This Row],[Показание счетчика моточасов  спецоборудования на конец дня, м/ч]]+1)-Февраль[[#This Row],[Показание счетчика моточасов спецоборудования на начало дня, м/ч]],\"\")","v":2},2,{"$f":"IF(Февраль[[#This Row],[Работа спецоборудования за день, м/ч]]=\"\",\"\",Февраль[[#This Row],[Работа спецоборудования за день, м/ч]]*$Z$2)","v":12.100000000000001},{"$f":"IFERROR(IF(VLOOKUP(Февраль[Дата],S$2:U$3,3),IFERROR(IF(R21=\"\",Февраль[[#This Row],[Выдано топливо, литр]],Февраль[[#This Row],[Выдано топливо, литр]]+R21)+Февраль[[#This Row],[Остаток топлива в баке на начало дня, литр]]-Февраль[[#This Row],[Фактический расход топлива, литр]],\"\"),\"\"),\"\")","v":362},{"$f":"IFERROR(ROUND((Февраль[[#This Row],[Пройдено за день, км]]*0.01*$Y$2+Февраль[[#This Row],[Расход топлива на работу спецоборудования, литр]]),3)+V21,\"\")","v":53.337000000000003},{"$f":"IFERROR(IF(Февраль[[#Totals],[Выдано топливо, литр]]=0,0,(ROUND(Февраль[[#This Row],[Расход топлива по норме, литр]]/IF(DAY(Февраль[Дата])<=18,$W$2,$W$3),0)))+T21,\"\")","v":60},{"$f":"IFERROR(Февраль[[#This Row],[Фактический расход топлива, литр]]-Февраль[[#This Row],[Расход топлива по норме, литр]],\"\")","v":6.6629999999999967},null,null,null,1,null,null,{"$f":"Февраль[[#This Row],[Дата]]","v":"2018-02-15"}]
[{"$f":"IFERROR(DATEVALUE((COUNT($A$6:A21)+1)&$P$1&$I$4),\"\")","v":"2018-02-16"},null,{"$f":"IF(Февраль[[#This Row],[Дата]]=\"\",\"\",D21)","v":211745},211745,{"$f":"IFERROR(Февраль[[#This Row],[Показание одометра машины на конец дня, км]]-Февраль[[#This Row],[Показание одометра машины на начало дня, км]]+S22,\"\")","v":0},null,{"$f":"IF(Февраль[[#This Row],[Дата]]=\"\",\"\",M21)","v":362},{"$f":"IF(Февраль[[#This Row],[Дата]]=\"\",\"\",I21)","v":697},697,{"$f":"IFERROR(IF(U22=\"\",Февраль[[#This Row],[Показание счетчика моточасов  спецоборудования на конец дня, м/ч]],Февраль[[#This Row],[Показание счетчика моточасов  спецоборудования на конец дня, м/ч]]+1)-Февраль[[#This Row],[Показание счетчика моточасов спецоборудования на начало дня, м/ч]],\"\")","v":0},null,{"$f":"IF(Февраль[[#This Row],[Работа спецоборудования за день, м/ч]]=\"\",\"\",Февраль[[#This Row],[Работа спецоборудования за день, м/ч]]*$Z$2)","v":0},{"$f":"IFERROR(IF(VLOOKUP(Февраль[Дата],S$2:U$3,3),IFERROR(IF(R22=\"\",Февраль[[#This Row],[Выдано топливо, литр]],Февраль[[#This Row],[Выдано топливо, литр]]+R22)+Февраль[[#This Row],[Остаток топлива в баке на начало дня, литр]]-Февраль[[#This Row],[Фактический расход топлива, литр]],\"\"),\"\"),\"\")","v":362},{"$f":"IFERROR(ROUND((Февраль[[#This Row],[Пройдено за день, км]]*0.01*$Y$2+Февраль[[#This Row],[Расход топлива на работу спецоборудования, литр]]),3)+V22,\"\")","v":0},{"$f":"IFERROR(IF(Февраль[[#Totals],[Выдано топливо, литр]]=0,0,(ROUND(Февраль[[#This Row],[Расход топлива по норме, литр]]/IF(DAY(Февраль[Дата])<=18,$W$2,$W$3),0)))+T22,\"\")","v":0},{"$f":"IFERROR(Февраль[[#This Row],[Фактический расход топлива, литр]]-Февраль[[#This Row],[Расход топлива по норме, литр]],\"\")","v":0},null,null,null,null,null,null,{"$f":"Февраль[[#This Row],[Дата]]","v":"2018-02-16"}]
[{"$f":"IFERROR(DATEVALUE((COUNT($A$6:A22)+1)&$P$1&$I$4),\"\")","v":"2018-02-17"},null,{"$f":"IF(Февраль[[#This Row],[Дата]]=\"\",\"\",D22)","v":211745},211745,{"$f":"IFERROR(Февраль[[#This Row],[Показание одометра машины на конец дня, км]]-Февраль[[#This Row],[Показание одометра машины на начало дня, км]]+S23,\"\")","v":0},null,{"$f":"IF(Февраль[[#This Row],[Дата]]=\"\",\"\",M22)","v":362},{"$f":"IF(Февраль[[#This Row],[Дата]]=\"\",\"\",I22)","v":697},697,{"$f":"IFERROR(IF(U23=\"\",Февраль[[#This Row],[Показание счетчика моточасов  спецоборудования на конец дня, м/ч]],Февраль[[#This Row],[Показание счетчика моточасов  спецоборудования на конец дня, м/ч]]+1)-Февраль[[#This Row],[Показание счетчика моточасов спецоборудования на начало дня, м/ч]],\"\")","v":0},null,{"$f":"IF(Февраль[[#This Row],[Работа спецоборудования за день, м/ч]]=\"\",\"\",Февраль[[#This Row],[Работа спецоборудования за день, м/ч]]*$Z$2)","v":0},{"$f":"IFERROR(IF(VLOOKUP(Февраль[Дата],S$2:U$3,3),IFERROR(IF(R23=\"\",Февраль[[#This Row],[Выдано топливо, литр]],Февраль[[#This Row],[Выдано топливо, литр]]+R23)+Февраль[[#This Row],[Остаток топлива в баке на начало дня, литр]]-Февраль[[#This Row],[Фактический расход топлива, литр]],\"\"),\"\"),\"\")","v":362},{"$f":"IFERROR(ROUND((Февраль[[#This Row],[Пройдено за день, км]]*0.01*$Y$2+Февраль[[#This Row],[Расход топлива на работу спецоборудования, литр]]),3)+V23,\"\")","v":0},{"$f":"IFERROR(IF(Февраль[[#Totals],[Выдано топливо, литр]]=0,0,(ROUND(Февраль[[#This Row],[Расход топлива по норме, литр]]/IF(DAY(Февраль[Дата])<=18,$W$2,$W$3),0)))+T23,\"\")","v":0},{"$f":"IFERROR(Февраль[[#This Row],[Фактический расход топлива, литр]]-Февраль[[#This Row],[Расход топлива по норме, литр]],\"\")","v":0},null,null,null,null,null,null,{"$f":"Февраль[[#This Row],[Дата]]","v":"2018-02-17"}]
[{"$f":"IFERROR(DATEVALUE((COUNT($A$6:A23)+1)&$P$1&$I$4),\"\")","v":"2018-02-18"},null,{"$f":"IF(Февраль[[#This Row],[Дата]]=\"\",\"\",D23)","v":211745},211745,{"$f":"IFERROR(Февраль[[#This Row],[Показание одометра машины на конец дня, км]]-Февраль[[#This Row],[Показание одометра машины на начало дня, км]]+S24,\"\")","v":0},null,{"$f":"IF(Февраль[[#This Row],[Дата]]=\"\",\"\",M23)","v":362},{"$f":"IF(Февраль[[#This Row],[Дата]]=\"\",\"\",I23)","v":697},697,{"$f":"IFERROR(IF(U24=\"\",Февраль[[#This Row],[Показание счетчика моточасов  спецоборудования на конец дня, м/ч]],Февраль[[#This Row],[Показание счетчика моточасов  спецоборудования на конец дня, м/ч]]+1)-Февраль[[#This Row],[Показание счетчика моточасов спецоборудования на начало дня, м/ч]],\"\")","v":0},null,{"$f":"IF(Февраль[[#This Row],[Работа спецоборудования за день, м/ч]]=\"\",\"\",Февраль[[#This Row],[Работа спецоборудования за день, м/ч]]*$Z$2)","v":0},{"$f":"IFERROR(IF(VLOOKUP(Февраль[Дата],S$2:U$3,3),IFERROR(IF(R24=\"\",Февраль[[#This Row],[Выдано топливо, литр]],Февраль[[#This Row],[Выдано топливо, литр]]+R24)+Февраль[[#This Row],[Остаток топлива в баке на начало дня, литр]]-Февраль[[#This Row],[Фактический расход топлива, литр]],\"\"),\"\"),\"\")","v":362},{"$f":"IFERROR(ROUND((Февраль[[#This Row],[Пройдено за день, км]]*0.01*$Y$2+Февраль[[#This Row],[Расход топлива на работу спецоборудования, литр]]),3)+V24,\"\")","v":0},{"$f":"IFERROR(IF(Февраль[[#Totals],[Выдано топливо, литр]]=0,0,(ROUND(Февраль[[#This Row],[Расход топлива по норме, литр]]/IF(DAY(Февраль[Дата])<=18,$W$2,$W$3),0)))+T24,\"\")","v":0},{"$f":"IFERROR(Февраль[[#This Row],[Фактический расход топлива, литр]]-Февраль[[#This Row],[Расход топлива по норме, литр]],\"\")","v":0},null,null,null,null,null,null,{"$f":"Февраль[[#This Row],[Дата]]","v":"2018-02-18"}]
[{"$f":"IFERROR(DATEVALUE((COUNT($A$6:A24)+1)&$P$1&$I$4),\"\")","v":"2018-02-19"},null,{"$f":"IF(Февраль[[#This Row],[Дата]]=\"\",\"\",D24)","v":211745},211745,{"$f":"IFERROR(Февраль[[#This Row],[Показание одометра машины на конец дня, км]]-Февраль[[#This Row],[Показание одометра машины на начало дня, км]]+S25,\"\")","v":0},null,{"$f":"IF(Февраль[[#This Row],[Дата]]=\"\",\"\",M24)","v":362},{"$f":"IF(Февраль[[#This Row],[Дата]]=\"\",\"\",I24)","v":697},697,{"$f":"IFERROR(IF(U25=\"\",Февраль[[#This Row],[Показание счетчика моточасов  спецоборудования на конец дня, м/ч]],Февраль[[#This Row],[Показание счетчика моточасов  спецоборудования на конец дня, м/ч]]+1)-Февраль[[#This Row],[Показание счетчика моточасов спецоборудования на начало дня, м/ч]],\"\")","v":0},null,{"$f":"IF(Февраль[[#This Row],[Работа спецоборудования за день, м/ч]]=\"\",\"\",Февраль[[#This Row],[Работа спецоборудования за день, м/ч]]*$Z$2)","v":0},{"$f":"IFERROR(IF(VLOOKUP(Февраль[Дата],S$2:U$3,3),IFERROR(IF(R25=\"\",Февраль[[#This Row],[Выдано топливо, литр]],Февраль[[#This Row],[Выдано топливо, литр]]+R25)+Февраль[[#This Row],[Остаток топлива в баке на начало дня, литр]]-Февраль[[#This Row],[Фактический расход топлива, литр]],\"\"),\"\"),\"\")","v":362},{"$f":"IFERROR(ROUND((Февраль[[#This Row],[Пройдено за день, км]]*0.01*$Y$2+Февраль[[#This Row],[Расход топлива на работу спецоборудования, литр]]),3)+V25,\"\")","v":0},{"$f":"IFERROR(IF(Февраль[[#Totals],[Выдано топливо, литр]]=0,0,(ROUND(Февраль[[#This Row],[Расход топлива по норме, литр]]/IF(DAY(Февраль[Дата])<=18,$W$2,$W$3),0)))+T25,\"\")","v":0},{"$f":"IFERROR(Февраль[[#This Row],[Фактический расход топлива, литр]]-Февраль[[#This Row],[Расход топлива по норме, литр]],\"\")","v":0},null,null,null,null,null,null,{"$f":"Февраль[[#This Row],[Дата]]","v":"2018-02-19"}]
[{"$f":"IFERROR(DATEVALUE((COUNT($A$6:A25)+1)&$P$1&$I$4),\"\")","v":"2018-02-20"},null,{"$f":"IF(Февраль[[#This Row],[Дата]]=\"\",\"\",D25)","v":211745},211745,{"$f":"IFERROR(Февраль[[#This Row],[Показание одометра машины на конец дня, км]]-Февраль[[#This Row],[Показание одометра машины на начало дня, км]]+S26,\"\")","v":0},null,{"$f":"IF(Февраль[[#This Row],[Дата]]=\"\",\"\",M25)","v":362},{"$f":"IF(Февраль[[#This Row],[Дата]]=\"\",\"\",I25)","v":697},697,{"$f":"IFERROR(IF(U26=\"\",Февраль[[#This Row],[Показание счетчика моточасов  спецоборудования на конец дня, м/ч]],Февраль[[#This Row],[Показание счетчика моточасов  спецоборудования на конец дня, м/ч]]+1)-Февраль[[#This Row],[Показание счетчика моточасов спецоборудования на начало дня, м/ч]],\"\")","v":0},null,{"$f":"IF(Февраль[[#This Row],[Работа спецоборудования за день, м/ч]]=\"\",\"\",Февраль[[#This Row],[Работа спецоборудования за день, м/ч]]*$Z$2)","v":0},{"$f":"IFERROR(IF(VLOOKUP(Февраль[Дата],S$2:U$3,3),IFERROR(IF(R26=\"\",Февраль[[#This Row],[Выдано топливо, литр]],Февраль[[#This Row],[Выдано топливо, литр]]+R26)+Февраль[[#This Row],[Остаток топлива в баке на начало дня, литр]]-Февраль[[#This Row],[Фактический расход топлива, литр]],\"\"),\"\"),\"\")","v":362},{"$f":"IFERROR(ROUND((Февраль[[#This Row],[Пройдено за день, км]]*0.01*$Y$2+Февраль[[#This Row],[Расход топлива на работу спецоборудования, литр]]),3)+V26,\"\")","v":0},{"$f":"IFERROR(IF(Февраль[[#Totals],[Выдано топливо, литр]]=0,0,(ROUND(Февраль[[#This Row],[Расход топлива по норме, литр]]/IF(DAY(Февраль[Дата])<=18,$W$2,$W$3),0)))+T26,\"\")","v":0},{"$f":"IFERROR(Февраль[[#This Row],[Фактический расход топлива, литр]]-Февраль[[#This Row],[Расход топлива по норме, литр]],\"\")","v":0},null,null,null,null,null,null,{"$f":"Февраль[[#This Row],[Дата]]","v":"2018-02-20"}]
[{"$f":"IFERROR(DATEVALUE((COUNT($A$6:A26)+1)&$P$1&$I$4),\"\")","v":"2018-02-21"},null,{"$f":"IF(Февраль[[#This Row],[Дата]]=\"\",\"\",D26)","v":211745},211745,{"$f":"IFERROR(Февраль[[#This Row],[Показание одометра машины на конец дня, км]]-Февраль[[#This Row],[Показание одометра машины на начало дня, км]]+S27,\"\")","v":0},null,{"$f":"IF(Февраль[[#This Row],[Дата]]=\"\",\"\",M26)","v":362},{"$f":"IF(Февраль[[#This Row],[Дата]]=\"\",\"\",I26)","v":697},697,{"$f":"IFERROR(IF(U27=\"\",Февраль[[#This Row],[Показание счетчика моточасов  спецоборудования на конец дня, м/ч]],Февраль[[#This Row],[Показание счетчика моточасов  спецоборудования на конец дня, м/ч]]+1)-Февраль[[#This Row],[Показание счетчика моточасов спецоборудования на начало дня, м/ч]],\"\")","v":0},null,{"$f":"IF(Февраль[[#This Row],[Работа спецоборудования за день, м/ч]]=\"\",\"\",Февраль[[#This Row],[Работа спецоборудования за день, м/ч]]*$Z$2)","v":0},{"$f":"IFERROR(IF(VLOOKUP(Февраль[Дата],S$2:U$3,3),IFERROR(IF(R27=\"\",Февраль[[#This Row],[Выдано топливо, литр]],Февраль[[#This Row],[Выдано топливо, литр]]+R27)+Февраль[[#This Row],[Остаток топлива в баке на начало дня, литр]]-Февраль[[#This Row],[Фактический расход топлива, литр]],\"\"),\"\"),\"\")","v":362},{"$f":"IFERROR(ROUND((Февраль[[#This Row],[Пройдено за день, км]]*0.01*$Y$2+Февраль[[#This Row],[Расход топлива на работу спецоборудования, литр]]),3)+V27,\"\")","v":0},{"$f":"IFERROR(IF(Февраль[[#Totals],[Выдано топливо, литр]]=0,0,(ROUND(Февраль[[#This Row],[Расход топлива по норме, литр]]/IF(DAY(Февраль[Дата])<=18,$W$2,$W$3),0)))+T27,\"\")","v":0},{"$f":"IFERROR(Февраль[[#This Row],[Фактический расход топлива, литр]]-Февраль[[#This Row],[Расход топлива по норме, литр]],\"\")","v":0},null,null,null,null,null,null,{"$f":"Февраль[[#This Row],[Дата]]","v":"2018-02-21"}]
[{"$f":"IFERROR(DATEVALUE((COUNT($A$6:A27)+1)&$P$1&$I$4),\"\")","v":"2018-02-22"},null,{"$f":"IF(Февраль[[#This Row],[Дата]]=\"\",\"\",D27)","v":211745},211745,{"$f":"IFERROR(Февраль[[#This Row],[Показание одометра машины на конец дня, км]]-Февраль[[#This Row],[Показание одометра машины на начало дня, км]]+S28,\"\")","v":0},null,{"$f":"IF(Февраль[[#This Row],[Дата]]=\"\",\"\",M27)","v":362},{"$f":"IF(Февраль[[#This Row],[Дата]]=\"\",\"\",I27)","v":697},697,{"$f":"IFERROR(IF(U28=\"\",Февраль[[#This Row],[Показание счетчика моточасов  спецоборудования на конец дня, м/ч]],Февраль[[#This Row],[Показание счетчика моточасов  спецоборудования на конец дня, м/ч]]+1)-Февраль[[#This Row],[Показание счетчика моточасов спецоборудования на начало дня, м/ч]],\"\")","v":0},null,{"$f":"IF(Февраль[[#This Row],[Работа спецоборудования за день, м/ч]]=\"\",\"\",Февраль[[#This Row],[Работа спецоборудования за день, м/ч]]*$Z$2)","v":0},{"$f":"IFERROR(IF(VLOOKUP(Февраль[Дата],S$2:U$3,3),IFERROR(IF(R28=\"\",Февраль[[#This Row],[Выдано топливо, литр]],Февраль[[#This Row],[Выдано топливо, литр]]+R28)+Февраль[[#This Row],[Остаток топлива в баке на начало дня, литр]]-Февраль[[#This Row],[Фактический расход топлива, литр]],\"\"),\"\"),\"\")","v":362},{"$f":"IFERROR(ROUND((Февраль[[#This Row],[Пройдено за день, км]]*0.01*$Y$2+Февраль[[#This Row],[Расход топлива на работу спецоборудования, литр]]),3)+V28,\"\")","v":0},{"$f":"IFERROR(IF(Февраль[[#Totals],[Выдано топливо, литр]]=0,0,(ROUND(Февраль[[#This Row],[Расход топлива по норме, литр]]/IF(DAY(Февраль[Дата])<=18,$W$2,$W$3),0)))+T28,\"\")","v":0},{"$f":"IFERROR(Февраль[[#This Row],[Фактический расход топлива, литр]]-Февраль[[#This Row],[Расход топлива по норме, литр]],\"\")","v":0},null,null,null,null,null,null,{"$f":"Февраль[[#This Row],[Дата]]","v":"2018-02-22"}]
[{"$f":"IFERROR(DATEVALUE((COUNT($A$6:A28)+1)&$P$1&$I$4),\"\")","v":"2018-02-23"},null,{"$f":"IF(Февраль[[#This Row],[Дата]]=\"\",\"\",D28)","v":211745},211745,{"$f":"IFERROR(Февраль[[#This Row],[Показание одометра машины на конец дня, км]]-Февраль[[#This Row],[Показание одометра машины на начало дня, км]]+S29,\"\")","v":0},null,{"$f":"IF(Февраль[[#This Row],[Дата]]=\"\",\"\",M28)","v":362},{"$f":"IF(Февраль[[#This Row],[Дата]]=\"\",\"\",I28)","v":697},697,{"$f":"IFERROR(IF(U29=\"\",Февраль[[#This Row],[Показание счетчика моточасов  спецоборудования на конец дня, м/ч]],Февраль[[#This Row],[Показание счетчика моточасов  спецоборудования на конец дня, м/ч]]+1)-Февраль[[#This Row],[Показание счетчика моточасов спецоборудования на начало дня, м/ч]],\"\")","v":0},null,{"$f":"IF(Февраль[[#This Row],[Работа спецоборудования за день, м/ч]]=\"\",\"\",Февраль[[#This Row],[Работа спецоборудования за день, м/ч]]*$Z$2)","v":0},{"$f":"IFERROR(IF(VLOOKUP(Февраль[Дата],S$2:U$3,3),IFERROR(IF(R29=\"\",Февраль[[#This Row],[Выдано топливо, литр]],Февраль[[#This Row],[Выдано топливо, литр]]+R29)+Февраль[[#This Row],[Остаток топлива в баке на начало дня, литр]]-Февраль[[#This Row],[Фактический расход топлива, литр]],\"\"),\"\"),\"\")","v":362},{"$f":"IFERROR(ROUND((Февраль[[#This Row],[Пройдено за день, км]]*0.01*$Y$2+Февраль[[#This Row],[Расход топлива на работу спецоборудования, литр]]),3)+V29,\"\")","v":0},{"$f":"IFERROR(IF(Февраль[[#Totals],[Выдано топливо, литр]]=0,0,(ROUND(Февраль[[#This Row],[Расход топлива по норме, литр]]/IF(DAY(Февраль[Дата])<=18,$W$2,$W$3),0)))+T29,\"\")","v":0},{"$f":"IFERROR(Февраль[[#This Row],[Фактический расход топлива, литр]]-Февраль[[#This Row],[Расход топлива по норме, литр]],\"\")","v":0},null,null,null,null,null,null,{"$f":"Февраль[[#This Row],[Дата]]","v":"2018-02-23"}]
[{"$f":"IFERROR(DATEVALUE((COUNT($A$6:A29)+1)&$P$1&$I$4),\"\")","v":"2018-02-24"},null,{"$f":"IF(Февраль[[#This Row],[Дата]]=\"\",\"\",D29)","v":211745},211745,{"$f":"IFERROR(Февраль[[#This Row],[Показание одометра машины на конец дня, км]]-Февраль[[#This Row],[Показание одометра машины на начало дня, км]]+S30,\"\")","v":0},null,{"$f":"IF(Февраль[[#This Row],[Дата]]=\"\",\"\",M29)","v":362},{"$f":"IF(Февраль[[#This Row],[Дата]]=\"\",\"\",I29)","v":697},697,{"$f":"IFERROR(IF(U30=\"\",Февраль[[#This Row],[Показание счетчика моточасов  спецоборудования на конец дня, м/ч]],Февраль[[#This Row],[Показание счетчика моточасов  спецоборудования на конец дня, м/ч]]+1)-Февраль[[#This Row],[Показание счетчика моточасов спецоборудования на начало дня, м/ч]],\"\")","v":0},null,{"$f":"IF(Февраль[[#This Row],[Работа спецоборудования за день, м/ч]]=\"\",\"\",Февраль[[#This Row],[Работа спецоборудования за день, м/ч]]*$Z$2)","v":0},{"$f":"IFERROR(IF(VLOOKUP(Февраль[Дата],S$2:U$3,3),IFERROR(IF(R30=\"\",Февраль[[#This Row],[Выдано топливо, литр]],Февраль[[#This Row],[Выдано топливо, литр]]+R30)+Февраль[[#This Row],[Остаток топлива в баке на начало дня, литр]]-Февраль[[#This Row],[Фактический расход топлива, литр]],\"\"),\"\"),\"\")","v":362},{"$f":"IFERROR(ROUND((Февраль[[#This Row],[Пройдено за день, км]]*0.01*$Y$2+Февраль[[#This Row],[Расход топлива на работу спецоборудования, литр]]),3)+V30,\"\")","v":0},{"$f":"IFERROR(IF(Февраль[[#Totals],[Выдано топливо, литр]]=0,0,(ROUND(Февраль[[#This Row],[Расход топлива по норме, литр]]/IF(DAY(Февраль[Дата])<=18,$W$2,$W$3),0)))+T30,\"\")","v":0},{"$f":"IFERROR(Февраль[[#This Row],[Фактический расход топлива, литр]]-Февраль[[#This Row],[Расход топлива по норме, литр]],\"\")","v":0},null,null,null,null,null,null,{"$f":"Февраль[[#This Row],[Дата]]","v":"2018-02-24"}]
[{"$f":"IFERROR(DATEVALUE((COUNT($A$6:A30)+1)&$P$1&$I$4),\"\")","v":"2018-02-25"},null,{"$f":"IF(Февраль[[#This Row],[Дата]]=\"\",\"\",D30)","v":211745},211745,{"$f":"IFERROR(Февраль[[#This Row],[Показание одометра машины на конец дня, км]]-Февраль[[#This Row],[Показание одометра машины на начало дня, км]]+S31,\"\")","v":0},null,{"$f":"IF(Февраль[[#This Row],[Дата]]=\"\",\"\",M30)","v":362},{"$f":"IF(Февраль[[#This Row],[Дата]]=\"\",\"\",I30)","v":697},697,{"$f":"IFERROR(IF(U31=\"\",Февраль[[#This Row],[Показание счетчика моточасов  спецоборудования на конец дня, м/ч]],Февраль[[#This Row],[Показание счетчика моточасов  спецоборудования на конец дня, м/ч]]+1)-Февраль[[#This Row],[Показание счетчика моточасов спецоборудования на начало дня, м/ч]],\"\")","v":0},0,{"$f":"IF(Февраль[[#This Row],[Работа спецоборудования за день, м/ч]]=\"\",\"\",Февраль[[#This Row],[Работа спецоборудования за день, м/ч]]*$Z$2)","v":0},{"$f":"IFERROR(IF(VLOOKUP(Февраль[Дата],S$2:U$3,3),IFERROR(IF(R31=\"\",Февраль[[#This Row],[Выдано топливо, литр]],Февраль[[#This Row],[Выдано топливо, литр]]+R31)+Февраль[[#This Row],[Остаток топлива в баке на начало дня, литр]]-Февраль[[#This Row],[Фактический расход топлива, литр]],\"\"),\"\"),\"\")","v":362},{"$f":"IFERROR(ROUND((Февраль[[#This Row],[Пройдено за день, км]]*0.01*$Y$2+Февраль[[#This Row],[Расход топлива на работу спецоборудования, литр]]),3)+V31,\"\")","v":0},{"$f":"IFERROR(IF(Февраль[[#Totals],[Выдано топливо, литр]]=0,0,(ROUND(Февраль[[#This Row],[Расход топлива по норме, литр]]/IF(DAY(Февраль[Дата])<=18,$W$2,$W$3),0)))+T31,\"\")","v":0},{"$f":"IFERROR(Февраль[[#This Row],[Фактический расход топлива, литр]]-Февраль[[#This Row],[Расход топлива по норме, литр]],\"\")","v":0},null,null,null,null,null,null,{"$f":"Февраль[[#This Row],[Дата]]","v":"2018-02-25"}]
[{"$f":"IFERROR(DATEVALUE((COUNT($A$6:A31)+1)&$P$1&$I$4),\"\")","v":"2018-02-26"},"Никляев В.А.",{"$f":"IF(Февраль[[#This Row],[Дата]]=\"\",\"\",D31)","v":211745},211915,{"$f":"IFERROR(Февраль[[#This Row],[Показание одометра машины на конец дня, км]]-Февраль[[#This Row],[Показание одометра машины на начало дня, км]]+S32,\"\")","v":170},null,{"$f":"IF(Февраль[[#This Row],[Дата]]=\"\",\"\",M31)","v":362},{"$f":"IF(Февраль[[#This Row],[Дата]]=\"\",\"\",I31)","v":697},699,{"$f":"IFERROR(IF(U32=\"\",Февраль[[#This Row],[Показание счетчика моточасов  спецоборудования на конец дня, м/ч]],Февраль[[#This Row],[Показание счетчика моточасов  спецоборудования на конец дня, м/ч]]+1)-Февраль[[#This Row],[Показание счетчика моточасов спецоборудования на начало дня, м/ч]],\"\")","v":2},1,{"$f":"IF(Февраль[[#This Row],[Работа спецоборудования за день, м/ч]]=\"\",\"\",Февраль[[#This Row],[Работа спецоборудования за день, м/ч]]*$Z$2)","v":12.100000000000001},{"$f":"IFERROR(IF(VLOOKUP(Февраль[Дата],S$2:U$3,3),IFERROR(IF(R32=\"\",Февраль[[#This Row],[Выдано топливо, литр]],Февраль[[#This Row],[Выдано топливо, литр]]+R32)+Февраль[[#This Row],[Остаток топлива в баке на начало дня, литр]]-Февраль[[#This Row],[Фактический расход топлива, литр]],\"\"),\"\"),\"\")","v":270},{"$f":"IFERROR(ROUND((Февраль[[#This Row],[Пройдено за день, км]]*0.01*$Y$2+Февраль[[#This Row],[Расход топлива на работу спецоборудования, литр]]),3)+V32,\"\")","v":99.727999999999994},{"$f":"IFERROR(IF(Февраль[[#Totals],[Выдано топливо, литр]]=0,0,(ROUND(Февраль[[#This Row],[Расход топлива по норме, литр]]/IF(DAY(Февраль[Дата])<=18,$W$2,$W$3),0)))+T32,\"\")","v":92},{"$f":"IFERROR(Февраль[[#This Row],[Фактический расход топлива, литр]]-Февраль[[#This Row],[Расход топлива по норме, литр]],\"\")","v":-7.7279999999999944},null,null,null,null,null,null,{"$f":"Февраль[[#This Row],[Дата]]","v":"2018-02-26"}]
[{"$f":"IFERROR(DATEVALUE((COUNT($A$6:A32)+1)&$P$1&$I$4),\"\")","v":"2018-02-27"},"Никляев В.А.",{"$f":"IF(Февраль[[#This Row],[Дата]]=\"\",\"\",D32)","v":211915},211991,{"$f":"IFERROR(Февраль[[#This Row],[Показание одометра машины на конец дня, км]]-Февраль[[#This Row],[Показание одометра машины на начало дня, км]]+S33,\"\")","v":76},null,{"$f":"IF(Февраль[[#This Row],[Дата]]=\"\",\"\",M32)","v":270},{"$f":"IF(Февраль[[#This Row],[Дата]]=\"\",\"\",I32)","v":699},703,{"$f":"IFERROR(IF(U33=\"\",Февраль[[#This Row],[Показание счетчика моточасов  спецоборудования на конец дня, м/ч]],Февраль[[#This Row],[Показание счетчика моточасов  спецоборудования на конец дня, м/ч]]+1)-Февраль[[#This Row],[Показание счетчика моточасов спецоборудования на начало дня, м/ч]],\"\")","v":4},2,{"$f":"IF(Февраль[[#This Row],[Работа спецоборудования за день, м/ч]]=\"\",\"\",Февраль[[#This Row],[Работа спецоборудования за день, м/ч]]*$Z$2)","v":24.200000000000003},{"$f":"IFERROR(IF(VLOOKUP(Февраль[Дата],S$2:U$3,3),IFERROR(IF(R33=\"\",Февраль[[#This Row],[Выдано топливо, литр]],Февраль[[#This Row],[Выдано топливо, литр]]+R33)+Февраль[[#This Row],[Остаток топлива в баке на начало дня, литр]]-Февраль[[#This Row],[Фактический расход топлива, литр]],\"\"),\"\"),\"\")","v":212},{"$f":"IFERROR(ROUND((Февраль[[#This Row],[Пройдено за день, км]]*0.01*$Y$2+Февраль[[#This Row],[Расход топлива на работу спецоборудования, литр]]),3)+V33,\"\")","v":63.375},{"$f":"IFERROR(IF(Февраль[[#Totals],[Выдано топливо, литр]]=0,0,(ROUND(Февраль[[#This Row],[Расход топлива по норме, литр]]/IF(DAY(Февраль[Дата])<=18,$W$2,$W$3),0)))+T33,\"\")","v":58},{"$f":"IFERROR(Февраль[[#This Row],[Фактический расход топлива, литр]]-Февраль[[#This Row],[Расход топлива по норме, литр]],\"\")","v":-5.375},null,null,null,null,null,null,{"$f":"Февраль[[#This Row],[Дата]]","v":"2018-02-27"}]
[{"$f":"IFERROR(DATEVALUE((COUNT($A$6:A33)+1)&$P$1&$I$4),\"\")","v":"2018-02-28"},"Никляев В.А.",{"$f":"IF(Февраль[[#This Row],[Дата]]=\"\",\"\",D33)","v":211991},212252,{"$f":"IFERROR(Февраль[[#This Row],[Показание одометра машины на конец дня, км]]-Февраль[[#This Row],[Показание одометра машины на начало дня, км]]+S34,\"\")","v":261},300,{"$f":"IF(Февраль[[#This Row],[Дата]]=\"\",\"\",M33)","v":212},{"$f":"IF(Февраль[[#This Row],[Дата]]=\"\",\"\",I33)","v":703},708,{"$f":"IFERROR(IF(U34=\"\",Февраль[[#This Row],[Показание счетчика моточасов  спецоборудования на конец дня, м/ч]],Февраль[[#This Row],[Показание счетчика моточасов  спецоборудования на конец дня, м/ч]]+1)-Февраль[[#This Row],[Показание счетчика моточасов спецоборудования на начало дня, м/ч]],\"\")","v":5},3,{"$f":"IF(Февраль[[#This Row],[Работа спецоборудования за день, м/ч]]=\"\",\"\",Февраль[[#This Row],[Работа спецоборудования за день, м/ч]]*$Z$2)","v":30.250000000000004},{"$f":"IFERROR(IF(VLOOKUP(Февраль[Дата],S$2:U$3,3),IFERROR(IF(R34=\"\",Февраль[[#This Row],[Выдано топливо, литр]],Февраль[[#This Row],[Выдано топливо, литр]]+R34)+Февраль[[#This Row],[Остаток топлива в баке на начало дня, литр]]-Февраль[[#This Row],[Фактический расход топлива, литр]],\"\"),\"\"),\"\")","v":360},{"$f":"IFERROR(ROUND((Февраль[[#This Row],[Пройдено за день, км]]*0.01*$Y$2+Февраль[[#This Row],[Расход топлива на работу спецоборудования, литр]]),3)+V34,\"\")","v":164.785},{"$f":"IFERROR(IF(Февраль[[#Totals],[Выдано топливо, литр]]=0,0,(ROUND(Февраль[[#This Row],[Расход топлива по норме, литр]]/IF(DAY(Февраль[Дата])<=18,$W$2,$W$3),0)))+T34,\"\")","v":152},{"$f":"IFERROR(Февраль[[#This Row],[Фактический расход топлива, литр]]-Февраль[[#This Row],[Расход топлива по норме, литр]],\"\")","v":-12.784999999999997},null,null,null,null,null,null,{"$f":"Февраль[[#This Row],[Дата]]","v":"2018-02-28"}]
[{"$f":"IFERROR(DATEVALUE((COUNT($A$6:A34)+1)&$P$1&$I$4),\"\")","v":""},null,{"$f":"IF(Февраль[[#This Row],[Дата]]=\"\",\"\",D34)","v":""},null,{"$f":"IFERROR(Февраль[[#This Row],[Показание одометра машины на конец дня, км]]-Февраль[[#This Row],[Показание одометра машины на начало дня, км]]+S35,\"\")","v":""},null,{"$f":"IF(Февраль[[#This Row],[Дата]]=\"\",\"\",M34)","v":""},{"$f":"IF(Февраль[[#This Row],[Дата]]=\"\",\"\",I34)","v":""},null,{"$f":"IFERROR(IF(U35=\"\",Февраль[[#This Row],[Показание счетчика моточасов  спецоборудования на конец дня, м/ч]],Февраль[[#This Row],[Показание счетчика моточасов  спецоборудования на конец дня, м/ч]]+1)-Февраль[[#This Row],[Показание счетчика моточасов спецоборудования на начало дня, м/ч]],\"\")","v":""},null,{"$f":"IF(Февраль[[#This Row],[Работа спецоборудования за день, м/ч]]=\"\",\"\",Февраль[[#This Row],[Работа спецоборудования за день, м/ч]]*$Z$2)","v":""},{"$f":"IFERROR(IF(VLOOKUP(Февраль[Дата],S$2:U$3,3),IFERROR(IF(R35=\"\",Февраль[[#This Row],[Выдано топливо, литр]],Февраль[[#This Row],[Выдано топливо, литр]]+R35)+Февраль[[#This Row],[Остаток топлива в баке на начало дня, литр]]-Февраль[[#This Row],[Фактический расход топлива, литр]],\"\"),\"\"),\"\")","v":""},{"$f":"IFERROR(ROUND((Февраль[[#This Row],[Пройдено за день, км]]*0.01*$Y$2+Февраль[[#This Row],[Расход топлива на работу спецоборудования, литр]]),3)+V35,\"\")","v":""},{"$f":"IFERROR(IF(Февраль[[#Totals],[Выдано топливо, литр]]=0,0,(ROUND(Февраль[[#This Row],[Расход топлива по норме, литр]]/IF(DAY(Февраль[Дата])<=18,$W$2,$W$3),0)))+T35,\"\")","v":""},{"$f":"IFERROR(Февраль[[#This Row],[Фактический расход топлива, литр]]-Февраль[[#This Row],[Расход топлива по норме, литр]],\"\")","v":""},null,null,null,null,null,null,{"$f":"Февраль[[#This Row],[Дата]]","v":""}]
[{"$f":"IFERROR(DATEVALUE((COUNT($A$6:A35)+1)&$P$1&$I$4),\"\")","v":""},null,{"$f":"IF(Февраль[[#This Row],[Дата]]=\"\",\"\",D35)","v":""},null,{"$f":"IFERROR(Февраль[[#This Row],[Показание одометра машины на конец дня, км]]-Февраль[[#This Row],[Показание одометра машины на начало дня, км]]+S36,\"\")","v":""},null,{"$f":"IF(Февраль[[#This Row],[Дата]]=\"\",\"\",M35)","v":""},{"$f":"IF(Февраль[[#This Row],[Дата]]=\"\",\"\",I35)","v":""},null,{"$f":"IFERROR(IF(U36=\"\",Февраль[[#This Row],[Показание счетчика моточасов  спецоборудования на конец дня, м/ч]],Февраль[[#This Row],[Показание счетчика моточасов  спецоборудования на конец дня, м/ч]]+1)-Февраль[[#This Row],[Показание счетчика моточасов спецоборудования на начало дня, м/ч]],\"\")","v":""},null,{"$f":"IF(Февраль[[#This Row],[Работа спецоборудования за день, м/ч]]=\"\",\"\",Февраль[[#This Row],[Работа спецоборудования за день, м/ч]]*$Z$2)","v":""},{"$f":"IFERROR(IF(VLOOKUP(Февраль[Дата],S$2:U$3,3),IFERROR(IF(R36=\"\",Февраль[[#This Row],[Выдано топливо, литр]],Февраль[[#This Row],[Выдано топливо, литр]]+R36)+Февраль[[#This Row],[Остаток топлива в баке на начало дня, литр]]-Февраль[[#This Row],[Фактический расход топлива, литр]],\"\"),\"\"),\"\")","v":""},{"$f":"IFERROR(ROUND((Февраль[[#This Row],[Пройдено за день, км]]*0.01*$Y$2+Февраль[[#This Row],[Расход топлива на работу спецоборудования, литр]]),3)+V36,\"\")","v":""},{"$f":"IFERROR(IF(Февраль[[#Totals],[Выдано топливо, литр]]=0,0,(ROUND(Февраль[[#This Row],[Расход топлива по норме, литр]]/IF(DAY(Февраль[Дата])<=18,$W$2,$W$3),0)))+T36,\"\")","v":""},{"$f":"IFERROR(Февраль[[#This Row],[Фактический расход топлива, литр]]-Февраль[[#This Row],[Расход топлива по норме, литр]],\"\")","v":""},null,null,null,null,null,null,{"$f":"Февраль[[#This Row],[Дата]]","v":""}]
[{"$f":"IFERROR(DATEVALUE((COUNT($A$6:A36)+1)&$P$1&$I$4),\"\")","v":""},null,{"$f":"IF(Февраль[[#This Row],[Дата]]=\"\",\"\",D36)","v":""},null,{"$f":"IFERROR(Февраль[[#This Row],[Показание одометра машины на конец дня, км]]-Февраль[[#This Row],[Показание одометра машины на начало дня, км]]+S37,\"\")","v":""},null,{"$f":"IF(Февраль[[#This Row],[Дата]]=\"\",\"\",M36)","v":""},{"$f":"IF(Февраль[[#This Row],[Дата]]=\"\",\"\",I36)","v":""},null,{"$f":"IFERROR(IF(U37=\"\",Февраль[[#This Row],[Показание счетчика моточасов  спецоборудования на конец дня, м/ч]],Февраль[[#This Row],[Показание счетчика моточасов  спецоборудования на конец дня, м/ч]]+1)-Февраль[[#This Row],[Показание счетчика моточасов спецоборудования на начало дня, м/ч]],\"\")","v":""},null,{"$f":"IF(Февраль[[#This Row],[Работа спецоборудования за день, м/ч]]=\"\",\"\",Февраль[[#This Row],[Работа спецоборудования за день, м/ч]]*$Z$2)","v":""},{"$f":"IFERROR(IF(VLOOKUP(Февраль[Дата],S$2:U$3,3),IFERROR(IF(R37=\"\",Февраль[[#This Row],[Выдано топливо, литр]],Февраль[[#This Row],[Выдано топливо, литр]]+R37)+Февраль[[#This Row],[Остаток топлива в баке на начало дня, литр]]-Февраль[[#This Row],[Фактический расход топлива, литр]],\"\"),\"\"),\"\")","v":""},{"$f":"IFERROR(ROUND((Февраль[[#This Row],[Пройдено за день, км]]*0.01*$Y$2+Февраль[[#This Row],[Расход топлива на работу спецоборудования, литр]]),3)+V37,\"\")","v":""},{"$f":"IFERROR(IF(Февраль[[#Totals],[Выдано топливо, литр]]=0,0,(ROUND(Февраль[[#This Row],[Расход топлива по норме, литр]]/IF(DAY(Февраль[Дата])<=18,$W$2,$W$3),0)))+T37,\"\")","v":""},{"$f":"IFERROR(Февраль[[#This Row],[Фактический расход топлива, литр]]-Февраль[[#This Row],[Расход топлива по норме, литр]],\"\")","v":""},null,null,null,null,null,null,{"$f":"Февраль[[#This Row],[Дата]]","v":""}]
["Итог",null,null,null,{"$f":"SUBTOTAL(109,Февраль[Пройдено за день, км])","v":1529},{"$f":"SUBTOTAL(109,Февраль[Выдано топливо, литр])","v":920},null,null,null,{"$f":"SUBTOTAL(109,Февраль[Работа спецоборудования за день, м/ч])","v":37},{"$f":"SUBTOTAL(109,Февраль[Количество ходок])","v":24},{"$f":"SUBTOTAL(109,Февраль[Расход топлива на работу спецоборудования, литр])","v":223.85000000000002},null,{"$f":"SUBTOTAL(109,Февраль[Расход топлива по норме, литр])","v":1011.9889999999998},{"$f":"SUBTOTAL(109,Февраль[Фактический расход топлива, литр])","v":1060},{"$f":"SUBTOTAL(109,Февраль[Отклонение от нормы (Перерасход(+), экономия(-)), литр])","v":48.01100000000001}]
[null,null,null,null,null,null,null,null,null,null,{"$f":"SUMIFS(K7:K37,A7:A37,\">=\"&$S$2,A7:A37,\"<=\"&$T$2)","v":18}]
[null,null,null,null,null,null,null,null,null,null,{"$f":"SUMIFS(K7:K37,A7:A37,\">=\"&$S$3,A7:A37,\"<=\"&$T$3)","v":6}]

{"sheet":"Март","index":2,"n_rows":40,"n_cols":26,"rows_kept":40,"cut":false,"hidden":false,"merged":[[1,0,1,15],[2,0,2,15],[3,14,3,15]]}
[null,null,null,null,null,null,null,null,null,null,null,null,null,null,null,"Март",null,null,null,null,null,null,null,"Экономия","Базовая норма расхода на 100 км","Базовая норма расхода на 1 мото/час"]
["Общество с ограниченной ответственностью  \"Втормет Царицыно\"",null,null,null,null,null,null,null,null,null,null,null,null,null,null,null,null,"1-я половина",{"$f":"INDIRECT(TEXT(A7-1,\"ММММ\")&\"!t3\")+1","v":"2018-03-04"},"2018-03-15",{"$f":"ТС!E5","v":500},{"$f":"SUMIFS(Март[Выдано топливо, литр],Март[Дата],\">=\"&$S$2,Март[Дата],\"<=\"&$T$2)+IF(MONTH(T2)<>MONTH(S2),INDIRECT(TEXT(A7-1,\"ММММ\")&\"!F38\")-SUM(INDIRECT(TEXT(A7-1,\"ММММ\")&\"!V1:V2\")))","v":620},{"$f":"IF(V2=0,0,(SUMIFS(N7:N37,A7:A37,\">=\"&S2,A7:A37,\"<=\"&T2)+SUMIFS(INDIRECT(TEXT(A7-1,\"ММММ\")&\"!N7:N37\"),INDIRECT(TEXT(A7-1,\"ММММ\")&\"!A7:A37\"),\">=\"&S2))/(V2-U2+IF(MONTH(T2)=MONTH(S2),G7,INDEX(INDIRECT(TEXT(A7-1,\"ММММ\")&\"!G7:G37\"),DAY(S2)))))","v":1.0292209677419355},{"$f":"SUMIFS(Март[Отклонение от нормы (Перерасход(+), экономия(-)), литр],Март[Дата],\">=\"&$S$2,Март[Дата],\"<=\"&$T$2)","v":-16.11699999999999},{"$f":"IF(Y4=\"Зима\",VLOOKUP(Z4,Расчет[[Номер гос.регистрации / Заводской номер]:[Итога норма а/м \"ЛЕТО\"]],8,FALSE),VLOOKUP(Z4,Расчет[[Номер гос.регистрации / Заводской номер]:[Итога норма а/м \"ЛЕТО\"]],9,FALSE))","v":51.546000000000006},{"$f":"IF(Y4=\"Зима\",VLOOKUP(Z4,Расчет[[Номер гос.регистрации / Заводской номер]:[Итога норма а/м \"ЛЕТО\"]],13,FALSE),VLOOKUP(Z4,Расчет[[Номер гос.регистрации / Заводской номер]:[Итога норма а/м \"ЛЕТО\"]],14,FALSE))","v":6.0500000000000007}]
["Отчет водителя ломовоза с манипулятором",null,null,null,null,null,null,null,null,null,null,null,null,null,null,null,null,"2-я половина",{"$f":"T2+1","v":"2018-03-16"},{"$f":"INDEX(Март[Дата],COUNT(Март[Дата]))","v":"2018-03-31"},{"$f":"ТС!E6","v":500},{"$f":"SUMIFS(Март[Выдано топливо, литр],Март[Дата],\">=\"&$S$3,Март[Дата],\"<=\"&$T$3)+IF(MONTH(T3)<>MONTH(S3),INDIRECT(TEXT(A8-1,\"ММММ\")&\"!F38\")-SUM(INDIRECT(TEXT(A8-1,\"ММММ\")&\"!V1:V2\")))","v":300},{"$f":"IF(V3=0,0,(SUMIFS(N7:N37,A7:A37,\">=\"&S3,A7:A37,\"<=\"&T3)+SUMIFS(INDIRECT(TEXT(A7-1,\"ММММ\")&\"!N7:N37\"),INDIRECT(TEXT(A7-1,\"ММММ\")&\"!A7:A37\"),\">=\"&S3))/(V3-U3+IF(MONTH(T3)=MONTH(S3),G7,INDEX(INDIRECT(TEXT(A7-1,\"ММММ\")&\"!G7:G37\"),DAY(S3)))))","v":-377.87642666666665},{"$f":"SUMIFS(Март[Отклонение от нормы (Перерасход(+), экономия(-)), литр],Март[Дата],\">=\"&$S$3,Март[Дата],\"<=\"&$T$3)","v":113663.928}]
[null,null,null,null,null,null,null,"за",2018,null,null,null,null,null,"т056вв 197",null,null,null,{"$f":"T3+1","v":"2018-04-01"},null,null,null,{"$f":"IFERROR(INDIRECT(TEXT(A7+40,\"ММММ\")&\"!W2\"),)","v":0},null,"Зима","Норма 1"]
[]
["Дата","ФИО водителя","Показание одометра машины на начало дня, км","Показание одометра машины на конец дня, км","Пройдено за день, км","Выдано топливо, литр","Остаток топлива в баке на начало дня, литр","Показание счетчика моточасов спецоборудования на начало дня, м/ч","Показание счетчика моточасов  спецоборудования на конец дня, м/ч","Работа спецоборудования за день, м/ч","Количество ходок","Расход топлива на работу спецоборудования, литр","Остаток топлива в баке на конец дня, литр","Расход топлива по норме, литр","Фактический расход топлива, литр","Отклонение от нормы (Перерасход(+), экономия(-)), литр",null,"Выдано топливо, литр","Пройдено за день, км","Фактический расход топлива, литр","Работа спецоборудования за день, м/ч","Расход топлива по норме, литр","Дата"]
[{"$f":"IFERROR(DATEVALUE((COUNT($A$6:A6)+1)&$P$1&$I$4),\"\")","v":"2018-03-01"},null,{"$f":"INDEX(Январь!D7:D37,COUNT(Январь!D7:D37))","v":210723},210723,{"$f":"IFERROR(Март[[#This Row],[Показание одометра машины на конец дня, км]]-Март[[#This Row],[Показание одометра машины на начало дня, км]]+S7,\"\")","v":0},null,{"$f":"U2","v":500},{"$f":"INDEX(Январь!I7:I37,COUNT(Январь!I7:I37))","v":671},671,{"$f":"IFERROR(IF(U7=\"\",Март[[#This Row],[Показание счетчика моточасов  спецоборудования на конец дня, м/ч]],Март[[#This Row],[Показание счетчика моточасов  спецоборудования на конец дня, м/ч]]+1)-Март[[#This Row],[Показание счетчика моточасов спецоборудования на начало дня, м/ч]],\"\")","v":0},0,{"$f":"IF(Март[[#This Row],[Работа спецоборудования за день, м/ч]]=\"\",\"\",Март[[#This Row],[Работа спецоборудования за день, м/ч]]*$Z$2)","v":0},{"$f":"IFERROR(IF(VLOOKUP(Март[Дата],S$2:U$3,3),IFERROR(IF(R7=\"\",Март[[#This Row],[Выдано топливо, литр]],Март[[#This Row],[Выдано топливо, литр]]+R7)+Март[[#This Row],[Остаток топлива в баке на начало дня, литр]]-Март[[#This Row],[Фактический расход топлива, литр]],\"\"),\"\"),\"\")","v":""},{"$f":"IFERROR(ROUND((Март[[#This Row],[Пройдено за день, км]]*0.01*$Y$2+Март[[#This Row],[Расход топлива на работу спецоборудования, литр]]),3)+V7,\"\")","v":0},{"$f":"IFERROR(IF(Март[[#Totals],[Выдано топливо, литр]]=0,0,(ROUND(Март[[#This Row],[Расход топлива по норме, литр]]/IF(DAY(Март[Дата])<=18,$W$2,$W$3),0)))+T7,\"\")","v":0},{"$f":"IFERROR(Март[[#This Row],[Фактический расход топлива, литр]]-Март[[#This Row],[Расход топлива по норме, литр]],\"\")","v":0},null,null,null,null,null,null,{"$f":"Март[[#This Row],[Дата]]","v":"2018-03-01"}]
[{"$f":"IFERROR(DATEVALUE((COUNT($A$6:A7)+1)&$P$1&$I$4),\"\")","v":"2018-03-02"},"Никляев В.А.",{"$f":"IF(Март[[#This Row],[Дата]]=\"\",\"\",D7)","v":210723},210735,{"$f":"IFERROR(Март[[#This Row],[Показание одометра машины на конец дня, км]]-Март[[#This Row],[Показание одометра машины на начало дня, км]]+S8,\"\")","v":12},150,{"$f":"IF(Март[[#This Row],[Дата]]=\"\",\"\",M7)","v":""},{"$f":"IF(Март[[#This Row],[Дата]]=\"\",\"\",I7)","v":671},672,{"$f":"IFERROR(IF(U8=\"\",Март[[#This Row],[Показание счетчика моточасов  спецоборудования на конец дня, м/ч]],Март[[#This Row],[Показание счетчика моточасов  спецоборудования на конец дня, м/ч]]+1)-Март[[#This Row],[Показание счетчика моточасов спецоборудования на начало дня, м/ч]],\"\")","v":1},1,{"$f":"IF(Март[[#This Row],[Работа спецоборудования за день, м/ч]]=\"\",\"\",Март[[#This Row],[Работа спецоборудования за день, м/ч]]*$Z$2)","v":6.0500000000000007},{"$f":"IFERROR(IF(VLOOKUP(Март[Дата],S$2:U$3,3),IFERROR(IF(R8=\"\",Март[[#This Row],[Выдано топливо, литр]],Март[[#This Row],[Выдано топливо, литр]]+R8)+Март[[#This Row],[Остаток топлива в баке на начало дня, литр]]-Март[[#This Row],[Фактический расход топлива, литр]],\"\"),\"\"),\"\")","v":""},{"$f":"IFERROR(ROUND((Март[[#This Row],[Пройдено за день, км]]*0.01*$Y$2+Март[[#This Row],[Расход топлива на работу спецоборудования, литр]]),3)+V8,\"\")","v":12.236000000000001},{"$f":"IFERROR(IF(Март[[#Totals],[Выдано топливо, литр]]=0,0,(ROUND(Март[[#This Row],[Расход топлива по норме, литр]]/IF(DAY(Март[Дата])<=18,$W$2,$W$3),0)))+T8,\"\")","v":12},{"$f":"IFERROR(Март[[#This Row],[Фактический расход топлива, литр]]-Март[[#This Row],[Расход топлива по норме, литр]],\"\")","v":-0.23600000000000065},null,null,null,null,null,null,{"$f":"Март[[#This Row],[Дата]]","v":"2018-03-02"}]
[{"$f":"IFERROR(DATEVALUE((COUNT($A$6:A8)+1)&$P$1&$I$4),\"\")","v":"2018-03-03"},"Никляев В.А.",{"$f":"IF(Март[[#This Row],[Дата]]=\"\",\"\",D8)","v":210735},210777,{"$f":"IFERROR(Март[[#This Row],[Показание одометра машины на конец дня, км]]-Март[[#This Row],[Показание одометра машины на начало дня, км]]+S9,\"\")","v":42},null,{"$f":"IF(Март[[#This Row],[Дата]]=\"\",\"\",M8)","v":""},{"$f":"IF(Март[[#This Row],[Дата]]=\"\",\"\",I8)","v":672},674,{"$f":"IFERROR(IF(U9=\"\",Март[[#This Row],[Показание счетчика моточасов  спецоборудования на конец дня, м/ч]],Март[[#This Row],[Показание счетчика моточасов  спецоборудования на конец дня, м/ч]]+1)-Март[[#This Row],[Показание счетчика моточасов спецоборудования на начало дня, м/ч]],\"\")","v":2},1,{"$f":"IF(Март[[#This Row],[Работа спецоборудования за день, м/ч]]=\"\",\"\",Март[[#This Row],[Работа спецоборудования за день, м/ч]]*$Z$2)","v":12.100000000000001},{"$f":"IFERROR(IF(VLOOKUP(Март[Дата],S$2:U$3,3),IFERROR(IF(R9=\"\",Март[[#This Row],[Выдано топливо, литр]],Март[[#This Row],[Выдано топливо, литр]]+R9)+Март[[#This Row],[Остаток топлива в баке на начало дня, литр]]-Март[[#This Row],[Фактический расход топлива, литр]],\"\"),\"\"),\"\")","v":""},{"$f":"IFERROR(ROUND((Март[[#This Row],[Пройдено за день, км]]*0.01*$Y$2+Март[[#This Row],[Расход топлива на работу спецоборудования, литр]]),3)+V9,\"\")","v":33.748000000000005},{"$f":"IFERROR(IF(Март[[#Totals],[Выдано топливо, литр]]=0,0,(ROUND(Март[[#This Row],[Расход топлива по норме, литр]]/IF(DAY(Март[Дата])<=18,$W$2,$W$3),0)))+T9,\"\")","v":33},{"$f":"IFERROR(Март[[#This Row],[Фактический расход топлива, литр]]-Март[[#This Row],[Расход топлива по норме, литр]],\"\")","v":-0.74800000000000466},null,null,null,null,null,-1E-3,{"$f":"Март[[#This Row],[Дата]]","v":"2018-03-03"}]
[{"$f":"IFERROR(DATEVALUE((COUNT($A$6:A9)+1)&$P$1&$I$4),\"\")","v":"2018-03-04"},"Никляев В.А.",{"$f":"IF(Март[[#This Row],[Дата]]=\"\",\"\",D9)","v":210777},210864,{"$f":"IFERROR(Март[[#This Row],[Показание одометра машины на конец дня, км]]-Март[[#This Row],[Показание одометра машины на начало дня, км]]+S10,\"\")","v":87},null,{"$f":"IF(Март[[#This Row],[Дата]]=\"\",\"\",M9)","v":""},{"$f":"IF(Март[[#This Row],[Дата]]=\"\",\"\",I9)","v":674},676,{"$f":"IFERROR(IF(U10=\"\",Март[[#This Row],[Показание счетчика моточасов  спецоборудования на конец дня, м/ч]],Март[[#This Row],[Показание счетчика моточасов  спецоборудования на конец дня, м/ч]]+1)-Март[[#This Row],[Показание счетчика моточасов спецоборудования на начало дня, м/ч]],\"\")","v":2},2,{"$f":"IF(Март[[#This Row],[Работа спецоборудования за день, м/ч]]=\"\",\"\",Март[[#This Row],[Работа спецоборудования за день, м/ч]]*$Z$2)","v":12.100000000000001},{"$f":"IFERROR(IF(VLOOKUP(Март[Дата],S$2:U$3,3),IFERROR(IF(R10=\"\",Март[[#This Row],[Выдано топливо, литр]],Март[[#This Row],[Выдано топливо, литр]]+R10)+Март[[#This Row],[Остаток топлива в баке на начало дня, литр]]-Март[[#This Row],[Фактический расход топлива, литр]],\"\"),\"\"),\"\")","v":""},{"$f":"IFERROR(ROUND((Март[[#This Row],[Пройдено за день, км]]*0.01*$Y$2+Март[[#This Row],[Расход топлива на работу спецоборудования, литр]]),3)+V10,\"\")","v":56.945},{"$f":"IFERROR(IF(Март[[#Totals],[Выдано топливо, литр]]=0,0,(ROUND(Март[[#This Row],[Расход топлива по норме, литр]]/IF(DAY(Март[Дата])<=18,$W$2,$W$3),0)))+T10,\"\")","v":55},{"$f":"IFERROR(Март[[#This Row],[Фактический расход топлива, литр]]-Март[[#This Row],[Расход топлива по норме, литр]],\"\")","v":-1.9450000000000003},null,null,null,null,null,null,{"$f":"Март[[#This Row],[Дата]]","v":"2018-03-04"}]
[{"$f":"IFERROR(DATEVALUE((COUNT($A$6:A10)+1)&$P$1&$I$4),\"\")","v":"2018-03-05"},null,{"$f":"IF(Март[[#This Row],[Дата]]=\"\",\"\",D10)","v":210864},210864,{"$f":"IFERROR(Март[[#This Row],[Показание одометра машины на конец дня, км]]-Март[[#This Row],[Показание одометра машины на начало дня, км]]+S11,\"\")","v":0},null,{"$f":"IF(Март[[#This Row],[Дата]]=\"\",\"\",M10)","v":""},{"$f":"IF(Март[[#This Row],[Дата]]=\"\",\"\",I10)","v":676},676,{"$f":"IFERROR(IF(U11=\"\",Март[[#This Row],[Показание счетчика моточасов  спецоборудования на конец дня, м/ч]],Март[[#This Row],[Показание счетчика моточасов  спецоборудования на конец дня, м/ч]]+1)-Март[[#This Row],[Показание счетчика моточасов спецоборудования на начало дня, м/ч]],\"\")","v":0},0,{"$f":"IF(Март[[#This Row],[Работа спецоборудования за день, м/ч]]=\"\",\"\",Март[[#This Row],[Работа спецоборудования за день, м/ч]]*$Z$2)","v":0},{"$f":"IFERROR(IF(VLOOKUP(Март[Дата],S$2:U$3,3),IFERROR(IF(R11=\"\",Март[[#This Row],[Выдано топливо, литр]],Март[[#This Row],[Выдано топливо, литр]]+R11)+Март[[#This Row],[Остаток топлива в баке на начало дня, литр]]-Март[[#This Row],[Фактический расход топлива, литр]],\"\"),\"\"),\"\")","v":""},{"$f":"IFERROR(ROUND((Март[[#This Row],[Пройдено за день, км]]*0.01*$Y$2+Март[[#This Row],[Расход топлива на работу спецоборудования, литр]]),3)+V11,\"\")","v":0},{"$f":"IFERROR(IF(Март[[#Totals],[Выдано топливо, литр]]=0,0,(ROUND(Март[[#This Row],[Расход топлива по норме, литр]]/IF(DAY(Март[Дата])<=18,$W$2,$W$3),0)))+T11,\"\")","v":0},{"$f":"IFERROR(Март[[#This Row],[Фактический расход топлива, литр]]-Март[[#This Row],[Расход топлива по норме, литр]],\"\")","v":0},null,null,null,null,null,null,{"$f":"Март[[#This Row],[Дата]]","v":"2018-03-05"}]
[{"$f":"IFERROR(DATEVALUE((COUNT($A$6:A11)+1)&$P$1&$I$4),\"\")","v":"2018-03-06"},"Никляев В.А.",{"$f":"IF(Март[[#This Row],[Дата]]=\"\",\"\",D11)","v":210864},210888,{"$f":"IFERROR(Март[[#This Row],[Показание одометра машины на конец дня, км]]-Март[[#This Row],[Показание одометра машины на начало дня, км]]+S12,\"\")","v":24},null,{"$f":"IF(Март[[#This Row],[Дата]]=\"\",\"\",M11)","v":""},{"$f":"IF(Март[[#This Row],[Дата]]=\"\",\"\",I11)","v":676},678,{"$f":"IFERROR(IF(U12=\"\",Март[[#This Row],[Показание счетчика моточасов  спецоборудования на конец дня, м/ч]],Март[[#This Row],[Показание счетчика моточасов  спецоборудования на конец дня, м/ч]]+1)-Март[[#This Row],[Показание счетчика моточасов спецоборудования на начало дня, м/ч]],\"\")","v":2},1,{"$f":"IF(Март[[#This Row],[Работа спецоборудования за день, м/ч]]=\"\",\"\",Март[[#This Row],[Работа спецоборудования за день, м/ч]]*$Z$2)","v":12.100000000000001},{"$f":"IFERROR(IF(VLOOKUP(Март[Дата],S$2:U$3,3),IFERROR(IF(R12=\"\",Март[[#This Row],[Выдано топливо, литр]],Март[[#This Row],[Выдано топливо, литр]]+R12)+Март[[#This Row],[Остаток топлива в баке на начало дня, литр]]-Март[[#This Row],[Фактический расход топлива, литр]],\"\"),\"\"),\"\")","v":""},{"$f":"IFERROR(ROUND((Март[[#This Row],[Пройдено за день, км]]*0.01*$Y$2+Март[[#This Row],[Расход топлива на работу спецоборудования, литр]]),3)+V12,\"\")","v":24.471},{"$f":"IFERROR(IF(Март[[#Totals],[Выдано топливо, литр]]=0,0,(ROUND(Март[[#This Row],[Расход топлива по норме, литр]]/IF(DAY(Март[Дата])<=18,$W$2,$W$3),0)))+T12,\"\")","v":24},{"$f":"IFERROR(Март[[#This Row],[Фактический расход топлива, литр]]-Март[[#This Row],[Расход топлива по норме, литр]],\"\")","v":-0.47100000000000009},null,null,null,null,null,null,{"$f":"Март[[#This Row],[Дата]]","v":"2018-03-06"}]
[{"$f":"IFERROR(DATEVALUE((COUNT($A$6:A12)+1)&$P$1&$I$4),\"\")","v":"2018-03-07"},"Никляев В.А.",{"$f":"IF(Март[[#This Row],[Дата]]=\"\",\"\",D12)","v":210888},210900,{"$f":"IFERROR(Март[[#This Row],[Показание одометра машины на конец дня, км]]-Март[[#This Row],[Показание одометра машины на начало дня, км]]+S13,\"\")","v":12},null,{"$f":"IF(Март[[#This Row],[Дата]]=\"\",\"\",M12)","v":""},{"$f":"IF(Март[[#This Row],[Дата]]=\"\",\"\",I12)","v":678},679,{"$f":"IFERROR(IF(U13=\"\",Март[[#This Row],[Показание счетчика моточасов  спецоборудования на конец дня, м/ч]],Март[[#This Row],[Показание счетчика моточасов  спецоборудования на конец дня, м/ч]]+1)-Март[[#This Row],[Показание счетчика моточасов спецоборудования на начало дня, м/ч]],\"\")","v":1},1,{"$f":"IF(Март[[#This Row],[Работа спецоборудования за день, м/ч]]=\"\",\"\",Март[[#This Row],[Работа спецоборудования за день, м/ч]]*$Z$2)","v":6.0500000000000007},{"$f":"IFERROR(IF(VLOOKUP(Март[Дата],S$2:U$3,3),IFERROR(IF(R13=\"\",Март[[#This Row],[Выдано топливо, литр]],Март[[#This Row],[Выдано топливо, литр]]+R13)+Март[[#This Row],[Остаток топлива в баке на начало дня, литр]]-Март[[#This Row],[Фактический расход топлива, литр]],\"\"),\"\"),\"\")","v":""},{"$f":"IFERROR(ROUND((Март[[#This Row],[Пройдено за день, км]]*0.01*$Y$2+Март[[#This Row],[Расход топлива на работу спецоборудования, литр]]),3)+V13,\"\")","v":12.236000000000001},{"$f":"IFERROR(IF(Март[[#Totals],[Выдано топливо, литр]]=0,0,(ROUND(Март[[#This Row],[Расход топлива по норме, литр]]/IF(DAY(Март[Дата])<=18,$W$2,$W$3),0)))+T13,\"\")","v":12},{"$f":"IFERROR(Март[[#This Row],[Фактический расход топлива, литр]]-Март[[#This Row],[Расход топлива по норме, литр]],\"\")","v":-0.23600000000000065},null,null,null,null,null,null,{"$f":"Март[[#This Row],[Дата]]","v":"2018-03-07"}]
[{"$f":"IFERROR(DATEVALUE((COUNT($A$6:A13)+1)&$P$1&$I$4),\"\")","v":"2018-03-08"},"Никляев В.А.",{"$f":"IF(Март[[#This Row],[Дата]]=\"\",\"\",D13)","v":210900},211028,{"$f":"IFERROR(Март[[#This Row],[Показание одометра машины на конец дня, км]]-Март[[#This Row],[Показание одометра машины на начало дня, км]]+S14,\"\")","v":128},null,{"$f":"IF(Март[[#This Row],[Дата]]=\"\",\"\",M13)","v":""},{"$f":"IF(Март[[#This Row],[Дата]]=\"\",\"\",I13)","v":679},683,{"$f":"IFERROR(IF(U14=\"\",Март[[#This Row],[Показание счетчика моточасов  спецоборудования на конец дня, м/ч]],Март[[#This Row],[Показание счетчика моточасов  спецоборудования на конец дня, м/ч]]+1)-Март[[#This Row],[Показание счетчика моточасов спецоборудования на начало дня, м/ч]],\"\")","v":4},2,{"$f":"IF(Март[[#This Row],[Работа спецоборудования за день, м/ч]]=\"\",\"\",Март[[#This Row],[Работа спецоборудования за день, м/ч]]*$Z$2)","v":24.200000000000003},{"$f":"IFERROR(IF(VLOOKUP(Март[Дата],S$2:U$3,3),IFERROR(IF(R14=\"\",Март[[#This Row],[Выдано топливо, литр]],Март[[#This Row],[Выдано топливо, литр]]+R14)+Март[[#This Row],[Остаток топлива в баке на начало дня, литр]]-Март[[#This Row],[Фактический расход топлива, литр]],\"\"),\"\"),\"\")","v":""},{"$f":"IFERROR(ROUND((Март[[#This Row],[Пройдено за день, км]]*0.01*$Y$2+Март[[#This Row],[Расход топлива на работу спецоборудования, литр]]),3)+V14,\"\")","v":90.179000000000002},{"$f":"IFERROR(IF(Март[[#Totals],[Выдано топливо, литр]]=0,0,(ROUND(Март[[#This Row],[Расход топлива по норме, литр]]/IF(DAY(Март[Дата])<=18,$W$2,$W$3),0)))+T14,\"\")","v":88},{"$f":"IFERROR(Март[[#This Row],[Фактический расход топлива, литр]]-Март[[#This Row],[Расход топлива по норме, литр]],\"\")","v":-2.179000000000002},null,null,null,null,null,null,{"$f":"Март[[#This Row],[Дата]]","v":"2018-03-08"}]
[{"$f":"IFERROR(DATEVALUE((COUNT($A$6:A14)+1)&$P$1&$I$4),\"\")","v":"2018-03-09"},"Никляев В.А.",{"$f":"IF(Март[[#This Row],[Дата]]=\"\",\"\",D14)","v":211028},211140,{"$f":"IFERROR(Март[[#This Row],[Показание одометра машины на конец дня, км]]-Март[[#This Row],[Показание одометра машины на начало дня, км]]+S15,\"\")","v":112},null,{"$f":"IF(Март[[#This Row],[Дата]]=\"\",\"\",M14)","v":""},{"$f":"IF(Март[[#This Row],[Дата]]=\"\",\"\",I14)","v":683},685,{"$f":"IFERROR(IF(U15=\"\",Март[[#This Row],[Показание счетчика моточасов  спецоборудования на конец дня, м/ч]],Март[[#This Row],[Показание счетчика моточасов  спецоборудования на конец дня, м/ч]]+1)-Март[[#This Row],[Показание счетчика моточасов спецоборудования на начало дня, м/ч]],\"\")","v":2},2,{"$f":"IF(Март[[#This Row],[Работа спецоборудования за день, м/ч]]=\"\",\"\",Март[[#This Row],[Работа спецоборудования за день, м/ч]]*$Z$2)","v":12.100000000000001},{"$f":"IFERROR(IF(VLOOKUP(Март[Дата],S$2:U$3,3),IFERROR(IF(R15=\"\",Март[[#This Row],[Выдано топливо, литр]],Март[[#This Row],[Выдано топливо, литр]]+R15)+Март[[#This Row],[Остаток топлива в баке на начало дня, литр]]-Март[[#This Row],[Фактический расход топлива, литр]],\"\"),\"\"),\"\")","v":""},{"$f":"IFERROR(ROUND((Март[[#This Row],[Пройдено за день, км]]*0.01*$Y$2+Март[[#This Row],[Расход топлива на работу спецоборудования, литр]]),3)+V15,\"\")","v":69.831999999999994},{"$f":"IFERROR(IF(Март[[#Totals],[Выдано топливо, литр]]=0,0,(ROUND(Март[[#This Row],[Расход топлива по норме, литр]]/IF(DAY(Март[Дата])<=18,$W$2,$W$3),0)))+T15,\"\")","v":68},{"$f":"IFERROR(Март[[#This Row],[Фактический расход топлива, литр]]-Март[[#This Row],[Расход топлива по норме, литр]],\"\")","v":-1.8319999999999936},null,null,null,null,null,null,{"$f":"Март[[#This Row],[Дата]]","v":"2018-03-09"}]
[{"$f":"IFERROR(DATEVALUE((COUNT($A$6:A15)+1)&$P$1&$I$4),\"\")","v":"2018-03-10"},"Никляев В.А.",{"$f":"IF(Март[[#This Row],[Дата]]=\"\",\"\",D15)","v":211140},211246,{"$f":"IFERROR(Март[[#This Row],[Показание одометра машины на конец дня, км]]-Март[[#This Row],[Показание одометра машины на начало дня, км]]+S16,\"\")","v":106},null,{"$f":"IF(Март[[#This Row],[Дата]]=\"\",\"\",M15)","v":""},{"$f":"IF(Март[[#This Row],[Дата]]=\"\",\"\",I15)","v":685},687,{"$f":"IFERROR(IF(U16=\"\",Март[[#This Row],[Показание счетчика моточасов  спецоборудования на конец дня, м/ч]],Март[[#This Row],[Показание счетчика моточасов  спецоборудования на конец дня, м/ч]]+1)-Март[[#This Row],[Показание счетчика моточасов спецоборудования на начало дня, м/ч]],\"\")","v":2},1,{"$f":"IF(Март[[#This Row],[Работа спецоборудования за день, м/ч]]=\"\",\"\",Март[[#This Row],[Работа спецоборудования за день, м/ч]]*$Z$2)","v":12.100000000000001},{"$f":"IFERROR(IF(VLOOKUP(Март[Дата],S$2:U$3,3),IFERROR(IF(R16=\"\",Март[[#This Row],[Выдано топливо, литр]],Март[[#This Row],[Выдано топливо, литр]]+R16)+Март[[#This Row],[Остаток топлива в баке на начало дня, литр]]-Март[[#This Row],[Фактический расход топлива, литр]],\"\"),\"\"),\"\")","v":""},{"$f":"IFERROR(ROUND((Март[[#This Row],[Пройдено за день, км]]*0.01*$Y$2+Март[[#This Row],[Расход топлива на работу спецоборудования, литр]]),3)+V16,\"\")","v":66.739000000000004},{"$f":"IFERROR(IF(Март[[#Totals],[Выдано топливо, литр]]=0,0,(ROUND(Март[[#This Row],[Расход топлива по норме, литр]]/IF(DAY(Март[Дата])<=18,$W$2,$W$3),0)))+T16,\"\")","v":65},{"$f":"IFERROR(Март[[#This Row],[Фактический расход топлива, литр]]-Март[[#This Row],[Расход топлива по норме, литр]],\"\")","v":-1.7390000000000043},null,null,null,null,null,null,{"$f":"Март[[#This Row],[Дата]]","v":"2018-03-10"}]
[{"$f":"IFERROR(DATEVALUE((COUNT($A$6:A16)+1)&$P$1&$I$4),\"\")","v":"2018-03-11"},null,{"$f":"IF(Март[[#This Row],[Дата]]=\"\",\"\",D16)","v":211246},211246,{"$f":"IFERROR(Март[[#This Row],[Показание одометра машины на конец дня, км]]-Март[[#This Row],[Показание одометра машины на начало дня, км]]+S17,\"\")","v":0},null,{"$f":"IF(Март[[#This Row],[Дата]]=\"\",\"\",M16)","v":""},{"$f":"IF(Март[[#This Row],[Дата]]=\"\",\"\",I16)","v":687},687,{"$f":"IFERROR(IF(U17=\"\",Март[[#This Row],[Показание счетчика моточасов  спецоборудования на конец дня, м/ч]],Март[[#This Row],[Показание счетчика моточасов  спецоборудования на конец дня, м/ч]]+1)-Март[[#This Row],[Показание счетчика моточасов спецоборудования на начало дня, м/ч]],\"\")","v":0},0,{"$f":"IF(Март[[#This Row],[Работа спецоборудования за день, м/ч]]=\"\",\"\",Март[[#This Row],[Работа спецоборудования за день, м/ч]]*$Z$2)","v":0},{"$f":"IFERROR(IF(VLOOKUP(Март[Дата],S$2:U$3,3),IFERROR(IF(R17=\"\",Март[[#This Row],[Выдано топливо, литр]],Март[[#This Row],[Выдано топливо, литр]]+R17)+Март[[#This Row],[Остаток топлива в баке на начало дня, литр]]-Март[[#This Row],[Фактический расход топлива, литр]],\"\"),\"\"),\"\")","v":""},{"$f":"IFERROR(ROUND((Март[[#This Row],[Пройдено за день, км]]*0.01*$Y$2+Март[[#This Row],[Расход топлива на работу спецоборудования, литр]]),3)+V17,\"\")","v":0},{"$f":"IFERROR(IF(Март[[#Totals],[Выдано топливо, литр]]=0,0,(ROUND(Март[[#This Row],[Расход топлива по норме, литр]]/IF(DAY(Март[Дата])<=18,$W$2,$W$3),0)))+T17,\"\")","v":0},{"$f":"IFERROR(Март[[#This Row],[Фактический расход топлива, литр]]-Март[[#This Row],[Расход топлива по норме, литр]],\"\")","v":0},null,null,null,null,null,null,{"$f":"Март[[#This Row],[Дата]]","v":"2018-03-11"}]
[{"$f":"IFERROR(DATEVALUE((COUNT($A$6:A17)+1)&$P$1&$I$4),\"\")","v":"2018-03-12"},"Никляев В.А.",{"$f":"IF(Март[[#This Row],[Дата]]=\"\",\"\",D17)","v":211246},211429,{"$f":"IFERROR(Март[[#This Row],[Показание одометра машины на конец дня, км]]-Март[[#This Row],[Показание одометра машины на начало дня, км]]+S18,\"\")","v":183},320,{"$f":"IF(Март[[#This Row],[Дата]]=\"\",\"\",M17)","v":""},{"$f":"IF(Март[[#This Row],[Дата]]=\"\",\"\",I17)","v":687},691,{"$f":"IFERROR(IF(U18=\"\",Март[[#This Row],[Показание счетчика моточасов  спецоборудования на конец дня, м/ч]],Март[[#This Row],[Показание счетчика моточасов  спецоборудования на конец дня, м/ч]]+1)-Март[[#This Row],[Показание счетчика моточасов спецоборудования на начало дня, м/ч]],\"\")","v":4},3,{"$f":"IF(Март[[#This Row],[Работа спецоборудования за день, м/ч]]=\"\",\"\",Март[[#This Row],[Работа спецоборудования за день, м/ч]]*$Z$2)","v":24.200000000000003},{"$f":"IFERROR(IF(VLOOKUP(Март[Дата],S$2:U$3,3),IFERROR(IF(R18=\"\",Март[[#This Row],[Выдано топливо, литр]],Март[[#This Row],[Выдано топливо, литр]]+R18)+Март[[#This Row],[Остаток топлива в баке на начало дня, литр]]-Март[[#This Row],[Фактический расход топлива, литр]],\"\"),\"\"),\"\")","v":""},{"$f":"IFERROR(ROUND((Март[[#This Row],[Пройдено за день, км]]*0.01*$Y$2+Март[[#This Row],[Расход топлива на работу спецоборудования, литр]]),3)+V18,\"\")","v":118.529},{"$f":"IFERROR(IF(Март[[#Totals],[Выдано топливо, литр]]=0,0,(ROUND(Март[[#This Row],[Расход топлива по норме, литр]]/IF(DAY(Март[Дата])<=18,$W$2,$W$3),0)))+T18,\"\")","v":115},{"$f":"IFERROR(Март[[#This Row],[Фактический расход топлива, литр]]-Март[[#This Row],[Расход топлива по норме, литр]],\"\")","v":-3.5289999999999964},null,null,null,null,null,null,{"$f":"Март[[#This Row],[Дата]]","v":"2018-03-12"}]
[{"$f":"IFERROR(DATEVALUE((COUNT($A$6:A18)+1)&$P$1&$I$4),\"\")","v":"2018-03-13"},null,{"$f":"IF(Март[[#This Row],[Дата]]=\"\",\"\",D18)","v":211429},211429,{"$f":"IFERROR(Март[[#This Row],[Показание одометра машины на конец дня, км]]-Март[[#This Row],[Показание одометра машины на начало дня, км]]+S19,\"\")","v":0},null,{"$f":"IF(Март[[#This Row],[Дата]]=\"\",\"\",M18)","v":""},{"$f":"IF(Март[[#This Row],[Дата]]=\"\",\"\",I18)","v":691},691,{"$f":"IFERROR(IF(U19=\"\",Март[[#This Row],[Показание счетчика моточасов  спецоборудования на конец дня, м/ч]],Март[[#This Row],[Показание счетчика моточасов  спецоборудования на конец дня, м/ч]]+1)-Март[[#This Row],[Показание счетчика моточасов спецоборудования на начало дня, м/ч]],\"\")","v":0},0,{"$f":"IF(Март[[#This Row],[Работа спецоборудования за день, м/ч]]=\"\",\"\",Март[[#This Row],[Работа спецоборудования за день, м/ч]]*$Z$2)","v":0},{"$f":"IFERROR(IF(VLOOKUP(Март[Дата],S$2:U$3,3),IFERROR(IF(R19=\"\",Март[[#This Row],[Выдано топливо, литр]],Март[[#This Row],[Выдано топливо, литр]]+R19)+Март[[#This Row],[Остаток топлива в баке на начало дня, литр]]-Март[[#This Row],[Фактический расход топлива, литр]],\"\"),\"\"),\"\")","v":""},{"$f":"IFERROR(ROUND((Март[[#This Row],[Пройдено за день, км]]*0.01*$Y$2+Март[[#This Row],[Расход топлива на работу спецоборудования, литр]]),3)+V19,\"\")","v":0},{"$f":"IFERROR(IF(Март[[#Totals],[Выдано топливо, литр]]=0,0,(ROUND(Март[[#This Row],[Расход топлива по норме, литр]]/IF(DAY(Март[Дата])<=18,$W$2,$W$3),0)))+T19,\"\")","v":0},{"$f":"IFERROR(Март[[#This Row],[Фактический расход топлива, литр]]-Март[[#This Row],[Расход топлива по норме, литр]],\"\")","v":0},null,null,null,null,null,null,{"$f":"Март[[#This Row],[Дата]]","v":"2018-03-13"}]
[{"$f":"IFERROR(DATEVALUE((COUNT($A$6:A19)+1)&$P$1&$I$4),\"\")","v":"2018-03-14"},"Никляев В.А.",{"$f":"IF(Март[[#This Row],[Дата]]=\"\",\"\",D19)","v":211429},211665,{"$f":"IFERROR(Март[[#This Row],[Показание одометра машины на конец дня, км]]-Март[[#This Row],[Показание одометра машины на начало дня, км]]+S20,\"\")","v":236},null,{"$f":"IF(Март[[#This Row],[Дата]]=\"\",\"\",M19)","v":""},{"$f":"IF(Март[[#This Row],[Дата]]=\"\",\"\",I19)","v":691},695,{"$f":"IFERROR(IF(U20=\"\",Март[[#This Row],[Показание счетчика моточасов  спецоборудования на конец дня, м/ч]],Март[[#This Row],[Показание счетчика моточасов  спецоборудования на конец дня, м/ч]]+1)-Март[[#This Row],[Показание счетчика моточасов спецоборудования на начало дня, м/ч]],\"\")","v":4},2,{"$f":"IF(Март[[#This Row],[Работа спецоборудования за день, м/ч]]=\"\",\"\",Март[[#This Row],[Работа спецоборудования за день, м/ч]]*$Z$2)","v":24.200000000000003},{"$f":"IFERROR(IF(VLOOKUP(Март[Дата],S$2:U$3,3),IFERROR(IF(R20=\"\",Март[[#This Row],[Выдано топливо, литр]],Март[[#This Row],[Выдано топливо, литр]]+R20)+Март[[#This Row],[Остаток топлива в баке на начало дня, литр]]-Март[[#This Row],[Фактический расход топлива, литр]],\"\"),\"\"),\"\")","v":""},{"$f":"IFERROR(ROUND((Март[[#This Row],[Пройдено за день, км]]*0.01*$Y$2+Март[[#This Row],[Расход топлива на работу спецоборудования, литр]]),3)+V20,\"\")","v":145.84899999999999},{"$f":"IFERROR(IF(Март[[#Totals],[Выдано топливо, литр]]=0,0,(ROUND(Март[[#This Row],[Расход топлива по норме, литр]]/IF(DAY(Март[Дата])<=18,$W$2,$W$3),0)))+T20,\"\")","v":142},{"$f":"IFERROR(Март[[#This Row],[Фактический расход топлива, литр]]-Март[[#This Row],[Расход топлива по норме, литр]],\"\")","v":-3.8489999999999895},null,null,null,null,null,null,{"$f":"Март[[#This Row],[Дата]]","v":"2018-03-14"}]
[{"$f":"IFERROR(DATEVALUE((COUNT($A$6:A20)+1)&$P$1&$I$4),\"\")","v":"2018-03-15"},"Никляев В.А.",{"$f":"IF(Март[[#This Row],[Дата]]=\"\",\"\",D20)","v":211665},211745,{"$f":"IFERROR(Март[[#This Row],[Показание одометра машины на конец дня, км]]-Март[[#This Row],[Показание одометра машины на начало дня, км]]+S21,\"\")","v":80},300,{"$f":"IF(Март[[#This Row],[Дата]]=\"\",\"\",M20)","v":""},{"$f":"IF(Март[[#This Row],[Дата]]=\"\",\"\",I20)","v":695},697,{"$f":"IFERROR(IF(U21=\"\",Март[[#This Row],[Показание счетчика моточасов  спецоборудования на конец дня, м/ч]],Март[[#This Row],[Показание счетчика моточасов  спецоборудования на конец дня, м/ч]]+1)-Март[[#This Row],[Показание счетчика моточасов спецоборудования на начало дня, м/ч]],\"\")","v":2},2,{"$f":"IF(Март[[#This Row],[Работа спецоборудования за день, м/ч]]=\"\",\"\",Март[[#This Row],[Работа спецоборудования за день, м/ч]]*$Z$2)","v":12.100000000000001},{"$f":"IFERROR(IF(VLOOKUP(Март[Дата],S$2:U$3,3),IFERROR(IF(R21=\"\",Март[[#This Row],[Выдано топливо, литр]],Март[[#This Row],[Выдано топливо, литр]]+R21)+Март[[#This Row],[Остаток топлива в баке на начало дня, литр]]-Март[[#This Row],[Фактический расход топлива, литр]],\"\"),\"\"),\"\")","v":""},{"$f":"IFERROR(ROUND((Март[[#This Row],[Пройдено за день, км]]*0.01*$Y$2+Март[[#This Row],[Расход топлива на работу спецоборудования, литр]]),3)+V21,\"\")","v":53.337000000000003},{"$f":"IFERROR(IF(Март[[#Totals],[Выдано топливо, литр]]=0,0,(ROUND(Март[[#This Row],[Расход топлива по норме, литр]]/IF(DAY(Март[Дата])<=18,$W$2,$W$3),0)))+T21,\"\")","v":53},{"$f":"IFERROR(Март[[#This Row],[Фактический расход топлива, литр]]-Март[[#This Row],[Расход топлива по норме, литр]],\"\")","v":-0.3370000000000033},null,null,null,1,null,null,{"$f":"Март[[#This Row],[Дата]]","v":"2018-03-15"}]
[{"$f":"IFERROR(DATEVALUE((COUNT($A$6:A21)+1)&$P$1&$I$4),\"\")","v":"2018-03-16"},null,{"$f":"IF(Март[[#This Row],[Дата]]=\"\",\"\",D21)","v":211745},211745,{"$f":"IFERROR(Март[[#This Row],[Показание одометра машины на конец дня, км]]-Март[[#This Row],[Показание одометра машины на начало дня, км]]+S22,\"\")","v":0},null,{"$f":"IF(Март[[#This Row],[Дата]]=\"\",\"\",M21)","v":""},{"$f":"IF(Март[[#This Row],[Дата]]=\"\",\"\",I21)","v":697},697,{"$f":"IFERROR(IF(U22=\"\",Март[[#This Row],[Показание счетчика моточасов  спецоборудования на конец дня, м/ч]],Март[[#This Row],[Показание счетчика моточасов  спецоборудования на конец дня, м/ч]]+1)-Март[[#This Row],[Показание счетчика моточасов спецоборудования на начало дня, м/ч]],\"\")","v":0},null,{"$f":"IF(Март[[#This Row],[Работа спецоборудования за день, м/ч]]=\"\",\"\",Март[[#This Row],[Работа спецоборудования за день, м/ч]]*$Z$2)","v":0},{"$f":"IFERROR(IF(VLOOKUP(Март[Дата],S$2:U$3,3),IFERROR(IF(R22=\"\",Март[[#This Row],[Выдано топливо, литр]],Март[[#This Row],[Выдано топливо, литр]]+R22)+Март[[#This Row],[Остаток топлива в баке на начало дня, литр]]-Март[[#This Row],[Фактический расход топлива, литр]],\"\"),\"\"),\"\")","v":""},{"$f":"IFERROR(ROUND((Март[[#This Row],[Пройдено за день, км]]*0.01*$Y$2+Март[[#This Row],[Расход топлива на работу спецоборудования, литр]]),3)+V22,\"\")","v":0},{"$f":"IFERROR(IF(Март[[#Totals],[Выдано топливо, литр]]=0,0,(ROUND(Март[[#This Row],[Расход топлива по норме, литр]]/IF(DAY(Март[Дата])<=18,$W$2,$W$3),0)))+T22,\"\")","v":0},{"$f":"IFERROR(Март[[#This Row],[Фактический расход топлива, литр]]-Март[[#This Row],[Расход топлива по норме, литр]],\"\")","v":0},null,null,null,null,null,null,{"$f":"Март[[#This Row],[Дата]]","v":"2018-03-16"}]
[{"$f":"IFERROR(DATEVALUE((COUNT($A$6:A22)+1)&$P$1&$I$4),\"\")","v":"2018-03-17"},null,{"$f":"IF(Март[[#This Row],[Дата]]=\"\",\"\",D22)","v":211745},211745,{"$f":"IFERROR(Март[[#This Row],[Показание одометра машины на конец дня, км]]-Март[[#This Row],[Показание одометра машины на начало дня, км]]+S23,\"\")","v":0},null,{"$f":"IF(Март[[#This Row],[Дата]]=\"\",\"\",M22)","v":""},{"$f":"IF(Март[[#This Row],[Дата]]=\"\",\"\",I22)","v":697},697,{"$f":"IFERROR(IF(U23=\"\",Март[[#This Row],[Показание счетчика моточасов  спецоборудования на конец дня, м/ч]],Март[[#This Row],[Показание счетчика моточасов  спецоборудования на конец дня, м/ч]]+1)-Март[[#This Row],[Показание счетчика моточасов спецоборудования на начало дня, м/ч]],\"\")","v":0},null,{"$f":"IF(Март[[#This Row],[Работа спецоборудования за день, м/ч]]=\"\",\"\",Март[[#This Row],[Работа спецоборудования за день, м/ч]]*$Z$2)","v":0},{"$f":"IFERROR(IF(VLOOKUP(Март[Дата],S$2:U$3,3),IFERROR(IF(R23=\"\",Март[[#This Row],[Выдано топливо, литр]],Март[[#This Row],[Выдано топливо, литр]]+R23)+Март[[#This Row],[Остаток топлива в баке на начало дня, литр]]-Март[[#This Row],[Фактический расход топлива, литр]],\"\"),\"\"),\"\")","v":""},{"$f":"IFERROR(ROUND((Март[[#This Row],[Пройдено за день, км]]*0.01*$Y$2+Март[[#This Row],[Расход топлива на работу спецоборудования, литр]]),3)+V23,\"\")","v":0},{"$f":"IFERROR(IF(Март[[#Totals],[Выдано топливо, литр]]=0,0,(ROUND(Март[[#This Row],[Расход топлива по норме, литр]]/IF(DAY(Март[Дата])<=18,$W$2,$W$3),0)))+T23,\"\")","v":0},{"$f":"IFERROR(Март[[#This Row],[Фактический расход топлива, литр]]-Март[[#This Row],[Расход топлива по норме, литр]],\"\")","v":0},null,null,null,null,null,null,{"$f":"Март[[#This Row],[Дата]]","v":"2018-03-17"}]
[{"$f":"IFERROR(DATEVALUE((COUNT($A$6:A23)+1)&$P$1&$I$4),\"\")","v":"2018-03-18"},null,{"$f":"IF(Март[[#This Row],[Дата]]=\"\",\"\",D23)","v":211745},211745,{"$f":"IFERROR(Март[[#This Row],[Показание одометра машины на конец дня, км]]-Март[[#This Row],[Показание одометра машины на начало дня, км]]+S24,\"\")","v":0},null,{"$f":"IF(Март[[#This Row],[Дата]]=\"\",\"\",M23)","v":""},{"$f":"IF(Март[[#This Row],[Дата]]=\"\",\"\",I23)","v":697},697,{"$f":"IFERROR(IF(U24=\"\",Март[[#This Row],[Показание счетчика моточасов  спецоборудования на конец дня, м/ч]],Март[[#This Row],[Показание счетчика моточасов  спецоборудования на конец дня, м/ч]]+1)-Март[[#This Row],[Показание счетчика моточасов спецоборудования на начало дня, м/ч]],\"\")","v":0},null,{"$f":"IF(Март[[#This Row],[Работа спецоборудования за день, м/ч]]=\"\",\"\",Март[[#This Row],[Работа спецоборудования за день, м/ч]]*$Z$2)","v":0},{"$f":"IFERROR(IF(VLOOKUP(Март[Дата],S$2:U$3,3),IFERROR(IF(R24=\"\",Март[[#This Row],[Выдано топливо, литр]],Март[[#This Row],[Выдано топливо, литр]]+R24)+Март[[#This Row],[Остаток топлива в баке на начало дня, литр]]-Март[[#This Row],[Фактический расход топлива, литр]],\"\"),\"\"),\"\")","v":""},{"$f":"IFERROR(ROUND((Март[[#This Row],[Пройдено за день, км]]*0.01*$Y$2+Март[[#This Row],[Расход топлива на работу спецоборудования, литр]]),3)+V24,\"\")","v":0},{"$f":"IFERROR(IF(Март[[#Totals],[Выдано топливо, литр]]=0,0,(ROUND(Март[[#This Row],[Расход топлива по норме, литр]]/IF(DAY(Март[Дата])<=18,$W$2,$W$3),0)))+T24,\"\")","v":0},{"$f":"IFERROR(Март[[#This Row],[Фактический расход топлива, литр]]-Март[[#This Row],[Расход топлива по норме, литр]],\"\")","v":0},null,null,null,null,null,null,{"$f":"Март[[#This Row],[Дата]]","v":"2018-03-18"}]
[{"$f":"IFERROR(DATEVALUE((COUNT($A$6:A24)+1)&$P$1&$I$4),\"\")","v":"2018-03-19"},null,{"$f":"IF(Март[[#This Row],[Дата]]=\"\",\"\",D24)","v":211745},211745,{"$f":"IFERROR(Март[[#This Row],[Показание одометра машины на конец дня, км]]-Март[[#This Row],[Показание одометра машины на начало дня, км]]+S25,\"\")","v":0},null,{"$f":"IF(Март[[#This Row],[Дата]]=\"\",\"\",M24)","v":""},{"$f":"IF(Март[[#This Row],[Дата]]=\"\",\"\",I24)","v":697},697,{"$f":"IFERROR(IF(U25=\"\",Март[[#This Row],[Показание счетчика моточасов  спецоборудования на конец дня, м/ч]],Март[[#This Row],[Показание счетчика моточасов  спецоборудования на конец дня, м/ч]]+1)-Март[[#This Row],[Показание счетчика моточасов спецоборудования на начало дня, м/ч]],\"\")","v":0},null,{"$f":"IF(Март[[#This Row],[Работа спецоборудования за день, м/ч]]=\"\",\"\",Март[[#This Row],[Работа спецоборудования за день, м/ч]]*$Z$2)","v":0},{"$f":"IFERROR(IF(VLOOKUP(Март[Дата],S$2:U$3,3),IFERROR(IF(R25=\"\",Март[[#This Row],[Выдано топливо, литр]],Март[[#This Row],[Выдано топливо, литр]]+R25)+Март[[#This Row],[Остаток топлива в баке на начало дня, литр]]-Март[[#This Row],[Фактический расход топлива, литр]],\"\"),\"\"),\"\")","v":""},{"$f":"IFERROR(ROUND((Март[[#This Row],[Пройдено за день, км]]*0.01*$Y$2+Март[[#This Row],[Расход топлива на работу спецоборудования, литр]]),3)+V25,\"\")","v":0},{"$f":"IFERROR(IF(Март[[#Totals],[Выдано топливо, литр]]=0,0,(ROUND(Март[[#This Row],[Расход топлива по норме, литр]]/IF(DAY(Март[Дата])<=18,$W$2,$W$3),0)))+T25,\"\")","v":0},{"$f":"IFERROR(Март[[#This Row],[Фактический расход топлива, литр]]-Март[[#This Row],[Расход топлива по норме, литр]],\"\")","v":0},null,null,null,null,null,null,{"$f":"Март[[#This Row],[Дата]]","v":"2018-03-19"}]
[{"$f":"IFERROR(DATEVALUE((COUNT($A$6:A25)+1)&$P$1&$I$4),\"\")","v":"2018-03-20"},null,{"$f":"IF(Март[[#This Row],[Дата]]=\"\",\"\",D25)","v":211745},211745,{"$f":"IFERROR(Март[[#This Row],[Показание одометра машины на конец дня, км]]-Март[[#This Row],[Показание одометра машины на начало дня, км]]+S26,\"\")","v":0},null,{"$f":"IF(Март[[#This Row],[Дата]]=\"\",\"\",M25)","v":""},{"$f":"IF(Март[[#This Row],[Дата]]=\"\",\"\",I25)","v":697},697,{"$f":"IFERROR(IF(U26=\"\",Март[[#This Row],[Показание счетчика моточасов  спецоборудования на конец дня, м/ч]],Март[[#This Row],[Показание счетчика моточасов  спецоборудования на конец дня, м/ч]]+1)-Март[[#This Row],[Показание счетчика моточасов спецоборудования на начало дня, м/ч]],\"\")","v":0},null,{"$f":"IF(Март[[#This Row],[Работа спецоборудования за день, м/ч]]=\"\",\"\",Март[[#This Row],[Работа спецоборудования за день, м/ч]]*$Z$2)","v":0},{"$f":"IFERROR(IF(VLOOKUP(Март[Дата],S$2:U$3,3),IFERROR(IF(R26=\"\",Март[[#This Row],[Выдано топливо, литр]],Март[[#This Row],[Выдано топливо, литр]]+R26)+Март[[#This Row],[Остаток топлива в баке на начало дня, литр]]-Март[[#This Row],[Фактический расход топлива, литр]],\"\"),\"\"),\"\")","v":""},{"$f":"IFERROR(ROUND((Март[[#This Row],[Пройдено за день, км]]*0.01*$Y$2+Март[[#This Row],[Расход топлива на работу спецоборудования, литр]]),3)+V26,\"\")","v":0},{"$f":"IFERROR(IF(Март[[#Totals],[Выдано топливо, литр]]=0,0,(ROUND(Март[[#This Row],[Расход топлива по норме, литр]]/IF(DAY(Март[Дата])<=18,$W$2,$W$3),0)))+T26,\"\")","v":0},{"$f":"IFERROR(Март[[#This Row],[Фактический расход топлива, литр]]-Март[[#This Row],[Расход топлива по норме, литр]],\"\")","v":0},null,null,null,null,null,null,{"$f":"Март[[#This Row],[Дата]]","v":"2018-03-20"}]
[{"$f":"IFERROR(DATEVALUE((COUNT($A$6:A26)+1)&$P$1&$I$4),\"\")","v":"2018-03-21"},null,{"$f":"IF(Март[[#This Row],[Дата]]=\"\",\"\",D26)","v":211745},211745,{"$f":"IFERROR(Март[[#This Row],[Показание одометра машины на конец дня, км]]-Март[[#This Row],[Показание одометра машины на начало дня, км]]+S27,\"\")","v":0},null,{"$f":"IF(Март[[#This Row],[Дата]]=\"\",\"\",M26)","v":""},{"$f":"IF(Март[[#This Row],[Дата]]=\"\",\"\",I26)","v":697},697,{"$f":"IFERROR(IF(U27=\"\",Март[[#This Row],[Показание счетчика моточасов  спецоборудования на конец дня, м/ч]],Март[[#This Row],[Показание счетчика моточасов  спецоборудования на конец дня, м/ч]]+1)-Март[[#This Row],[Показание счетчика моточасов спецоборудования на начало дня, м/ч]],\"\")","v":0},null,{"$f":"IF(Март[[#This Row],[Работа спецоборудования за день, м/ч]]=\"\",\"\",Март[[#This Row],[Работа спецоборудования за день, м/ч]]*$Z$2)","v":0},{"$f":"IFERROR(IF(VLOOKUP(Март[Дата],S$2:U$3,3),IFERROR(IF(R27=\"\",Март[[#This Row],[Выдано топливо, литр]],Март[[#This Row],[Выдано топливо, литр]]+R27)+Март[[#This Row],[Остаток топлива в баке на начало дня, литр]]-Март[[#This Row],[Фактический расход топлива, литр]],\"\"),\"\"),\"\")","v":""},{"$f":"IFERROR(ROUND((Март[[#This Row],[Пройдено за день, км]]*0.01*$Y$2+Март[[#This Row],[Расход топлива на работу спецоборудования, литр]]),3)+V27,\"\")","v":0},{"$f":"IFERROR(IF(Март[[#Totals],[Выдано топливо, литр]]=0,0,(ROUND(Март[[#This Row],[Расход топлива по норме, литр]]/IF(DAY(Март[Дата])<=18,$W$2,$W$3),0)))+T27,\"\")","v":0},{"$f":"IFERROR(Март[[#This Row],[Фактический расход топлива, литр]]-Март[[#This Row],[Расход топлива по норме, литр]],\"\")","v":0},null,null,null,null,null,null,{"$f":"Март[[#This Row],[Дата]]","v":"2018-03-21"}]
[{"$f":"IFERROR(DATEVALUE((COUNT($A$6:A27)+1)&$P$1&$I$4),\"\")","v":"2018-03-22"},null,{"$f":"IF(Март[[#This Row],[Дата]]=\"\",\"\",D27)","v":211745},211745,{"$f":"IFERROR(Март[[#This Row],[Показание одометра машины на конец дня, км]]-Март[[#This Row],[Показание одометра машины на начало дня, км]]+S28,\"\")","v":0},null,{"$f":"IF(Март[[#This Row],[Дата]]=\"\",\"\",M27)","v":""},{"$f":"IF(Март[[#This Row],[Дата]]=\"\",\"\",I27)","v":697},697,{"$f":"IFERROR(IF(U28=\"\",Март[[#This Row],[Показание счетчика моточасов  спецоборудования на конец дня, м/ч]],Март[[#This Row],[Показание счетчика моточасов  спецоборудования на конец дня, м/ч]]+1)-Март[[#This Row],[Показание счетчика моточасов спецоборудования на начало дня, м/ч]],\"\")","v":0},null,{"$f":"IF(Март[[#This Row],[Работа спецоборудования за день, м/ч]]=\"\",\"\",Март[[#This Row],[Работа спецоборудования за день, м/ч]]*$Z$2)","v":0},{"$f":"IFERROR(IF(VLOOKUP(Март[Дата],S$2:U$3,3),IFERROR(IF(R28=\"\",Март[[#This Row],[Выдано топливо, литр]],Март[[#This Row],[Выдано топливо, литр]]+R28)+Март[[#This Row],[Остаток топлива в баке на начало дня, литр]]-Март[[#This Row],[Фактический расход топлива, литр]],\"\"),\"\"),\"\")","v":""},{"$f":"IFERROR(ROUND((Март[[#This Row],[Пройдено за день, км]]*0.01*$Y$2+Март[[#This Row],[Расход топлива на работу спецоборудования, литр]]),3)+V28,\"\")","v":0},{"$f":"IFERROR(IF(Март[[#Totals],[Выдано топливо, литр]]=0,0,(ROUND(Март[[#This Row],[Расход топлива по норме, литр]]/IF(DAY(Март[Дата])<=18,$W$2,$W$3),0)))+T28,\"\")","v":0},{"$f":"IFERROR(Март[[#This Row],[Фактический расход топлива, литр]]-Март[[#This Row],[Расход топлива по норме, литр]],\"\")","v":0},null,null,null,null,null,null,{"$f":"Март[[#This Row],[Дата]]","v":"2018-03-22"}]
[{"$f":"IFERROR(DATEVALUE((COUNT($A$6:A28)+1)&$P$1&$I$4),\"\")","v":"2018-03-23"},null,{"$f":"IF(Март[[#This Row],[Дата]]=\"\",\"\",D28)","v":211745},211745,{"$f":"IFERROR(Март[[#This Row],[Показание одометра машины на конец дня, км]]-Март[[#This Row],[Показание одометра машины на начало дня, км]]+S29,\"\")","v":0},null,{"$f":"IF(Март[[#This Row],[Дата]]=\"\",\"\",M28)","v":""},{"$f":"IF(Март[[#This Row],[Дата]]=\"\",\"\",I28)","v":697},697,{"$f":"IFERROR(IF(U29=\"\",Март[[#This Row],[Показание счетчика моточасов  спецоборудования на конец дня, м/ч]],Март[[#This Row],[Показание счетчика моточасов  спецоборудования на конец дня, м/ч]]+1)-Март[[#This Row],[Показание счетчика моточасов спецоборудования на начало дня, м/ч]],\"\")","v":0},null,{"$f":"IF(Март[[#This Row],[Работа спецоборудования за день, м/ч]]=\"\",\"\",Март[[#This Row],[Работа спецоборудования за день, м/ч]]*$Z$2)","v":0},{"$f":"IFERROR(IF(VLOOKUP(Март[Дата],S$2:U$3,3),IFERROR(IF(R29=\"\",Март[[#This Row],[Выдано топливо, литр]],Март[[#This Row],[Выдано топливо, литр]]+R29)+Март[[#This Row],[Остаток топлива в баке на начало дня, литр]]-Март[[#This Row],[Фактический расход топлива, литр]],\"\"),\"\"),\"\")","v":""},{"$f":"IFERROR(ROUND((Март[[#This Row],[Пройдено за день, км]]*0.01*$Y$2+Март[[#This Row],[Расход топлива на работу спецоборудования, литр]]),3)+V29,\"\")","v":0},{"$f":"IFERROR(IF(Март[[#Totals],[Выдано топливо, литр]]=0,0,(ROUND(Март[[#This Row],[Расход топлива по норме, литр]]/IF(DAY(Март[Дата])<=18,$W$2,$W$3),0)))+T29,\"\")","v":0},{"$f":"IFERROR(Март[[#This Row],[Фактический расход топлива, литр]]-Март[[#This Row],[Расход топлива по норме, литр]],\"\")","v":0},null,null,null,null,null,null,{"$f":"Март[[#This Row],[Дата]]","v":"2018-03-23"}]
[{"$f":"IFERROR(DATEVALUE((COUNT($A$6:A29)+1)&$P$1&$I$4),\"\")","v":"2018-03-24"},null,{"$f":"IF(Март[[#This Row],[Дата]]=\"\",\"\",D29)","v":211745},211745,{"$f":"IFERROR(Март[[#This Row],[Показание одометра машины на конец дня, км]]-Март[[#This Row],[Показание одометра машины на начало дня, км]]+S30,\"\")","v":0},null,{"$f":"IF(Март[[#This Row],[Дата]]=\"\",\"\",M29)","v":""},{"$f":"IF(Март[[#This Row],[Дата]]=\"\",\"\",I29)","v":697},697,{"$f":"IFERROR(IF(U30=\"\",Март[[#This Row],[Показание счетчика моточасов  спецоборудования на конец дня, м/ч]],Март[[#This Row],[Показание счетчика моточасов  спецоборудования на конец дня, м/ч]]+1)-Март[[#This Row],[Показание счетчика моточасов спецоборудования на начало дня, м/ч]],\"\")","v":0},null,{"$f":"IF(Март[[#This Row],[Работа спецоборудования за день, м/ч]]=\"\",\"\",Март[[#This Row],[Работа спецоборудования за день, м/ч]]*$Z$2)","v":0},{"$f":"IFERROR(IF(VLOOKUP(Март[Дата],S$2:U$3,3),IFERROR(IF(R30=\"\",Март[[#This Row],[Выдано топливо, литр]],Март[[#This Row],[Выдано топливо, литр]]+R30)+Март[[#This Row],[Остаток топлива в баке на начало дня, литр]]-Март[[#This Row],[Фактический расход топлива, литр]],\"\"),\"\"),\"\")","v":""},{"$f":"IFERROR(ROUND((Март[[#This Row],[Пройдено за день, км]]*0.01*$Y$2+Март[[#This Row],[Расход топлива на работу спецоборудования, литр]]),3)+V30,\"\")","v":0},{"$f":"IFERROR(IF(Март[[#Totals],[Выдано топливо, литр]]=0,0,(ROUND(Март[[#This Row],[Расход топлива по норме, литр]]/IF(DAY(Март[Дата])<=18,$W$2,$W$3),0)))+T30,\"\")","v":0},{"$f":"IFERROR(Март[[#This Row],[Фактический расход топлива, литр]]-Март[[#This Row],[Расход топлива по норме, литр]],\"\")","v":0},null,null,null,null,null,null,{"$f":"Март[[#This Row],[Дата]]","v":"2018-03-24"}]
[{"$f":"IFERROR(DATEVALUE((COUNT($A$6:A30)+1)&$P$1&$I$4),\"\")","v":"2018-03-25"},null,{"$f":"IF(Март[[#This Row],[Дата]]=\"\",\"\",D30)","v":211745},211745,{"$f":"IFERROR(Март[[#This Row],[Показание одометра машины на конец дня, км]]-Март[[#This Row],[Показание одометра машины на начало дня, км]]+S31,\"\")","v":0},null,{"$f":"IF(Март[[#This Row],[Дата]]=\"\",\"\",M30)","v":""},{"$f":"IF(Март[[#This Row],[Дата]]=\"\",\"\",I30)","v":697},697,{"$f":"IFERROR(IF(U31=\"\",Март[[#This Row],[Показание счетчика моточасов  спецоборудования на конец дня, м/ч]],Март[[#This Row],[Показание счетчика моточасов  спецоборудования на конец дня, м/ч]]+1)-Март[[#This Row],[Показание счетчика моточасов спецоборудования на начало дня, м/ч]],\"\")","v":0},0,{"$f":"IF(Март[[#This Row],[Работа спецоборудования за день, м/ч]]=\"\",\"\",Март[[#This Row],[Работа спецоборудования за день, м/ч]]*$Z$2)","v":0},{"$f":"IFERROR(IF(VLOOKUP(Март[Дата],S$2:U$3,3),IFERROR(IF(R31=\"\",Март[[#This Row],[Выдано топливо, литр]],Март[[#This Row],[Выдано топливо, литр]]+R31)+Март[[#This Row],[Остаток топлива в баке на начало дня, литр]]-Март[[#This Row],[Фактический расход топлива, литр]],\"\"),\"\"),\"\")","v":""},{"$f":"IFERROR(ROUND((Март[[#This Row],[Пройдено за день, км]]*0.01*$Y$2+Март[[#This Row],[Расход топлива на работу спецоборудования, литр]]),3)+V31,\"\")","v":0},{"$f":"IFERROR(IF(Март[[#Totals],[Выдано топливо, литр]]=0,0,(ROUND(Март[[#This Row],[Расход топлива по норме, литр]]/IF(DAY(Март[Дата])<=18,$W$2,$W$3),0)))+T31,\"\")","v":0},{"$f":"IFERROR(Март[[#This Row],[Фактический расход топлива, литр]]-Март[[#This Row],[Расход топлива по норме, литр]],\"\")","v":0},null,null,null,null,null,null,{"$f":"Март[[#This Row],[Дата]]","v":"2018-03-25"}]
[{"$f":"IFERROR(DATEVALUE((COUNT($A$6:A31)+1)&$P$1&$I$4),\"\")","v":"2018-03-26"},"Никляев В.А.",{"$f":"IF(Март[[#This Row],[Дата]]=\"\",\"\",D31)","v":211745},211915,{"$f":"IFERROR(Март[[#This Row],[Показание одометра машины на конец дня, км]]-Март[[#This Row],[Показание одометра машины на начало дня, км]]+S32,\"\")","v":170},null,{"$f":"IF(Март[[#This Row],[Дата]]=\"\",\"\",M31)","v":""},{"$f":"IF(Март[[#This Row],[Дата]]=\"\",\"\",I31)","v":697},699,{"$f":"IFERROR(IF(U32=\"\",Март[[#This Row],[Показание счетчика моточасов  спецоборудования на конец дня, м/ч]],Март[[#This Row],[Показание счетчика моточасов  спецоборудования на конец дня, м/ч]]+1)-Март[[#This Row],[Показание счетчика моточасов спецоборудования на начало дня, м/ч]],\"\")","v":2},1,{"$f":"IF(Март[[#This Row],[Работа спецоборудования за день, м/ч]]=\"\",\"\",Март[[#This Row],[Работа спецоборудования за день, м/ч]]*$Z$2)","v":12.100000000000001},{"$f":"IFERROR(IF(VLOOKUP(Март[Дата],S$2:U$3,3),IFERROR(IF(R32=\"\",Март[[#This Row],[Выдано топливо, литр]],Март[[#This Row],[Выдано топливо, литр]]+R32)+Март[[#This Row],[Остаток топлива в баке на начало дня, литр]]-Март[[#This Row],[Фактический расход топлива, литр]],\"\"),\"\"),\"\")","v":""},{"$f":"IFERROR(ROUND((Март[[#This Row],[Пройдено за день, км]]*0.01*$Y$2+Март[[#This Row],[Расход топлива на работу спецоборудования, литр]]),3)+V32,\"\")","v":99.727999999999994},{"$f":"IFERROR(IF(Март[[#Totals],[Выдано топливо, литр]]=0,0,(ROUND(Март[[#This Row],[Расход топлива по норме, литр]]/IF(DAY(Март[Дата])<=18,$W$2,$W$3),0)))+T32,\"\")","v":0},{"$f":"IFERROR(Март[[#This Row],[Фактический расход топлива, литр]]-Март[[#This Row],[Расход топлива по норме, литр]],\"\")","v":-99.727999999999994},null,null,null,null,null,null,{"$f":"Март[[#This Row],[Дата]]","v":"2018-03-26"}]
[{"$f":"IFERROR(DATEVALUE((COUNT($A$6:A32)+1)&$P$1&$I$4),\"\")","v":"2018-03-27"},"Никляев В.А.",{"$f":"IF(Март[[#This Row],[Дата]]=\"\",\"\",D32)","v":211915},211991,{"$f":"IFERROR(Март[[#This Row],[Показание одометра машины на конец дня, км]]-Март[[#This Row],[Показание одометра машины на начало дня, км]]+S33,\"\")","v":76},null,{"$f":"IF(Март[[#This Row],[Дата]]=\"\",\"\",M32)","v":""},{"$f":"IF(Март[[#This Row],[Дата]]=\"\",\"\",I32)","v":699},703,{"$f":"IFERROR(IF(U33=\"\",Март[[#This Row],[Показание счетчика моточасов  спецоборудования на конец дня, м/ч]],Март[[#This Row],[Показание счетчика моточасов  спецоборудования на конец дня, м/ч]]+1)-Март[[#This Row],[Показание счетчика моточасов спецоборудования на начало дня, м/ч]],\"\")","v":4},2,{"$f":"IF(Март[[#This Row],[Работа спецоборудования за день, м/ч]]=\"\",\"\",Март[[#This Row],[Работа спецоборудования за день, м/ч]]*$Z$2)","v":24.200000000000003},{"$f":"IFERROR(IF(VLOOKUP(Март[Дата],S$2:U$3,3),IFERROR(IF(R33=\"\",Март[[#This Row],[Выдано топливо, литр]],Март[[#This Row],[Выдано топливо, литр]]+R33)+Март[[#This Row],[Остаток топлива в баке на начало дня, литр]]-Март[[#This Row],[Фактический расход топлива, литр]],\"\"),\"\"),\"\")","v":""},{"$f":"IFERROR(ROUND((Март[[#This Row],[Пройдено за день, км]]*0.01*$Y$2+Март[[#This Row],[Расход топлива на работу спецоборудования, литр]]),3)+V33,\"\")","v":63.375},{"$f":"IFERROR(IF(Март[[#Totals],[Выдано топливо, литр]]=0,0,(ROUND(Март[[#This Row],[Расход топлива по норме, литр]]/IF(DAY(Март[Дата])<=18,$W$2,$W$3),0)))+T33,\"\")","v":0},{"$f":"IFERROR(Март[[#This Row],[Фактический расход топлива, литр]]-Март[[#This Row],[Расход топлива по норме, литр]],\"\")","v":-63.375},null,null,null,null,null,null,{"$f":"Март[[#This Row],[Дата]]","v":"2018-03-27"}]
[{"$f":"IFERROR(DATEVALUE((COUNT($A$6:A33)+1)&$P$1&$I$4),\"\")","v":"2018-03-28"},"Никляев В.А.",{"$f":"IF(Март[[#This Row],[Дата]]=\"\",\"\",D33)","v":211991},212252,{"$f":"IFERROR(Март[[#This Row],[Показание одометра машины на конец дня, км]]-Март[[#This Row],[Показание одометра машины на начало дня, км]]+S34,\"\")","v":261},300,{"$f":"IF(Март[[#This Row],[Дата]]=\"\",\"\",M33)","v":""},{"$f":"IF(Март[[#This Row],[Дата]]=\"\",\"\",I33)","v":703},708,{"$f":"IFERROR(IF(U34=\"\",Март[[#This Row],[Показание счетчика моточасов  спецоборудования на конец дня, м/ч]],Март[[#This Row],[Показание счетчика моточасов  спецоборудования на конец дня, м/ч]]+1)-Март[[#This Row],[Показание счетчика моточасов спецоборудования на начало дня, м/ч]],\"\")","v":5},3,{"$f":"IF(Март[[#This Row],[Работа спецоборудования за день, м/ч]]=\"\",\"\",Март[[#This Row],[Работа спецоборудования за день, м/ч]]*$Z$2)","v":30.250000000000004},{"$f":"IFERROR(IF(VLOOKUP(Март[Дата],S$2:U$3,3),IFERROR(IF(R34=\"\",Март[[#This Row],[Выдано топливо, литр]],Март[[#This Row],[Выдано топливо, литр]]+R34)+Март[[#This Row],[Остаток топлива в баке на начало дня, литр]]-Март[[#This Row],[Фактический расход топлива, литр]],\"\"),\"\"),\"\")","v":""},{"$f":"IFERROR(ROUND((Март[[#This Row],[Пройдено за день, км]]*0.01*$Y$2+Март[[#This Row],[Расход топлива на работу спецоборудования, литр]]),3)+V34,\"\")","v":164.785},{"$f":"IFERROR(IF(Март[[#Totals],[Выдано топливо, литр]]=0,0,(ROUND(Март[[#This Row],[Расход топлива по норме, литр]]/IF(DAY(Март[Дата])<=18,$W$2,$W$3),0)))+T34,\"\")","v":0},{"$f":"IFERROR(Март[[#This Row],[Фактический расход топлива, литр]]-Март[[#This Row],[Расход топлива по норме, литр]],\"\")","v":-164.785},null,null,null,null,null,null,{"$f":"Март[[#This Row],[Дата]]","v":"2018-03-28"}]
[{"$f":"IFERROR(DATEVALUE((COUNT($A$6:A34)+1)&$P$1&$I$4),\"\")","v":"2018-03-29"},null,{"$f":"IF(Март[[#This Row],[Дата]]=\"\",\"\",D34)","v":212252},null,{"$f":"IFERROR(Март[[#This Row],[Показание одометра машины на конец дня, км]]-Март[[#This Row],[Показание одометра машины на начало дня, км]]+S35,\"\")","v":-212252},null,{"$f":"IF(Март[[#This Row],[Дата]]=\"\",\"\",M34)","v":""},{"$f":"IF(Март[[#This Row],[Дата]]=\"\",\"\",I34)","v":708},null,{"$f":"IFERROR(IF(U35=\"\",Март[[#This Row],[Показание счетчика моточасов  спецоборудования на конец дня, м/ч]],Март[[#This Row],[Показание счетчика моточасов  спецоборудования на конец дня, м/ч]]+1)-Март[[#This Row],[Показание счетчика моточасов спецоборудования на начало дня, м/ч]],\"\")","v":-708},null,{"$f":"IF(Март[[#This Row],[Работа спецоборудования за день, м/ч]]=\"\",\"\",Март[[#This Row],[Работа спецоборудования за день, м/ч]]*$Z$2)","v":-4283.4000000000005},{"$f":"IFERROR(IF(VLOOKUP(Март[Дата],S$2:U$3,3),IFERROR(IF(R35=\"\",Март[[#This Row],[Выдано топливо, литр]],Март[[#This Row],[Выдано топливо, литр]]+R35)+Март[[#This Row],[Остаток топлива в баке на начало дня, литр]]-Март[[#This Row],[Фактический расход топлива, литр]],\"\"),\"\"),\"\")","v":""},{"$f":"IFERROR(ROUND((Март[[#This Row],[Пройдено за день, км]]*0.01*$Y$2+Март[[#This Row],[Расход топлива на работу спецоборудования, литр]]),3)+V35,\"\")","v":-113690.81600000001},{"$f":"IFERROR(IF(Март[[#Totals],[Выдано топливо, литр]]=0,0,(ROUND(Март[[#This Row],[Расход топлива по норме, литр]]/IF(DAY(Март[Дата])<=18,$W$2,$W$3),0)))+T35,\"\")","v":301},{"$f":"IFERROR(Март[[#This Row],[Фактический расход топлива, литр]]-Март[[#This Row],[Расход топлива по норме, литр]],\"\")","v":113991.81600000001},null,null,null,null,null,null,{"$f":"Март[[#This Row],[Дата]]","v":"2018-03-29"}]
[{"$f":"IFERROR(DATEVALUE((COUNT($A$6:A35)+1)&$P$1&$I$4),\"\")","v":"2018-03-30"},null,{"$f":"IF(Март[[#This Row],[Дата]]=\"\",\"\",D35)","v":0},null,{"$f":"IFERROR(Март[[#This Row],[Показание одометра машины на конец дня, км]]-Март[[#This Row],[Показание одометра машины на начало дня, км]]+S36,\"\")","v":0},null,{"$f":"IF(Март[[#This Row],[Дата]]=\"\",\"\",M35)","v":""},{"$f":"IF(Март[[#This Row],[Дата]]=\"\",\"\",I35)","v":0},null,{"$f":"IFERROR(IF(U36=\"\",Март[[#This Row],[Показание счетчика моточасов  спецоборудования на конец дня, м/ч]],Март[[#This Row],[Показание счетчика моточасов  спецоборудования на конец дня, м/ч]]+1)-Март[[#This Row],[Показание счетчика моточасов спецоборудования на начало дня, м/ч]],\"\")","v":0},null,{"$f":"IF(Март[[#This Row],[Работа спецоборудования за день, м/ч]]=\"\",\"\",Март[[#This Row],[Работа спецоборудования за день, м/ч]]*$Z$2)","v":0},{"$f":"IFERROR(IF(VLOOKUP(Март[Дата],S$2:U$3,3),IFERROR(IF(R36=\"\",Март[[#This Row],[Выдано топливо, литр]],Март[[#This Row],[Выдано топливо, литр]]+R36)+Март[[#This Row],[Остаток топлива в баке на начало дня, литр]]-Март[[#This Row],[Фактический расход топлива, литр]],\"\"),\"\"),\"\")","v":""},{"$f":"IFERROR(ROUND((Март[[#This Row],[Пройдено за день, км]]*0.01*$Y$2+Март[[#This Row],[Расход топлива на работу спецоборудования, литр]]),3)+V36,\"\")","v":0},{"$f":"IFERROR(IF(Март[[#Totals],[Выдано топливо, литр]]=0,0,(ROUND(Март[[#This Row],[Расход топлива по норме, литр]]/IF(DAY(Март[Дата])<=18,$W$2,$W$3),0)))+T36,\"\")","v":0},{"$f":"IFERROR(Март[[#This Row],[Фактический расход топлива, литр]]-Март[[#This Row],[Расход топлива по норме, литр]],\"\")","v":0},null,null,null,null,null,null,{"$f":"Март[[#This Row],[Дата]]","v":"2018-03-30"}]
[{"$f":"IFERROR(DATEVALUE((COUNT($A$6:A36)+1)&$P$1&$I$4),\"\")","v":"2018-03-31"},null,{"$f":"IF(Март[[#This Row],[Дата]]=\"\",\"\",D36)","v":0},null,{"$f":"IFERROR(Март[[#This Row],[Показание одометра машины на конец дня, км]]-Март[[#This Row],[Показание одометра машины на начало дня, км]]+S37,\"\")","v":0},null,{"$f":"IF(Март[[#This Row],[Дата]]=\"\",\"\",M36)","v":""},{"$f":"IF(Март[[#This Row],[Дата]]=\"\",\"\",I36)","v":0},null,{"$f":"IFERROR(IF(U37=\"\",Март[[#This Row],[Показание счетчика моточасов  спецоборудования на конец дня, м/ч]],Март[[#This Row],[Показание счетчика моточасов  спецоборудования на конец дня, м/ч]]+1)-Март[[#This Row],[Показание счетчика моточасов спецоборудования на начало дня, м/ч]],\"\")","v":0},null,{"$f":"IF(Март[[#This Row],[Работа спецоборудования за день, м/ч]]=\"\",\"\",Март[[#This Row],[Работа спецоборудования за день, м/ч]]*$Z$2)","v":0},{"$f":"IFERROR(IF(VLOOKUP(Март[Дата],S$2:U$3,3),IFERROR(IF(R37=\"\",Март[[#This Row],[Выдано топливо, литр]],Март[[#This Row],[Выдано топливо, литр]]+R37)+Март[[#This Row],[Остаток топлива в баке на начало дня, литр]]-Март[[#This Row],[Фактический расход топлива, литр]],\"\"),\"\"),\"\")","v":""},{"$f":"IFERROR(ROUND((Март[[#This Row],[Пройдено за день, км]]*0.01*$Y$2+Март[[#This Row],[Расход топлива на работу спецоборудования, литр]]),3)+V37,\"\")","v":0},{"$f":"IFERROR(IF(Март[[#Totals],[Выдано топливо, литр]]=0,0,(ROUND(Март[[#This Row],[Расход топлива по норме, литр]]/IF(DAY(Март[Дата])<=18,$W$2,$W$3),0)))+T37,\"\")","v":0},{"$f":"IFERROR(Март[[#This Row],[Фактический расход топлива, литр]]-Март[[#This Row],[Расход топлива по норме, литр]],\"\")","v":0},null,null,null,null,null,null,{"$f":"Март[[#This Row],[Дата]]","v":"2018-03-31"}]
["Итог",null,null,null,{"$f":"SUBTOTAL(109,Март[Пройдено за день, км])","v":-210723},{"$f":"SUBTOTAL(109,Март[Выдано топливо, литр])","v":1070},null,null,null,{"$f":"SUBTOTAL(109,Март[Работа спецоборудования за день, м/ч])","v":-671},{"$f":"SUBTOTAL(109,Март[Количество ходок])","v":24},{"$f":"SUBTOTAL(109,Март[Расход топлива на работу спецоборудования, литр])","v":-4059.5500000000006},null,{"$f":"SUBTOTAL(109,Март[Расход топлива по норме, литр])","v":-112678.827},{"$f":"SUBTOTAL(109,Март[Фактический расход топлива, литр])","v":968},{"$f":"SUBTOTAL(109,Март[Отклонение от нормы (Перерасход(+), экономия(-)), литр])","v":113646.827}]
[null,null,null,null,null,null,null,null,null,null,{"$f":"SUMIFS(K7:K37,A7:A37,\">=\"&$S$2,A7:A37,\"<=\"&$T$2)","v":16}]
[null,null,null,null,null,null,null,null,null,null,{"$f":"SUMIFS(K7:K37,A7:A37,\">=\"&$S$3,A7:A37,\"<=\"&$T$3)","v":6}]

{"sheet":"ТС","index":3,"n_rows":29,"n_cols":25,"rows_kept":29,"cut":false,"hidden":false,"merged":[[0,15,2,24],[2,6,2,7],[2,11,2,12]]}
[null,null,null,null,null,null,"Зима :","01.11 - 31.03",null,null,null,"Зима :","01.11 - 31.03",null,null,"Расчет максимальной нормы расхода ДТ (литр/100км)"]
[null,null,null,null,null,null,"Лето:","01.04 - 30.10",null,null,null,"Лето:","01.04 - 30.10"]
[null,null,null,null,null,null,"доп.коэфф-т к норме",null,null,null,null,"доп.коэфф-т к норме"]
["№ п/п","Номер гос.регистрации / Заводской номер","Километраж, км","Спецоборудование, м/ч","Топливо, л","Базовая норма расхода на 100 км","Зима","Лето","Итога норма а/м ЗИМА","Итога норма а/м ЛЕТО","Базовая норма расхода на 1 мото/час","\"Зима\"","\"Лето\"","Итога норма а/м \"ЗИМА\"","Итога норма а/м \"ЛЕТО\"","Норма на 100 км, литров","движение с манипулятором","Тоннаж","Литры","На движение с грузом","Тоннаж1","К-т загрузки","ИТОГ","25% за работу в городе с населением свыше 3 млн. человек","10 % за работу зимой"]
[1,"Норма 1",209024,620,500,46.86,10,-9.1,{"$f":"F5*(100+G5)%","v":51.546000000000006},{"$f":"F5*(100+H5)%","v":42.595739999999999},5.5,10,0,{"$f":"K5*(100+L5)%","v":6.0500000000000007},{"$f":"K5*(100+M5)%","v":5.5},32.200000000000003,{"$f":"R5*S5","v":2.9379999999999997},2.2599999999999998,1.3,{"$f":"U5*V5*S5","v":5.2},8,0.5,{"$f":"P5+Q5+T5","v":40.338000000000008},{"$f":"W5*25%+W5","v":50.422500000000014},{"$f":"W5*10%+X5","v":54.456300000000013}]
[2,"Норма 2",null,null,500,{"$f":"F5-F5*5%","v":44.516999999999996},10,-9.1,48.968699999999998,40.465952999999999,{"$f":"K5-K5*5%","v":5.2249999999999996},10,0,5.7475000000000005,5.2249999999999996,32.200000000000003,2.9379999999999997,2.2599999999999998,1.3,5.2,8,0.5,40.338000000000008,50.422500000000014,54.456300000000013]
[3,"Норма 3",null,null,500,{"$f":"F5-F5*10%","v":42.173999999999999},10,-9.1,46.391400000000004,38.336165999999999,{"$f":"K5-K5*10%","v":4.95},10,0,5.4450000000000003,4.95,32.200000000000003,2.9379999999999997,2.2599999999999998,1.3,5.2,8,0.5,40.338000000000008,50.422500000000014,54.456300000000013]
[]
[]
[]
[null,"Зима"]
[null,"Лето"]
[]
[null,"Январь"]
[null,"Февраль"]
[null,"Март"]
[null,"Апрель"]
[null,"Май"]
[null,"Июнь"]
[null,"Июль"]
[null,"Август"]
[null,"Сентябрь"]
[null,"Октябрь"]
[null,"Ноябрь"]
[null,"Декабрь"]
[]
[null,"Норма 1"]
[null,"Норма 2"]
[null,"Норма 3"]

{"sheet":"Отчет журнал","index":4,"n_rows":8,"n_cols":17,"rows_kept":8,"cut":false,"hidden":false,"merged":[[0,0,0,16],[1,0,1,16]]}
["Общество с ограниченной ответственностью  \"Втормет Царицыно\""]
["Отчет водителя ломовоза с манипулятором"]
[null,null,null,null,null,null,null,null,"за",2018]
[]
["Дата","ФИО водителя","Номер гос.регистрации","Показание одометра машины на начало дня, км","Показание одометра машины на конец дня, км","Пройдено за день, км","Выдано топливо, литр","Остаток топлива в баке на начало дня, литр","Показание счетчика моточасов спецоборудования на начало дня, м/ч","Показание счетчика моточасов  спецоборудования на конец дня, м/ч","Работа спецоборудования за день, м/ч","Количество ходок","Расход топлива на работу спецоборудования, литр","Остаток топлива в баке на конец дня, литр","Расход топлива по норме, литр","Фактический расход топлива, литр","Отклонение от нормы (Перерасход(+), экономия(-)), литр"]
["2018-01-01","Никляев В.А.","т056вв 197",209024,209024,{"$f":"E6-D6","v":0},0,500,620,620,{"$f":"J6-I6","v":0},null,{"$f":"K6*#REF!","v":{"$error":"#REF!"}},{"$f":"G6+H6-P6","v":500},{"$f":"ROUND((F6*0.01*#REF!+M6),3)","v":{"$error":"#REF!"}},{"$f":"IF($I$10=0,0,(ROUND(O6/$T$6,0)))","v":0},{"$f":"P6-O6","v":{"$error":"#REF!"}}]
["2018-01-01","Супрун С.В.","к190вк 799",156340,157300,960,150,{"$f":"N6","v":500},{"$f":"J6","v":620},540,{"$f":"J7-I7","v":-80},null,{"$f":"K7*#REF!","v":{"$error":"#REF!"}},{"$f":"G7+H7-P7","v":650},{"$f":"ROUND((F7*0.01*#REF!+M7),3)","v":{"$error":"#REF!"}},{"$f":"IF($I$10=0,0,(ROUND(O7/$T$6,0)))","v":0},{"$error":"#REF!"}]
["2018-01-01","Щинов М.","х733ун 197",164230,164590,360,50,650,{"$f":"J7","v":540},620,80,null,{"$f":"K8*#REF!","v":{"$error":"#REF!"}},700,{"$f":"ROUND((F8*0.01*#REF!+M8),3)","v":{"$error":"#REF!"}},{"$f":"IF($I$10=0,0,(ROUND(O8/$T$6,0)))","v":0},{"$error":"#REF!"}]

{"sheet":"Сотрудники","index":5,"n_rows":23,"n_cols":2,"rows_kept":23,"cut":false,"hidden":false,"merged":[[0,0,1,1]]}
["Водители ломовоза с манипулятором"]
[]
["№ п/п","Ф.И.О."]
[1,"Никляев В.А."]
[2,"Ильин А.Г."]
[3,"Малышев О.С."]
[4,"Кобалян М.В."]
[5]
[6]
[7]
[8]
[9]
[10]
[11]
[12]
[13]
[14]
[15]
[16]
[17]
[18]
[19]
[20]